{"text_format":"1","workbook":"xlsx","n_sheets":13,"sheets":["Prompt","C100","C101","C102","C200","C300","C327","C400","C500","C700","C800","C900","Enviar"],"not_rendered":{"charts":0,"images":7,"macros":1,"external_links":0,"defined_names":1,"comments":2,"pivot_tables":0},"unopened":[],"bounds":{"document_bytes":16777216,"sheet_cells":100000,"rows_first":2000,"rows_last":500,"rows_between":2000,"halvings":0,"cell_chars":16384,"cell_head_chars":4096},"cells_cut":0,"cells_raw":0,"read":"whole","date_system":"1900"}

{"sheet":"Prompt","index":0,"n_rows":79,"n_cols":4,"rows_kept":79,"cut":false,"hidden":true,"merged":[[1,3,2,6],[4,1,6,8],[43,1,44,8],[78,1,79,8],[9,1,10,8]]}
[]
[null,null,null,"¡ATENCIÓN!"]
[]
[]
[null,"Para hacer uso de las funcionalidades de esta Cédula Electrónica debe habilitar macros"]
[]
[]
[]
[]
[null,"Si utiliza Excel 2013 siga el siguiente procedimiento:"]
[]
[]
[]
[]
[]
[]
[]
[]
[]
[]
[]
[]
[]
[]
[]
[]
[]
[]
[]
[]
[]
[]
[]
[]
[]
[]
[]
[]
[]
[]
[]
[]
[]
[null,"Si utiliza Excel 2007 siga el siguiente procedimiento:"]
[]
[]
[]
[]
[]
[]
[]
[]
[]
[]
[]
[]
[]
[]
[]
[]
[]
[]
[]
[]
[]
[]
[]
[]
[]
[]
[]
[]
[]
[]
[]
[]
[]
[]
[null,"Si utiliza Excel 2000, 2002, 2003 siga el siguiente procedimiento:"]

{"sheet":"C100","index":1,"n_rows":361,"n_cols":38,"rows_kept":361,"cut":false,"hidden":false,"merged":[[333,15,333,16],[334,7,334,10],[334,15,334,16],[341,14,341,15],[359,25,359,26],[305,11,305,12],[305,13,305,14],[305,15,305,16],[306,6,306,10],[306,11,306,12],[306,13,306,14],[306,15,306,16],[318,14,318,15],[326,15,330,16],[327,11,329,11],[327,12,330,12],[327,13,330,13],[327,14,330,14],[304,15,304,16],[329,26,329,31],[331,15,331,16],[332,15,332,16],[300,11,300,12],[300,13,300,14],[300,15,300,16],[301,11,301,12],[301,13,301,14],[301,15,301,16],[302,11,302,12],[302,13,302,14],[302,15,302,16],[303,11,303,12],[303,13,303,14],[303,15,303,16],[304,11,304,12],[304,13,304,14],[292,11,292,12],[292,13,292,14],[292,15,292,16],[293,11,293,12],[293,13,293,14],[293,15,293,16],[298,15,298,16],[299,11,299,12],[299,13,299,14],[299,15,299,16],[296,15,296,16],[297,11,297,12],[297,13,297,14],[297,15,297,16],[298,11,298,12],[298,13,298,14],[294,11,294,12],[294,13,294,14],[294,15,294,16],[295,11,295,12],[295,13,295,14],[295,15,295,16],[296,11,296,12],[296,13,296,14],[289,11,289,12],[289,13,289,14],[289,15,289,16],[290,11,290,12],[290,13,290,14],[290,15,290,16],[291,11,291,12],[291,13,291,14],[291,15,291,16],[286,11,286,12],[286,13,286,14],[286,15,286,16],[287,11,287,12],[287,13,287,14],[287,15,287,16],[287,23,287,28],[288,11,288,12],[288,13,288,14],[288,15,288,16],[274,23,274,28],[275,7,275,9],[275,10,275,11],[275,12,275,14],[275,15,275,16],[272,10,272,11],[272,12,272,14],[272,15,272,16],[273,10,273,11],[273,12,273,14],[273,15,273,16],[274,10,274,11],[262,23,262,28],[264,10,264,14],[264,15,268,16],[265,10,268,11],[265,12,268,14],[225,9,225,10],[225,11,225,12],[225,13,225,14],[225,15,225,16],[226,9,226,10],[226,11,226,12],[226,13,226,14],[226,15,226,16],[227,9,227,10],[227,11,227,12],[227,13,227,14],[227,15,227,16],[228,9,228,10],[228,11,228,12],[228,13,228,14],[228,15,228,16],[229,9,229,10],[229,11,229,12],[229,13,229,14],[282,11,284,12],[282,13,284,14],[282,15,284,16],[285,11,285,12],[285,13,285,14],[224,9,224,10],[224,11,224,12],[224,13,224,14],[224,15,224,16],[229,15,229,16],[244,7,244,11],[266,5,266,8],[269,10,269,11],[269,12,269,14],[269,15,269,16],[270,10,270,11],[270,12,270,14],[270,15,270,16],[271,10,271,11],[271,12,271,14],[271,15,271,16],[274,12,274,14],[274,15,274,16],[285,15,285,16],[3,7,3,31],[197,24,200,24],[197,25,200,25],[197,26,200,26],[197,27,200,27],[197,28,200,28],[197,29,200,29],[197,30,200,30],[197,31,200,31],[186,14,186,16],[187,10,187,11],[187,12,187,13],[187,14,187,16],[188,10,188,11],[188,12,188,13],[188,14,188,16],[45,14,45,15],[64,6,65,11],[64,14,64,16],[220,9,222,10],[220,11,222,12],[220,13,222,14],[220,15,222,16],[223,9,223,10],[223,11,223,12],[223,13,223,14],[223,15,223,16],[218,28,219,29],[218,30,219,31],[219,20,219,22],[202,7,202,11],[189,14,189,16],[195,24,196,27],[195,28,196,31],[196,19,196,21],[218,24,219,25],[189,4,189,7],[189,10,189,11],[189,12,189,13],[181,8,184,8],[181,9,184,9],[181,10,182,13],[182,3,183,7],[182,14,183,16],[183,10,184,11],[183,12,184,13],[85,11,85,13],[218,26,219,27],[185,10,185,11],[185,12,185,13],[185,14,185,16],[186,10,186,11],[186,12,186,13],[45,18,45,19],[57,11,57,13],[1,34,1,37],[46,33,46,34],[26,34,26,37],[28,11,28,37],[44,21,44,24],[44,33,44,34],[45,21,45,24],[45,30,45,31],[45,26,45,27],[44,30,44,31],[1,7,1,31],[2,7,2,31],[37,2,37,38],[44,18,44,19],[44,9,44,12],[2,34,4,37],[43,3,43,4],[44,14,44,15],[43,30,43,36],[30,30,30,37],[46,30,46,31],[47,33,47,34],[45,33,45,34],[47,3,47,4],[26,11,26,13],[107,26,107,31],[74,28,74,35],[82,28,82,35],[90,28,90,35],[30,11,30,25],[48,9,48,12],[48,3,48,4],[48,14,48,15],[48,21,48,24],[43,6,43,15],[44,26,44,27],[44,6,44,7],[45,3,45,4],[45,6,45,7],[45,9,45,12],[46,21,46,24],[46,3,46,4],[46,14,46,15],[46,9,46,12],[43,18,43,27],[47,6,47,7],[122,34,122,37],[47,18,47,19],[48,6,48,7],[47,9,47,12],[47,14,47,15],[46,18,46,19],[48,18,48,19],[46,6,46,7],[66,31,66,34],[48,33,48,34],[48,30,48,31],[48,26,48,27],[47,26,47,27],[47,21,47,24],[47,30,47,31],[46,26,46,27],[118,12,118,14],[104,8,104,13],[64,17,65,19],[65,14,65,16],[71,7,71,13]]}
[]
[null,null,null,null,null,null,null,"CENSO EDUCATIVO 2025",null,null,null,null,null,null,null,null,null,null,null,null,null,null,null,null,null,null,null,null,null,null,null,null,null,null,"CÉDULA"]
[null,null,null,null,null,null,null,"EDUCACIÓN BÁSICA ALTERNATIVA",null,null,null,null,null,null,null,null,null,null,null,null,null,null,null,null,null,null,null,null,null,null,null,null,null,null,"4AI"]
[null,null,null,null,null,null,null,"(INICIAL - INTERMEDIO)"]
[null,null,"Version :",null,"GA - 1.0"]
[null,null,"INSTRUCCIONES DEL FORMATO ELECTRÓNICO "]
[]
[]
[]
[]
[]
[]
[]
[]
[]
[]
[]
[]
[]
[]
[]
[]
[]
[null,null,"IDENTIFICACIÓN DEL SERVICIO EDUCATIVO"]
[]
[]
[null,null,null,null,"1. CÓDIGO MODULAR :",null,null,null,null,null,null,null,null,null,null,null,null,null,null,null,null,null,null,null,null,null,null,null,null,null,null,null,"2. CÓDIGO DE LOCAL EDUCATIVO :"]
[]
[null,null,null,null,"3. NOMBRE DEL CEBA :",null,null,null,null,null,null,""]
[]
[null,null,null,null,"4. DISTRITO :",null,null,null,null,null,null,null,null,null,null,null,null,null,null,null,null,null,null,null,null,null,null,"LOCALIDAD :"]
[]
[]
["GESTIÓN"]
[{"$f":"CONCATENATE(TRIM(UPPER(O35)),TRIM(UPPER(X35)),TRIM(UPPER(AG35)))","v":""},null,null,"Esta Institución Educativa es de Gestión : ",null,null,null,null,null,null,null,null,null,null,null," 1 - Pública de gestión directa",null,null,null,null,null,null,null,null," 2 - Pública de gestión privada",null,null,null,null,null,null,null,null," 3 - Privada"]
[]
[]
[null,null,"100. CARACTERÍSTICA DEL SERVICIO EDUCATIVO"]
[]
[null,null,null,"A. CARACTERÍSTICA DE LA ENSEÑANZA"]
[null,null,null,"101.A INDIQUE, ¿CUÁNTOS PERÍODOS PROMOCIONALES HA PREVISTO EN EL PRESENTE AÑO?"]
[null,null,null,"Anote la respuesta en los casilleros correspondientes"]
[]
[null,null,null,{"$f":"SUM(D46:E49)","v":0},null,null,"INICIO (*)",null,null,null,null,null,null,null,null,null,null,null,"FINALIZACIÓN (*)",null,null,null,null,null,null,null,null,null,null,null,"TURNO"]
[null,null,null,"Periodo",null,null,"Dia",null,null,"Mes",null,null,null,null,"Año",null,null,null,"Dia",null,null,"Mes",null,null,null,null,"Año",null,null,null,"Mañana",null,null,"Tarde",null,null,"Noche"]
[{"$f":"COUNTIF($D$46:$E$49,$D46)","v":0},null,null,null,null,null,null,null,null,null,null,null,null,null,null,null,{"$f":"IF(AND(G46<>\"\",J46<>\"\",O46<>\"\"),0,1)","v":1},null,null,null,null,null,null,null,null,null,null,null,{"$f":"IF(AND(S46<>\"\",V46<>\"\",AA46<>\"\"),0,1)","v":1},null,null,null,null,null,null,null,null,{"$f":"IF(OR(AE46<>\"\",AH46<>\"\",AK46<>\"\"),0,1)","v":1}]
[{"$f":"COUNTIF($D$46:$E$49,$D47)","v":0},null,null,null,null,null,null,null,null,null,null,null,null,null,null,null,{"$f":"IF(AND(G47<>\"\",J47<>\"\",O47<>\"\"),0,1)","v":1},null,null,null,null,null,null,null,null,null,null,null,{"$f":"IF(AND(S47<>\"\",V47<>\"\",AA47<>\"\"),0,1)","v":1},null,null,null,null,null,null,null,null,{"$f":"IF(OR(AE47<>\"\",AH47<>\"\",AK47<>\"\"),0,1)","v":1}]
[{"$f":"COUNTIF($D$46:$E$49,$D48)","v":0},null,null,null,null,null,null,null,null,null,null,null,null,null,null,null,{"$f":"IF(AND(G48<>\"\",J48<>\"\",O48<>\"\"),0,1)","v":1},null,null,null,null,null,null,null,null,null,null,null,{"$f":"IF(AND(S48<>\"\",V48<>\"\",AA48<>\"\"),0,1)","v":1},null,null,null,null,null,null,null,null,{"$f":"IF(OR(AE48<>\"\",AH48<>\"\",AK48<>\"\"),0,1)","v":1}]
[{"$f":"COUNTIF($D$46:$E$49,$D49)","v":0},null,null,null,null,null,null,null,null,null,null,null,null,null,null,null,{"$f":"IF(AND(G49<>\"\",J49<>\"\",O49<>\"\"),0,1)","v":1},null,null,null,null,null,null,null,null,null,null,null,{"$f":"IF(AND(S49<>\"\",V49<>\"\",AA49<>\"\"),0,1)","v":1},null,null,null,null,null,null,null,null,{"$f":"IF(OR(AE49<>\"\",AH49<>\"\",AK49<>\"\"),0,1)","v":1}]
[null,null,null,"(*) Inicio y finalización puede corresponder al 2023 y 2024 respectivamente."]
[]
[null,null,null,"102.A ¿ EL CEBA TIENE PERIFÉRICOS A CARGO ?",null,null,null,null,null,null,null,null,null,null,null,null,null,null,null,null,null,null,"104.A ¿CUÁNTOS PERIFÉRICOS FUNCIONAN DURANTE LA SEMANA?"]
[null,null,null,null,null,null,null,null,null,null,null,null,null,null,null,null,null,null,null,null,null,null,null,"Marque con un aspa “X” los días y anote en los casilleros el número de"]
[null,null,null,null,"Sí",null,null,null,null,null,null,"No",null,null,null,"Pase a la pregunta 105.A",null,null,null,null,null,null,null,"periféricos según corresponda"]
[{"$f":"CONCATENATE(F54,M54)","v":""}]
[null,null,null,"103.A ¿ CUÁNTOS PERIFÉRICOS ESTÁN ASOCIADOS AL CEBA ?",null,null,null,null,null,null,null,null,null,null,null,null,null,null,null,null,null,null,null,null,null,null,null,null,null,"Lu","Ma","Mi","Ju","Vi","Sa","Do"]
[null,null,null,null,null,null,null,null,null,null,null,null,null,null,null,null,null,null,null,null,null,null,null,"Dias de la semana"]
[null,null,null,null,null,"Cuantos",null,null,null,null,null,null,null,null,null,null,null,null,null,null,null,null,null,"Nº de Perifericos"]
[]
[]
[null,null,null,"105.A. ESTE CEBA REFERENCIAL O ALGÚN PERIFÉRICO, ¿ATIENDE LA POBLACIÓN MATRICULADA EN:?",null,null,null,null,null,null,null,null,null,null,null,null,null,null,null,null,null,null,"113.A. ¿EL CEBA TIENE EL CONSEJO EDUCATIVO INSTITUCIONAL (CONEI)"]
[null,null,null,null,null,null,null,null,null,null,null,null,null,null,null,null,null,null,null,null,null,null,null,"RECONOCIDO CON RESOLUCIÓN DIRECTORAL?"]
[null,null,null,null,"Marque con una “X” uno o más casilleros"]
[null,null,null,null,null,null,null,null,null,null,null,null,null,null,null,null,null,null,null,null,null,null,null,"Sí",null,null,null,null,null,null,"No"]
[null,null,null,null,null,null,"Centro / Dependencia",null,null,null,null,null,null,null,"CEBA",null,null,"Periférico"]
[null,null,null,null,null,null,null,null,null,null,null,null,null,{"$f":"COUNTIF(P67:S72,\"X\")","v":0},"Referencial"]
[null,null,null,null,1,"Centro Penitenciario",null,null,null,null,null,null,null,null,null,null,null,null,null,null,null,null,null,null,null,null,"Nº de resolución : ",null,null,null,null,""]
[null,null,null,null,2,"Muelle o Caleta"]
[null,null,null,null,3,"Dependencia de FF.AA. (cuarteles)",null,null,null,null,null,null,null,null,null,null,null,null,null,null,null,null,"114.A. EL CEBA HA IMPLEMENTADO LAS PROPUESTAS PEDAGÓGICAS SIGUIENTES :"]
[null,null,null,null,4,"Centro de Adulto Mayor",null,null,null,null,null,null,null,null,null,null,null,null,null,null,null,null,null,"Marque con una “X”, una o más opciones"]
[null,null,null,null,5,"Centros Juveniles de Diagnóstico y Rehabilitación"]
[null,null,null,null,6,"Otro",null,null,null,null,null,null,null,null,{"$f":"CONCATENATE(P72,S72)","v":""},null,null,null,null,null,null,null,null,null,null,"Personas Adulto Mayor (PAM)"]
[null,null,null,null,null,null,null,null,null,null,null,null,null,null,null,null,null,null,null,null,null,null,null,null,null,"Personas Privadas de Libertad (PPL)"]
[null,null,null,"106.A. ¿REALIZÓ LA RESERVA COMO MÍNIMO DE (02) VACANTES POR CADA AULA",null,null,null,null,null,null,null,null,null,null,null,null,null,null,null,null,null,null,null,null,null,"Personas dedicadas a la Pesca Artesanal"]
[null,null,null,null,"PARA ESTUDIANTES CON NECESIDADES EDUCATIVAS ESPECIALES ASOCIADA",null,null,null,null,null,null,null,null,null,null,null,null,null,null,null,null,null,null,null,null,"Otros"]
[null,null,null,null,"A DISCAPACIDAD LEVE O MODERADA?"]
[null,null,null,null,null,null,null,null,null,null,null,null,null,null,null,null,null,null,null,null,null,null,"115.A ¿EL CEBA HA ELABORADO MATERIALES EDUCATIVOS PROPIOS COMO?"]
[null,null,null,null,"Sí",null,null,null,null,null,null,"No",null,null,null,null,null,null,null,null,null,null,null,"Marque con una “X”, una o más opciones"]
[]
[null,null,null,"107.A. ¿EL CEBA CUENTA CON CÍRCULOS DE APRENDIZAJE?",null,null,null,null,null,null,null,null,null,null,null,null,null,null,null,null,null,null,null,null,null,"Módulos de Auto Aprendizaje"]
[null,null,null,null,null,null,null,null,null,null,null,null,null,null,null,null,null,null,null,null,null,null,null,null,null,"Textos"]
[null,null,null,null,"Sí",null,null,null,null,null,null,"No",null,null,null,"Pase a la pregunta 110.A",null,null,null,null,null,null,null,null,null,"Fascículos"]
[null,null,null,null,null,null,null,null,null,null,null,null,null,null,null,null,null,null,null,null,null,null,null,null,null,"Otros"]
[null,null,null,"108.A ¿CUÁNTOS CÍRCULOS DE APRENDIZAJE ESTÁN ADSCRITOS AL CEBA?"]
[null,null,null,null,null,null,null,null,null,null,null,null,null,null,null,null,null,null,null,null,null,null,"116.A EL LOCAL DONDE FUNCIONA EL CEBA REFERENCIAL ES:"]
[null,null,null,null,null,"Cuántos",null,null,null,null,null,null,null,null,null,null,null,null,null,null,null,null,null,"Marque con un aspa “X” solo un casillero"]
[]
[null,null,null,"109.A. ¿CUÁNTOS CÍRCULOS DE APRENDIZAJE FUNCIONAN DURANTE LA SEMANA?",null,null,null,null,null,null,null,null,null,null,null,null,null,null,null,null,null,null,null,null,null,"Propio"]
[null,null,null,null,"Marque con un aspa “X” los dias y anote en los casilleros el número de",null,null,null,null,null,null,null,null,null,null,null,null,null,null,null,null,null,null,null,null,"Alquilado"]
[null,null,null,null,"círculos de aprendizaje según corresponda",null,null,null,null,null,null,null,null,null,null,null,null,null,null,null,null,null,null,null,null,"Prestado"]
[null,null,null,null,null,null,null,null,null,null,null,null,"Lu","Ma","Mi","Ju","Vi","Sa","Do",null,null,null,null,null,null,"Otros"]
[null,null,null,null,"Dias de la semana"]
[null,null,null,null,"Nº de Círculos de Aprendizaje",null,null,null,null,null,null,null,null,null,null,null,null,null,null,null,null,null,"117.A EL LOCAL QUE OCUPA EL CEBA REFERENCIAL ES:"]
[null,null,null,null,null,null,null,null,null,null,null,null,null,null,null,null,null,null,null,null,null,null,null,"Marque con un aspa “X” solo un casillero"]
[null,null,null,"110.A ¿EL CEBA TIENE CONVENIO CON...?"]
[null,null,null,null,"Marque con una “X”, una o más opciones",null,null,null,null,null,null,null,null,null,null,null,null,null,null,null,null,null,null,null,null,"De uso exclusivo del CEBA"]
[]
[null,null,null,null,null,null,"Intitutos o Escuelas de Educación Superior",null,null,null,null,null,null,null,null,null,null,null,null,null,null,null,null,null,null,"De uso compartido con otros niveles educativos"]
[null,null,null,null,null,null,"Centro de Educación Técnico Productiva (CETPRO)"]
[null,null,null,null,null,null,"Instituto Nacional Penitenciario (INPE)",null,null,null,null,null,null,null,null,null,null,null,null,null,null,null,"118.A EN LOS ÚLTIMOS TRES MESES, ¿SE COORDINÓ U OFRECIO ALGÚN PROGRAMA"]
[null,null,null,null,null,null,"Gobierno Local",null,null,null,null,null,null,null,null,null,null,null,null,null,null,null,null,"O SERVICIO, CÓMO?:"]
[null,null,null,null,null,null,"Gobierno Regional",null,null,null,null,null,null,null,null,null,null,null,null,null,null,null,null,"Marque con una “X”, una o más opciones"]
[null,null,null,null,null,null,"Empresas"]
[null,null,null,null,null,null,"Centros juveniles de diagnóstico y rehabilitación (CJDR)",null,null,null,null,null,null,null,null,null,null,null,null,null,null,null,null,null,null,"Campaña de vacunación"]
[null,null,null,null,null,null,"Otro ",null,null,null,null,null,null,null,null,null,null,null,null,null,null,null,null,null,null,"SAANEE"]
[null,null,null,null,null,null,"Ninguno",null,null,null,null,null,null,null,null,null,null,null,null,null,null,null,null,null,null,"Programa de Intervención temprana (PRITE)"]
[null,null,null,null,null,null,null,null,null,null,null,null,null,null,null,null,null,null,null,null,null,null,null,null,null,"Servicio de Apoyo Educativo Virtual (SAEV)"]
[null,null,null,"111.A. ¿HA DESARROLLADO ACTIVIDADES FORMATIVAS SOBRE EDUCACIÓN SEXUAL",null,null,null,null,null,null,null,null,null,null,null,null,null,null,null,null,null,null,null,null,null,"Otro"]
[null,null,null,null,"INTEGRAL (ESI)?",null,null,null,null,null,null,null,null,null,null,null,null,null,null,null,null,null,null,null,null,"Ninguno"]
[]
[null,null,null,null,"Sí",null,null,null,null,null,null,"No",null,null,null,null,null,null,null,null,null,null,"119.A. DURANTE EL AÑO 2023 ¿QUÉ ACTIVIDADES CON FAMILIAS SE HAN"]
[null,null,null,null,null,null,null,null,null,null,null,null,null,null,null,null,null,null,null,null,null,null,null,"REALIZADO DESDE ESTE SERVICIO/NIVEL EDUCATIVO?"]
[null,null,null,"112.A ¿EL CEBA TIENE EL CONSEJO DE PARTICIPACIÓN DE ESTUDIANTES"]
[null,null,null,null,"(COPAE) RECONOCIDO CON RESOLUCIÓN DIRECTORAL?",null,null,null,null,null,null,null,null,null,null,null,null,null,null,null,null,null,null,"Sí",null,null,null,null,null,null,"No"]
[]
[null,null,null,null,"Sí",null,null,null,null,null,null,"No"]
[null,null,null,null,null,null,null,null,null,null,null,null,null,null,null,null,null,null,null,null,null,null,null,null,"¿Qué actividades se están implementando?"]
[null,null,null,null,null,null,null,null,null,null,null,null,null,null,null,null,null,null,null,null,null,null,null,null,"Marque con una “X”, una o más opciones"]
[null,null,null,null,null,null,null,"Nº de resolución : ",null,null,null,null,"",null,null,null,null,null,null,null,null,null,null,null,null,"Encuentros y Jornadas"]
[null,null,null,null,null,null,null,null,null,null,null,null,null,null,null,null,null,null,null,null,null,null,null,null,null,"Talleres"]
[null,null,null,null,null,null,null,null,null,null,null,null,null,null,null,null,null,null,null,null,null,null,null,null,null,"Reuniones"]
[null,null,null,null,null,null,null,null,null,null,null,null,null,null,null,null,null,null,null,null,null,null,null,null,null,"Otros"]
[null,null,null,null,null,null,null,null,null,null,null,null,null,null,null,null,null,null,null,null,null,null,null,null,null,"Ninguna"]
[]
[]
[]
[]
[]
[]
[]
[]
[null," "]
[]
[]
[]
[]
[]
[]
[]
[]
[]
[]
[]
[]
[]
[]
[]
[]
[]
[]
[]
[]
[]
[]
[]
[]
[]
[]
[]
[]
[]
[]
[]
[]
[]
[]
[]
[]
[]
[]
[]
[]
[]
[]
[]
[]
["SI-NO",null,null,"B. TUTORÍA , ORIENTACIÓN EDUCATIVA Y CONVIVENCIA ESCOLAR"]
["SI",null,null,"101.B. INDIQUE, ¿CON CUÁLES DE LOS SIGUIENTES ESPACIOS DE PARTICIPACIÓN ",null,null,null,null,null,null,null,null,null,null,null,null,null,null,null,"105.B. EL CEBA, ¿INCLUYE EN EL PLAN TOECE, ACTIVIDADES VINCULADAS"]
["NO",null,null,null,"CUENTA ESTE CEBA Y CON QUÉ FRECUENCIA SE REÚNEN?",null,null,null,null,null,null,null,null,null,null,null,null,null,null,null,"A LA CONVIVENCIA ESCOLAR Y PREVENCIÓN/ATENCIÓN DE LA VIOLENCIA ESCOLAR?"]
[null,null,null,null,"Seleccione y complete la o las alternativas que correspondan"]
[null,null,null,null,null,null,null,null,null,null,null,null,null,null,null,null,null,null,null,null,"Sí",null,null,null,null,"No  ",null,null,"Pase a la pregunta 109.B"]
[null,null,null,null,null,null,null,null,"¿Cuénta con este espacio?","¿Está confor mado mediante (RD)?","Número y Fecha de Resolución Directoral"]
[null,null,null,"Espacio de Participación",null,null,null,null,null,null,null,null,null,null,"¿Con qué frecuencia se reúnen?",null,null,null,null,"106.B. EN EL TRANSCURSO DEL PRESENTE AÑO, ¿HA IMPLEMENTADO AL MENOS TRES ACTIVIDADES",null,null,null,null,null,null,null,null,null,null,null,null,{"$f":"CONCATENATE(K208,AA181,AA187)","v":""}]
[null,null,null,null,null,null,null,null,null,null,"Nro de RD",null," Fecha de RD\ndd/mm/aaaa",null,null,null,null,null,null,null,"RELACIONADAS A LA PROMOCIÓN DE LA CONVIVENCIA ESCOLAR, LA PREVENCIÓN Y LA"]
[null,null,null,null,null,null,null,null,null,null,null,null,null,null,null,null,null,null,null,null,"ATENCIÓN DE LA VIOLENCIA ESCOLAR DEL PLAN TOECE?"]
[1,null,null,"Comité de Gestión de Cond. Operat.",null,null,null,null,null,null,null,null,null,null,null,null,null,{"$f":"IF(OR(K186=\"\",M186=\"\",O186=\"\"),1,0)","v":1}]
[2,null,null,"Comité de Gestión del Bienestar",null,null,null,null,null,null,null,null,null,null,null,null,null,{"$f":"IF(OR(K187=\"\",M187=\"\",O187=\"\"),1,0)","v":1},null,null,"Sí",null,null,null,null,"No  ",null,null,"Pase a la pregunta 109.B"]
[3,null,null,"Comité de Gestión Pedagógica ",null,null,null,null,null,null,null,null,null,null,null,null,null,1]
[4,null,null,"Consejo Educativo Institucional",null,null,null,null,null,null,null,null,null,null,null,null,null,1,null,null,null,null,null,"Precisar número de actividades"]
[5,null,null,"Otro",null,null,null,null,null,null,null,null,null,null,null,null,null,1]
[null,null,null,null,null,null,null,null,{"$f":"COUNTIF(I186:I190,\"SI\")+COUNTIF(I186:I190,\"NO\")","v":0}]
["1: Semanal",null,null,"102.B. SOLO SI MARCO QUE CUENTA CON “COMITE DE GESTIÓN DEL BIENESTAR”,",null,null,null,null,null,null,null,null,null,null,null,null,null,null,null,"107.B. ¿EN QUÉ FECHAS REALIZÓ LAS ACTIVIDADES RELACIONADAS CON LA PROMOCIÓN"]
["2: Quincenal",null,null,null,"¿QUÉ ACTORES LO CONFORMAN?",null,null,null,null,null,null,null,null,null,null,null,null,null,null,null,"DE LA CONVIVENCIA ESCOLAR, LA PREVENCIÓN Y LA ATENCIÓN DE LA VIOLENCIA ESCOLAR?"]
["3: Mensual",null,null,null,"Marque con una “X”, una o más opciones"]
["4: Bimensual",null,null,null,null,null,null,null,null,null,null,null,null,null,null,null,null,null,null,null,null,null,null,null,null,null,null,"Medios de verificación"]
["5: Trimestral",null,null,null,null,"Director/a de la IE",null,null,null,null,null,null,null,null,null,null,null,null,null,null,null,null,null,null,"Convivencia escolar democrática",null,null,null,"Prevención de la violencia contra la y los estudiantes"]
["6: Semestral",null,null,null,null,"Coordinador/a de tutoría",null,null,null,null,null,null,null,null,null,null,null,null,null,"Actividades",null,null,"Día","Mes"]
["7: No se reunen",null,null,null,null,"El/la responsable de convivencia",null,null,null,null,null,null,null,null,null,null,null,null,null,null,null,null,null,null,"Informe de actividades","Fotografías","Videos","Otros","Informe de actividades","Fotografías","Videos","Otros"]
[null,null,null,null,null,"El/la responsable de inclusión"]
[null,null,null,null,null,"Un/a representante de los padres y madres de familia, tutores legales o apoderados/as."]
[null,null,null,null,null,"Un/a representante de las y los estudiantes",null,null,null,null,null,null,null,null,null,null,null,null,null,null,null,{"$f":"SUM(V202:X211)","v":0}]
[null,null,null,null,null,"Un/a psicólogo, cuando exista el cargo en la IE",null,null,null,null,null,null,null,null,null,null,null,null,1,{"$f":"IF($S202<=$AD$189,CONCATENATE(\"Actividad - 0\",$S202),\"\")","v":""},null,{"$f":"COUNTIF(Y202:AF202,\"X\")","v":0}]
[null,null,null,null,null,"Otros",null,null,null,null,null,null,null,null,null,null,null,null,2,{"$f":"IF($S203<=$AD$189,CONCATENATE(\"Actividad - 0\",$S203),\"\")","v":""},null,0]
[null,null,null,null,null,null,null,null,null,null,null,null,null,null,null,null,null,null,3,"",null,0]
[null,null,null,"103.B. EN EL PRESENTE AÑO, ESTE CEBA, ¿CUENTA CON EL PLAN DE TUTORÍA,",null,null,null,null,null,null,null,null,null,null,null,null,null,null,4,"",null,0]
[null,null,null,null,"ORIENTACIÓN EDUCATIVA Y CONVIVENCIA ESCOLAR (PLAN TOECE)?",null,null,null,null,null,null,null,null,null,null,null,null,null,5,"",null,0]
[null,null,null,null,null,null,null,null,null,null,null,null,null,null,null,null,null,null,6,"",null,0]
[null,null,null,null,"Sí",null,null,null,null,"No  ",null,null,"Pase a la pregunta 109.B",null,null,null,null,null,7,"",null,0]
[null,null,null,null,null,null,null,null,null,null,null,null,null,null,null,null,null,null,8,"",null,0]
[null,null,null,null,null,null,null,"¿Está incorporado en el Plan Anual de Trabajo (PAT) de la IE?",null,null,null,null,null,null,null,null,null,null,9,"",null,0]
[null,null,null,null,null,null,null,null,null,null,null,null,null,null,null,null,null,null,10,{"$f":"IF($S211<=$AD$189,CONCATENATE(\"Actividad - \",$S211),\"\")","v":""},null,0]
[null,null,null,null,null,null,null,null,null,"Sí  ",null,null,null,null,"No  "]
[null,null,null,""]
[null,null,null,"",null,null,null,"¿El PAT de la IE que incluye al Plan TOECE está reconocido con RD?",null,null,null,null,null,null,null,null,null,null,null,"108.B. ¿QUIÉNES FUERON LOS PARTICIPANTES Y LA CANTIDAD DEL PÚBLICO OBJETIVO DE LAS"]
[{"$f":"CONCATENATE(E220,E229)","v":""},null,null,null,null,null,null,null,null,null,null,null,null,null,null,null,null,null,null,null,"ACTIVIDADES RELACIONADAS CON LA PROMOCIÓN DE LA CONVIVENCIA ESCOLAR,"]
[{"$f":"CONCATENATE(G220,G229)","v":""},null,null,null,null,null,null,null,null,"Sí  ",null,null,null,null,"No  ",null,null,null,null,null,"LA PREVENCIÓN Y LA ATENCIÓN DE LA VIOLENCIA ESCOLAR?"]
[]
[null,null,null,"104.B. SEÑOR(A) DIRECTOR(A), DE LAS SIGUIENTES ACTIVIDADES, ¿CUÁLES SE HAN INCORPORADO"]
[null,null,null,null,"EN EL PLAN DE TUTORÍA, ORIENTACIÓN EDUCATIVA Y CONVIVENCIA ESCOLAR (TOECE)?",null,null,null,null,null,null,null,null,null,null,null,null,null,null,null,null,null,null,null,"Docente",null,"Estudiantes",null,"Familias",null,"Personal Administrativo"]
["SI",null,null,null,null,null,null,null,null,null,null,null,null,null,null,null,null,null,null,null,"Actividades"]
["NO",null,null,null,null,null,null,null,null,"¿Se \nincorporó?",null,"¿Se\nimplementó?",null,"¿Cuántas\nacciones?",null,"¿Ha recibido\nasistencia\ntécnica?",null,null,null,null,null,null,null,{"$f":"SUM(X222:X232)","v":0},"Si-No","Cantidad","Si-No","Cantidad","Si-No","Cantidad","Si-No","Cantidad"]
[null,null,null,null,"Actividad",null,null,null,null,null,null,null,null,null,null,null,null,null,null,1,{"$f":"IF($T222<=$AD$189,CONCATENATE(\"Actividad - 0\",$T222),\"\")","v":""},null,null,{"$f":"Z222+AB222+AD222+AF222","v":0},null,null,null,null,null,null,null,null,{"$f":"IF(OR(Y222=\"SI\",AA222=\"SI\",AC222=\"SI\",AE222=\"SI\"),1,0)","v":0}]
[null,null,null,null,null,null,null,null,null,null,null,null,null,null,null,null,null,null,null,2,{"$f":"IF($T223<=$AD$189,CONCATENATE(\"Actividad - 0\",$T223),\"\")","v":""},null,null,{"$f":"Z223+AB223+AD223+AF223","v":0},null,null,null,null,null,null,null,null,{"$f":"IF(OR(Y223=\"SI\",AA223=\"SI\",AC223=\"SI\",AE223=\"SI\"),1,0)","v":0}]
[1,null,null,"Taller con docentes y otros miembros de la comunidad educativa",null,null,null,null,null,null,null,null,null,null,null,null,null,null,null,3,"",null,null,{"$f":"Z224+AB224+AD224+AF224","v":0},null,null,null,null,null,null,null,null,0]
[2,null,null,"Taller con docentes para implementar la educación sexual integral",null,null,null,null,null,null,null,null,null,null,null,null,null,null,null,4,"",null,null,0,null,null,null,null,null,null,null,null,0]
[3,null,null,"Reuniones de trabajo entre tutores y otros docentes",null,null,null,null,null,null,null,null,null,null,null,null,null,null,null,5,"",null,null,0,null,null,null,null,null,null,null,null,0]
[4,null,null,"Actividad para prevenir alguna situación de riesgo",null,null,null,null,null,null,null,null,null,null,null,null,null,null,null,6,"",null,null,0,null,null,null,null,null,null,null,null,0]
[5,null,null,"Actividad para promover la participación estudiantil",null,null,null,null,null,null,null,null,null,null,null,null,null,null,null,7,"",null,null,0,null,null,null,null,null,null,null,null,0]
[6,null,null,"Identificación de aliados para la atención de casos de riesgos",null,null,null,null,null,null,null,null,null,null,null,null,null,null,null,8,"",null,null,0,null,null,null,null,null,null,null,null,0]
[7,null,null,"Actividades para valorar la diversidad",null,null,null,null,null,null,null,null,null,null,null,null,null,null,null,9,"",null,null,0,null,null,null,null,null,null,null,null,0]
[8,null,null,null,null,null,null,null,null,{"$f":"COUNTIF(J224:K230,\"SI\")+COUNTIF(J224:K230,\"NO\")","v":0},null,"",null,"",null,"",null,null,null,10,{"$f":"IF($T231<=$AD$189,CONCATENATE(\"Actividad - \",$T231),\"\")","v":""},null,null,0,null,null,null,null,null,null,null,null,0]
[null,null,null,null,null,null,null,null,null,null,null,null,null,null,null,null,null,null,null,null,null,null,null,{"$f":"Y232+AA232+AC232+AE232","v":0},{"$f":"COUNTIF(Y222:Y231,\"SI\")+COUNTIF(Y222:Y231,\"NO\")","v":0},null,{"$f":"COUNTIF(AA222:AA231,\"SI\")+COUNTIF(AA222:AA231,\"NO\")","v":0},null,{"$f":"COUNTIF(AC222:AC231,\"SI\")+COUNTIF(AC222:AC231,\"NO\")","v":0},null,{"$f":"COUNTIF(AE222:AE231,\"SI\")+COUNTIF(AE222:AE231,\"NO\")","v":0},null,{"$f":"SUM(AG222:AG231)","v":0}]
[]
[null,null,null,"109.B. EN EL PRESENTE AÑO, ¿CUÁLES SON LAS ACTIVIDADES QUE REALIZÓ ESTE CEBA",null,null,null,null,null,null,null,null,null,null,null,null,null,null,null,"112.B. ACTUALMENTE LOS DOCENTES ENCARGADOS DE TUTORÍA O PERSONAL DE TUTORÍA,"]
[null,null,null,null,"PARA LA PROMOCIÓN DE LA CONVIVENCIA ESCOLAR Y/O PREVENCIÓN DE LA",null,null,null,null,null,null,null,null,null,null,null,null,null,null,null,"¿INCORPORAN EN LA PLANIFICACIÓN ANUAL DE AULA LAS ACTIVIDADES RELACIONADAS"]
[null,null,null,null,"VIOLENCIA CONTRA LAS Y LOS ESTUDIANTES?",null,null,null,null,null,null,null,null,null,null,null,null,null,null,null,"CON LA TUTORÍA Y ORIENTACIÓN EDUCATIVA?"]
[null,null,null,null,"Marque con una “X”, una o más opciones"]
[null,null,null,null,null,null,null,null,null,null,null,null,null,null,null,null,null,null,null,null,"Sí",null,null,null,null,"No  "]
[null,null,null,null,null,"Gestión de talleres o reuniones con estudiantes."]
[null,null,null,null,null,"Capacitación a docentes para prevenir y/o atender casos de riesgo.",null,null,null,null,null,null,null,null,null,null,null,null,null,null,null,null,null,"¿Cuántos docentes?"]
[null,null,null,null,null,"Envío de orientaciones a apoderados/as."]
[null,null,null,null,null,"Gestión de talleres o reuniones con apoderados/as."]
[null,null,null,null,null,"Gestión de estrategias en conjunto con otras organizaciones.",null,null,null,null,null,null,null,null,null,null,null,null,null,"113.B. EN EL AÑO 2024, EL CEBA, ¿HA RECIBIDO ASISTENCIA TÉCNICA"]
[null,null,null,null,null,"Monitoreo de situación emocional y familiar de estudiantes.",null,null,null,null,null,null,null,null,null,null,null,null,null,null,"DEL ESPECIALISTA DE CONVIVENCIA ESCOLAR DE LA MINEDU/DRE/GRE/UGEL?"]
[null,null,null,null,null,"Otro"]
[null,null,null,null,null,null,null,null,null,null,null,null,null,null,null,null,null,null,null,null,"Sí",null,null,null,null,"No  ",null,null,"Pase a la pregunta 115.B."]
[null,null,null,"110.B. SEÑOR(A) DIRECTOR(A), ¿QUÉ ACCIONES SE HAN REALIZADO DESDE ESTE CEBA"]
[null,null,null,null,"PARA MEJORAR LA CONVIVENCIA ENTRE ESTUDIANTES?",null,null,null,null,null,null,null,null,null,null,null,null,null,null,null,null,null,null,null,"Indique el número de veces que recibió"]
[null,null,null,null,"Marque con una “X”, una o más opciones",null,null,null,null,null,null,null,null,null,null,null,null,null,null,null,null,null,null,null,"asistencia técnica:"]
[]
[null,null,null,null,null,"Implementa acciones que fomenten el respeto, el diálogo y búsqueda de acuerdos …"]
[null,null,null,null,null,"Fomenta la construcción de relaciones interpersonales y afectivas en igualdad de género.",null,null,null,null,null,null,null,null,null,null,null,null,null,"114.B. ¿QUÉ TEMAS HAN SIDO ABORDADOS EN LA ASISTENCIA TÉCNICA BRINDADA POR EL"]
[null,null,null,null,null,"Implementa acciones para la prevención de la violencia y el manejo de conflictos.",null,null,null,null,null,null,null,null,null,null,null,null,null,null,"ESPECIALISTA DE CONVIVENCIA ESCOLAR DE LA UGEL?"]
[null,null,null,null,null,"Promueve la práctica de acciones para la superación de todo tipo de discriminación.",null,null,null,null,null,null,null,null,null,null,null,null,null,null,"Marque con una \"X\", una o más opciones"]
[]
[null,null,null,"111.B. ESTE CEBA, ¿CUENTA CON UN MAPA O DIRECTORIO DE ALIADOS",null,null,null,null,null,null,null,null,null,null,null,null,null,null,null,null,null,"Disciplina con enfoque de derechos (sin maltrato ni humillación)"]
[null,null,null,null,"ESTRATÉGICOS PARA LA PREVENCIÓN Y ATENCIÓN DE CASOS DE VIOLENCIA ESCOLAR?",null,null,null,null,null,null,null,null,null,null,null,null,null,null,null,null,"Normas de convivencia concertadas en la escuela"]
[null,null,null,null,null,null,null,null,null,null,null,null,null,null,null,null,null,null,null,null,null,"Participación estudiantil para la prevención de la violencia"]
[null,null,null,null,"Sí",null,null,null,null,"No  ",null,null,null,null,null,null,null,null,null,null,null,"Educación Sexual Integral para la prevención de la violencia"]
[null,null,null,null,null,null,null,null,null,null,null,null,null,null,null,null,null,null,null,null,null,"Tipos de violencia, señales de alerta y cultura de reporte"]
[null,null,null,null,null,null,null,null,null,null,null,null,null,null,null,null,null,null,null,null,null,"Protocolos de atención a la violencia hacia niñas, niños y adolescentes"]
[null,null,null,null,null,"Indique, ¿Quiénes lo conforman, con quiénes viene trabajando",null,null,null,null,null,null,null,null,null,null,null,null,null,null,null,"Capacitación del uso del portal SíseVe"]
[null,null,null,null,null,"actualmente y si ha realizado alguna actividad coordinada?",null,null,null,null,null,null,null,null,null,null,null,null,null,null,null,"Otros"]
["Meses"]
["01: Enero",null,null,null,null,null,null,null,null,null,"¿Trabaja actualmente en?",null,null,null,null,"¿Ha realizado alguna actividad coordinada?"]
["02: Febrero",null,null,null,null,null,null,null,null,null,"Prevención y atención de casos de violencia",null,"Promover el bienestar socioemocional de los estudiantes",null,null,null,null,null,null,"115.B. EN EL PRESENTE AÑO, ¿QUE ESTRATEGIAS DE TUTORIA Y ORIENTACION EDUCATIVA"]
["03: Marzo",null,null,null,null,"Aliados estratégicos",null,null,null,null,null,null,null,null,null,null,null,null,null,null,"SE VIENE IMPLEMENTANDO EN ESTE CEBA DE MANERA PERMANENTE?"]
["04: Abril",null,null,null,null,null,null,null,null,null,null,null,null,null,null,null,null,null,null,null,"Marque con una \"X\", una o más opciones"]
["05: Mayo",null,null,null,null,null,null,null,null,{"$f":"K277+M277+P277","v":0}]
["06: Junio",null,null,null,null,1,"DEMUNA",null,null,null,null,null,null,null,null,null,null,null,null,null,null,"Tutoría Individual"]
["07: Julio",null,null,null,null,2,"Defensoría del pueblo",null,null,null,null,null,null,null,null,null,null,null,null,null,null,"Tutoría grupal"]
["08: Agosto",null,null,null,null,3,"Centro de emergencia Mujer",null,null,null,null,null,null,null,null,null,null,null,null,null,null,"Participación estudiantil"]
["09: Septiembre",null,null,null,null,4,"Centro o posta de salud",null,null,null,null,null,null,null,null,null,null,null,null,null,null,"Trabajo con las familias y la comunidad"]
["10: Octubre",null,null,null,null,5,"Iglesia",null,null,null,null,null,null,null,null,null,null,null,null,null,null,"Orientación Educativa permanente"]
["11: Noviembre",null,null,null,null,6,"Comisaría",null,null,null,null,null,null,null,null,null,null,null,null,null,null,"Otro"]
["12: Diciembre",null,null,null,null,7,"Otro",null,null,null,null,null,null,null,null,null,null,null,null,null,null,"Ninguno"]
["01: Enero",null,null,null,null,null,null,null,null,null,{"$f":"COUNTIF(K269:K276,\"SI\")+COUNTIF(K269:K276,\"NO\")","v":0},null,{"$f":"COUNTIF(M269:M276,\"SI\")+COUNTIF(M269:M276,\"NO\")","v":0},null,null,{"$f":"COUNTIF(P269:P276,\"SI\")+COUNTIF(P269:P276,\"NO\")","v":0}]
[]
["Años",null,null,"116.B. DE LOS SIGUIENTES CONTENIDOS PARA SER DESARROLLADOS EN LA TUTORÍA GRUPAL,",null,null,null,null,null,null,null,null,null,null,null,null,null,null,null,"120.B. DE ACUERDO CON LA RVM 212-2020-MINEDU, ¿DE QUÉ MANERA SE VIENE REALIZANDO EL"]
[2016,null,null,null,"¿CUÁLES SE HAN INCORPORADO EN EL PLAN TUTORIAL DE AULA?",null,null,null,null,null,null,null,null,null,null,null,null,null,null,null,"ACOMPAÑAMIENTO Y MONITOREO DE LA IMPLEMENTACIÓN DE LAS ACCIONES DE TUTORÍA Y"]
[2017,null,null,null,"Seleccione “Si” o “No” según corresponda para cada tema",null,null,null,null,null,null,null,null,null,null,null,null,null,null,null,"ORIENTACIÓN EDUCATIVA EN ESTE SERVICIO/ NIVEL EDUCATIVO?"]
[2018,null,null,null,null,null,null,null,null,null,null,null,null,null,null,null,null,null,null,null,"Marque con una \"X\", una o más opciones"]
[2019,null,null,null,null,null,null,null,null,null,null,"¿Se \nincorporó?",null,"¿Se\nimple- mentó?",null,"¿Cuántas\nacciones?"]
[2020,null,null,null,"Nro.",null,"Acciones",null,null,null,null,null,null,null,null,null,null,null,null,null,null,"Visita inopinada a las aulas durante la hora de tutoría."]
[2021,null,null,null,null,null,null,null,null,null,null,null,null,null,null,null,null,null,null,null,null,"Revisión de reportes realizados por los docentes."]
[2022,null,null,null,"01","Prevención de la violencia escolar",null,null,null,null,null,null,null,null,null,null,null,null,null,null,null,"Encuestas a estudiantes y familias."]
[2023,null,null,null,"02","Prevención del embarazo a temprana edad",null,null,null,null,null,null,null,null,null,null,null,null,null,null,null,"Monitoreo a la implementación del Plan TOECE."]
[2024,null,null,null,"03","Promoción de la salud mental",null,null,null,null,null,null,null,null,null,null,null,null,null,null,null,"Otros"]
[null,null,null,null,"04","Prevención de trata de personas"]
[null,null,null,null,"05","Prevención del consumo de drogas",null,null,null,null,null,null,null,null,null,null,null,null,null,"121.B. ESTE CEBA, ¿CUENTA CON NORMAS DE CONVIVENCIA ESCOLAR"]
[null,null,null,null,"06","Prevención de trabajo infantil forzoso",null,null,null,null,null,null,null,null,null,null,null,null,null,null,"ACTUALIZADAS PARA EL PRESENTE AÑO?"]
[null,null,null,null,"07","Prevención de la violencia sexual"]
[null,null,null,null,"08","Prevención de trastornos alimenticios",null,null,null,null,null,null,null,null,null,null,null,null,null,null,"Sí",null,null,null,null,"No  ",null,null,"Pase a la pregunta 123.B"]
[null,null,null,null,"09","Uso responsable de video juegos"]
[null,null,null,null,10,"Uso responsable de redes sociales digitales",null,null,null,null,null,null,null,null,null,null,null,null,null,null,null,null,null,"¿Están incorporadas en el reglamento interno de la IE?"]
[null,null,null,null,11,"Educación Vial"]
[null,null,null,null,12,"Habilidades socioemocionales",null,null,null,null,null,null,null,null,null,null,null,null,null,null,null,null,null,null,null,"Sí",null,null,null,"No  "]
[null,null,null,null,13,"Igualdad de género"]
[null,null,null,null,14,"Educación Sexual Integral según RVM N° 169-2021",null,null,null,null,null,null,null,null,null,null,null,null,null,null,null,null,null,"¿El Reglamento Interno que incluye las normas de convivencia escolar?"]
[null,null,null,null,15,"Promoción de la convivencia escolar"]
[null,null,null,null,16,"Proyecto de vida y orientación vocacional",null,null,null,null,null,null,null,null,null,null,null,null,null,null,null,null,null,null,null,"Sí",null,null,null,"No  "]
[null,null,null,null,17,"Duelo"]
[null,null,null,null,18,"Prevención del suicidio",null,null,null,null,null,null,null,null,null,null,null,null,null,"122.B. LAS NORMAS DE CONVIVENCIA ESCOLAR, ¿HAN SIDO CONSTRUIDAS CON LA PARTICIPACIÓN DE"]
[null,null,null,null,19,"Fortalecimiento de la empatía",null,null,null,null,null,null,null,null,null,null,null,null,null,null,"REPRESENTANTES DE LAS/LOS ESTUDIANTES?"]
[null,null,null,null,20,"Fortalecimiento de la regulación emocional"]
[null,null,null,null,21,"Participación estudiantil",null,null,null,null,null,null,null,null,null,null,null,null,null,null,"Sí",null,null,null,null,"No  "]
[null,null,null,null,22,"Otro"]
[null,null,null,null,null,null,null,null,null,null,null,{"$f":"COUNTIF(L286:L307,\"SI\")+COUNTIF(L286:L307,\"NO\")","v":0},null,{"$f":"COUNTIF(N286:N307,\"SI\")+COUNTIF(N286:N307,\"NO\")","v":0},null,null,null,null,null,"123.B. ESTE CEBA, ¿CUENTA CON AL MENOS UNA/UN RESPONSABLE DE CONVIVENCIA ESCOLAR ASIGNADO"]
[null,null,null,"117.B. ACTUALMENTE, ¿LAS DOS HORAS PEDAGÓGICAS DE LA TUTORÍA GRUPAL SE DESARROLLAN",null,null,null,null,null,null,null,null,null,null,null,null,null,null,null,null,"PARA EL PRESENTE AÑO?"]
[null,null,null,null,"DE MANERA SECUENCIAL?"]
[null,null,null,null,null,null,null,null,null,null,null,null,null,null,null,null,null,null,null,null,"Sí",null,null,null,null,"No  "]
[null,null,null,null,"Sí",null,null,null,null,"No  "]
[null,null,null,null,null,null,null,null,null,null,null,null,null,null,null,null,null,null,null,null,null,null,"¿Se encuentra registrado como administrador del portal SíseVe?"]
[null,null,null,"118.B. SEÑOR(A) DIRECTOR(A), ¿ACTUALMENTE LOS DOCENTES REALIZAN TUTORÍA INDIVIDUAL A"]
[null,null,null,null,"ESTUDIANTES QUE LO REQUIERAN O SOLICITAN?",null,null,null,null,null,null,null,null,null,null,null,null,null,null,null,null,null,null,"Sí",null,null,null,"No  "]
[]
[null,null,null,null,"Sí",null,null,null,null,"No  ",null,null,null,null,null,null,null,null,null,"124.B. ESTE CEBA, ¿SE ENCUENTRA AFILIADO AL SÍSEVE?"]
[null,null,null,null,null,null,null,null,null,null,null,null,null,null,null,null,null,null,null,null,"Sistema Especializado en Reporte de casos sobre Violencia Escolar)"]
[null,null,null,null,null,null,null,"¿Cuantas se han realizado en lo que va del año 2025?"]
[null,null,null,null,null,null,null,null,null,null,null,null,null,null,null,null,null,null,null,null,"Sí",null,null,null,"¿Cuántos casos han sido reportados hasta la"]
[null,null,null,"119.B. ACTUALMENTE, ¿LOS DOCENTES EMPLEAN LAS HORAS DE TUTORÍA Y ORIENTACIÓN EDUCATIVA EN",null,null,null,null,null,null,null,null,null,null,null,null,null,null,null,null,null,null,null,null,"fecha de aplicación del Censo Educativo 2025?"]
[null,null,null,null,"EN ESTE SERVICIO/NIVEL EDUCATIVO?"]
[]
[null,null,null,null,"Sí",null,null,null,null,"No  ",null,null,null,null,null,null,null,null,null,null,"No  ",null,null,null,"¿Cuál es la razón por la que no está afiliado al SÍSEVE?"]
[null,null,null,null,null,null,null,null,null,null,null,null,null,null,null,null,null,null,null,null,null,null,null,null,"Marque con una \"X\", una opción"]
[null,null,null,null,null,null,"¿Cómo lo emplean?",null,null,null,null,null,null,null,null,null,null,null,null,null,null,null,null,null,null,"Por falta de internet"]
[null,null,null,null,null,null,null,null,null,null,null,null,"¿Cuántos docentes lo usan?",null,null,"¿Tiene\nevidencia?",null,null,null,null,null,null,null,null,null,"Conoce el portal, pero no le parece importante afiliarse"]
[null,null,null,null,null,null,null,null,null,null,null,"¿Se usa?","Sí, todos los docentes","Sí, algunos docentes","Ninguno",null,null,null,null,null,null,null,null,null,null,"Le parece importante, pero considera que no es necesario para su IE"]
[null,null,null,null,"Nro.",null,"Acción",null,null,null,null,null,null,null,null,null,null,null,null,null,null,null,null,null,null,"Falta de capacitación para usar el portal"]
[null,null,null,null,null,null,null,null,null,null,null,null,null,null,null,null,null,null,null,null,null,null,null,null,null,"Otro"]
[]
[null,null,null,null,1,"Tutoría grupal",null,null,null,null,null,null,null,null,null,null,null,null,null,"125.B. ESTE CEBA, ¿CUENTA CON LIBRO DE REGISTRO DE INCIDENCIAS, SOBRE"]
[null,null,null,null,2,"Refuerzo escolar",null,null,null,null,null,null,null,null,null,null,null,null,null,null,"VIOLENCIA Y ACOSO ESCOLAR EN EL MARCO DE LA LEY N° 29719?"]
[null,null,null,null,3,"Comunicación y/o matemática"]
[null,null,null,null,4,"Otro",null,null,null,null,null,null,null,null,null,null,null,null,null,null,"Sí",null,null,null,null,"No  ",null,null,"Pase a la pregunta 127.B"]
[null,null,null,null,null,null,null,null,null,null,null,{"$f":"COUNTIF(L332:L335,\"SI\")+COUNTIF(L332:L335,\"NO\")","v":0},null,null,null,{"$f":"COUNTIF(P332:P335,\"SI\")+COUNTIF(P332:P335,\"NO\")","v":0}]
["01"]
["02",null,null,"126.B. EN EL AÑO 2024, ¿SE HIZO USO DEL LIBRO DE REGISTRO DE INCIDENCIAS?",null,null,null,null,null,null,null,null,null,null,null,null,null,null,null,"129.B. ¿TIENE CONOCIMIENTO QUE LOS HECHOS DE VIOLENCIA, ADEMÁS DE SER REPORTADOS"]
["03",null,null,null,null,null,null,null,null,null,null,null,null,null,null,null,null,null,null,null,"EN EL PORTAL DEL SÍSEVE, DEBEN SER REPORTADOS A LA UGEL?"]
["04",null,null,null,"Sí","",null,null,null,"No  ",""]
["05",null,null,null,null,null,null,null,null,null,null,null,null,null,null,null,null,null,null,null,"Sí",null,null,null,null,"No  "]
["06",null,null,null,null,null,null,"¿Cuántas incidencias se registraron en el año 2024?",null,null,null,null,null,null,""]
["07",null,null,null,null,null,null,null,null,null,null,null,null,null,null,null,null,null,null,"130.B. SEÑOR(A) DIRECTOR(A), EN ESTE CEBA, ¿SE TIENEN IMPLEMENTADAS MEDIDAS DE SEGURIDAD"]
["08",null,null,null,null,null,null,"Fecha en la que se registró la última incidencia ",null,null,null,null,null,"DÍA","MES","AÑO",null,null,null,null,"PARA EL TRATAMIENTO DE LOS DATOS PERSONALES QUE ADMINISTRAN?"]
["09",null,null,null,null,null,null,"relacionada a casos de violencia escolar",null,null,null,null,null,"","",""]
["10",null,null,null,null,null,null,null,null,null,null,null,null,null,null,null,null,null,null,null,"Sí",null,null,null,null,"No  "]
["11",null,null,"127.B. SEÑOR(A) DIRECTOR(A), ¿EMPLEA USTED HERRAMIENTAS DE CONSULTA PARA VERIFICAR"]
["12",null,null,null,"LA SITUACIÓN DEL PERSONAL DE ESTE SERVICIO/NIVEL EDUCATIVO, TAL COMO EL REGISTRO",null,null,null,null,null,null,null,null,null,null,null,null,null,null,"131.B. ¿IMPLEMENTA ACCIONES DE ORIENTACIÓN VOCACIONAL EN ESTE CEBA VINCULADA A LA GESTIÓN"]
["13",null,null,null,"NACIONAL DE SANCIONES CONTRA SERVIDORES CIVILES – RNSSC?",null,null,null,null,null,null,null,null,null,null,null,null,null,null,null,"Y PROMOCIÓN DEL BIENESTAR?"]
[]
[null,null,null,null,"Sí","",null,null,null,"No  ",null,null,null,null,null,null,null,null,null,null,"Sí",null,null,null,null,"No  "]
[]
[null,null,null,"128.B. SEÑOR(A) DIRECTOR (A), ¿CONOCE LOS PROTOCOLOS PARA LA ATENCIÓN DE LOS CASOS",null,null,null,null,null,null,null,null,null,null,null,null,null,null,null,"132.B. ¿IMPLEMENTA ESTRATEGIAS DE ORIENTACIÓN VOCACIONAL ENTRE SUS ESTUDIANTES?"]
[null,null,null,null,"DE VIOLENCIA EN EL SERVICIO/NIVEL EDUCATIVO?"]
[null,null,null,null,null,null,null,null,null,null,null,null,null,null,null,null,null,null,null,null,"Sí",null,null,null,null,"No  "]
[null,null,null,null,"Sí","",null,null,null,"No  "]
[null,null,null,null,null,null,null,null,null,null,null,null,null,null,null,null,null,null,null,"133.B. ¿CUÁNTAS SESIONES PARA LA PREVENCIÓN DEL CONSUMO DE DROGAS DESARROLLÓ DURANTE"]
[null,null,null,null,null,null,"¿Ha sido capacitado por algún integrante de la DRE/GRE ",null,null,null,null,null,null,null,null,null,null,null,null,null,"TODO EL AÑO ESCOLAR?"]
[null,null,null,null,null,null," o UGEL en el uso de estos protocolos?"]
[null,null,null,null,null,null,null,null,null,null,null,null,null,null,null,null,null,null,null,null,"Cantidad de Sesiones :"]
[null,null,null,null,null,null,"Sí","",null,null,null,"No  ",""]

{"sheet":"C101","index":2,"n_rows":512,"n_cols":32,"rows_kept":512,"cut":false,"hidden":false,"merged":[[511,7,511,11],[453,8,453,12],[439,10,439,14],[1,6,1,29],[2,6,2,29],[483,22,483,25],[497,23,497,27],[503,22,504,26],[503,29,503,31],[495,7,495,11],[448,26,448,30],[473,21,474,24],[473,26,474,28],[473,29,474,31],[460,25,460,28],[438,10,438,14]]}
[]
[null,null,null,null,null,null,"CENSO EDUCATIVO 2025"]
[null,null,null,null,null,null,"MATRÍCULA, DOCENTES Y MATERIALES EDUCATIVOS"]
[]
[]
[]
[]
[]
[]
[]
[]
[]
[]
[]
[]
[]
[]
[]
[]
[]
[]
[]
[]
[]
[]
[]
[]
[]
[]
[]
[]
[]
[]
[]
[]
[]
[]
[]
[]
[]
[]
[]
[]
[]
[]
[]
[]
[]
[]
[]
[]
[]
[]
[]
[]
[]
[]
[]
[]
[]
[]
[]
[]
[]
[]
[]
[]
[]
[]
[]
[]
[]
[]
[]
[]
[]
[]
[]
[]
[]
[]
[]
[]
[]
[]
[]
[]
[]
[]
[]
[]
[]
[]
[]
[]
[]
[]
[]
[]
[]
[]
[]
[]
[]
[]
[]
[]
[]
[]
[]
[]
[]
[]
[]
[]
[]
[]
[]
[]
[]
[]
[]
[]
[]
[]
[]
[]
[]
[]
[]
[]
[]
[]
[]
[]
[]
[]
[]
[]
[]
[]
[]
[]
[]
[]
[]
[]
[]
[]
[]
[]
[]
[]
[]
[]
[]
[]
[]
[]
[]
[]
[]
[]
[]
[]
[]
[]
[]
[]
[]
[]
[]
[]
[]
[]
[]
[]
[]
[]
[]
[]
[]
[]
[]
[]
[]
[]
[]
[]
[]
[]
[]
[]
[]
[]
[]
[]
[]
[]
[]
[]
[]
[]
[]
[]
[]
[]
[]
[]
[]
[]
[]
[]
[]
[]
[]
[]
[]
[]
[]
[]
[]
[]
[]
[]
[]
[]
[]
[]
[]
[]
[]
[]
[]
[]
[]
[]
[]
[]
[]
[]
[]
[]
[]
[]
[]
[]
[]
[]
[]
[]
[]
[]
[]
[]
[]
[]
[]
[]
[]
[]
[]
[]
[]
[]
[]
[]
[]
[]
[]
[]
[]
[]
[]
[]
[]
[]
[]
[]
[]
[]
[]
[]
[]
[]
[]
[]
[]
[]
[]
[]
[]
[]
[]
[]
[]
[]
[]
[]
[]
[]
[]
[]
[]
[]
[]
[]
[]
[]
[]
[]
[]
[]
[]
[]
[]
[]
[]
[]
[]
[]
[]
[]
[]
[]
[]
[]
[]
[]
[]
[]
[]
[]
[]
[]
[]
[]
[]
[]
[]
[]
[]
[]
[]
[]
[]
[]
[]
[]
[]
[]
[]
[]
[]
[]
[]
[]
[]
[]
[]
[]
[]
[]
[]
[]
[]
[]
[]
[]
[]
[]
[]
[]
[]
[]
[]
[]
[]
[]
[]
[]
[]
[]
[]
[]
[]
[]
[]
[]
[]
[]
[]
[]
[]
[]
[]
[]
[]
[]
[]
[]
[]
[]
[]
[]
[]
[]
[]
[]
[]
[]
[]
[]
[]
[null,null,null,"C. ACOMPAÑAMIENTO Y SOPORTE PEDAGÓGICO"]
[null,null,null,"101.C. EN EL PRESENTE AÑO Y HASTA LA FECHA DE APLICACIÓN DEL CENSO EDUCATIVO 2025,",null,null,null,null,null,null,null,null,null,null,null,null,null,null,null,"105.C. EL PERSONAL DE ESTE CEBA, ¿HA RECIBIDO ALGÚN TIPO DE"]
[null,null,null,null,"EL CEBA, ¿HA RECIBIDO ASISTENCIA TÉCNICA PRESENCIAL O VIRTUAL",null,null,null,null,null,null,null,null,null,null,null,null,null,null,null,"ACOMPAÑAMIENTO SOCIOAFECTIVO POR PARTE DE EQUIPOS DE UGEL/DRE/GRE/MINEDU?"]
[null,null,null,null,"DEL ESPECIALISTA PEDAGÓGICO DE LA UGEL/DRE/GRE/MINEDU?"]
[null,null,null,null,null,null,null,null,null,null,null,null,null,null,null,null,null,null,null,null,"Sí",null,null,null,null,"No  "]
[null,null,null,null,"Sí","",null,null,null,"No  "]
[null,null,null,null,null,null,null,null,null,null,null,null,null,null,null,null,null,null,null,"106.C. SEÑOR(A) DIRECTOR(A), ¿CONOCE USTED EL SISTEMA INTEGRADO DE FORMACIÓN"]
[null,null,null,null,null,null,null,"¿Cuántas veces ha recibido asistencia técnica en total?",null,null,null,null,null,null,null,null,null,null,null,null,"DOCENTE EN SERVICIO (SIFODS)?"]
[null,null,null,null,null,null,null,"Marque con una “X”, solo una opción para cada caso"]
[null,null,null,null,null,null,null,null,null,null,null,null,null,null,null,null,null,null,null,null,"Sí","",null,null,null,"No  "]
[null,null,null,null,null,null,null,null,null,null,null,null,1,2,3,"4 +"]
[null,null,null,null,null,null,null,null,"Presencial",null,null,null,"","","","",null,null,null,null,null,null,null,"¿Qué módulo(s) ha utilizado del SIFODS?"]
[null,null,null,null,null,null,null,null,"Virtual/Remota",null,null,null,"","","","",null,null,null,null,null,null,null,"Marque con una \"X\", una o más opciones"]
[]
[null,null,null,"102.C. DURANTE EL AÑO 2024 Y HASTA LA FECHA DE APLICACIÓN DEL CENSO EDUCATIVO 2025, EL CEBA",null,null,null,null,null,null,null,null,null,null,null,null,null,null,null,null,null,null,null,"","File Docente "]
[null,null,null,null,"¿HA RECIBIDO ALGÚN TIPO DE ACOMPAÑAMIENTO DIRIGIDO AL DIRECTIVO?",null,null,null,null,null,null,null,null,null,null,null,null,null,null,null,null,null,null,"","Docente al Día"]
[null,null,null,null,null,null,null,null,null,null,null,null,null,null,null,null,null,null,null,null,null,null,null,"","Portafolio de la Oferta Formativa "]
[null,null,null,null,"Sí","",null,null,null,"No  ",null,null,"Pase a la pregunta 104.C",null,null,null,null,null,null,null,null,null,null,"","Centro de Recursos "]
[null,null,null,null,null,null,null,null,null,null,null,null,null,null,null,null,null,null,null,null,null,null,null,"","Guías docentes AeC "]
[null,null,null,null,null,null,null,"¿Que institución(es) le brindaron el acompañamiento?",null,null,null,null,null,null,null,null,null,null,null,null,null,null,null,"","Asistencia Virtual Docente "]
[null,null,null,null,null,null,null,"Marque con una \"X\", una o más opciones",null,null,null,null,null,null,null,null,null,null,null,null,null,null,null,"","Comunidades de aprendizajes "]
[null,null,null,null,null,null,null,null,null,null,null,null,null,null,null,null,null,null,null,null,null,null,null,"","Entorno Personal"]
[null,null,null,null,null,null,null,"","DRE/GRE"]
[null,null,null,null,null,null,null,"","UGEL",null,null,null,null,null,null,null,null,null,null,"107.C. SEÑOR(A) DIRECTOR(A), ¿SE HAN IDENTIFICADO LAS NECESIDADES FORMATIVAS"]
[null,null,null,null,null,null,null,"","MINEDU",null,null,null,null,null,null,null,null,null,null,null,"PARA EL PERSONAL DOCENTE DE ESTE CEBA?"]
[null,null,null,null,null,null,null,"","Otros"]
[null,null,null,null,null,null,null,null,null,null,null,null,null,null,null,null,null,null,null,null,"Sí","",null,null,null,"No  ",null,null,"Pase a la pregunta 109.C"]
[null,null,null,"103.C. ¿QUÉ TEMAS HAN SIDO ABORDADOS MAYORITARIAMENTE POR EL EQUIPO DIRECTIVO DURANTE LAS"]
[null,null,null,null,"SESIONES DE SOPORTE Y APOYO A LOS DOCENTESEN EL MARCO DEL ACOMPAÑAMIENTO PEDAGÓGICO?",null,null,null,null,null,null,null,null,null,null,null,null,null,null,null,null,null,null,"¿Cómo identificó las necesidades formativas?"]
[null,null,null,null,"Marque con una \"X\", una o más opciones",null,null,null,null,null,null,null,null,null,null,null,null,null,null,null,null,null,null,"Marque con una \"X\", una o más opciones"]
[]
[null,null,null,null,"","Planificación curricular",null,null,null,null,null,null,null,null,null,null,null,null,null,null,null,null,null,"","Observación en aula "]
[null,null,null,null,"","Conducción de los aprendizajes",null,null,null,null,null,null,null,null,null,null,null,null,null,null,null,null,null,"","Cuestionario de autodiagnóstico "]
[null,null,null,null,"","Como brindar acompañamiento socioafectivo y cognitivo",null,null,null,null,null,null,null,null,null,null,null,null,null,null,null,null,null,"","Monitoreo pedagógico"]
[null,null,null,null,"","Uso de los recursos y materiales educativos para atender la diversidad",null,null,null,null,null,null,null,null,null,null,null,null,null,null,null,null,null,"","Otros",null,""]
[null,null,null,null,"","Evaluación formativa y retroalimentación"]
[null,null,null,null,"","Fortalecimiento del uso de TIC",null,null,null,null,null,null,null,null,null,null,null,null,null,"108.C. EN ESTE SERVICIO/NIVEL EDUCATIVO, ¿SE HA GESTIONADO ALGÚN TIPO DE "]
[null,null,null,null,"","Competencia de las áreas curriculares",null,null,null,null,null,null,null,null,null,null,null,null,null,null,"ACCIÓN FORMATIVA PARA ATENDER LAS NECESIDADES DEL PERSONAL DOCENTE?"]
[null,null,null,null,"","Conclusiones descriptivas"]
[null,null,null,null,"","Otros temas",null,null,"",null,null,null,null,null,null,null,null,null,null,null,"Sí","",null,null,null,"No  ",""]
[]
[null,null,null,"104.C. EL CEBA, ¿INFORMÓ A LAS FAMILIAS SOBRE EL PROGRESO DE LOS ESTUDIANTES?",null,null,null,null,null,null,null,null,null,null,null,null,null,null,null,null,null,null,null,"¿Qué tipo(s) de acción(es) formativa(s) se gestionaron?"]
[null,null,null,null,null,null,null,null,null,null,null,null,null,null,null,null,null,null,null,null,null,null,null,"Marque con una \"X\", una o más opciones"]
[null,null,null,null,"Sí","",null,null,null,"No  "]
[null,null,null,null,null,null,null,null,null,null,null,null,null,null,null,null,null,null,null,null,null,null,null,"","Cursos virtuales"]
[null,null,null,null,null,null,null,"¿Con qué frecuencia se informa a las familias?",null,null,null,null,null,null,null,null,null,null,null,null,null,null,null,"","Programas formativos "]
[null,null,null,null,null,null,null,"Marque con una \"X\", una opción",null,null,null,null,null,null,null,null,null,null,null,null,null,null,null,"","Otros",""]
[]
[null,null,null,null,null,null,null,"","Mensual"]
[null,null,null,null,null,null,null,"","Cada 2 meses"]
[null,null,null,null,null,null,null,"","Cada 3 meses"]
[null,null,null,null,null,null,null,"","Cada 6 meses"]
[null,null,null,null,null,null,null,"","Al finalizar el año"]
[]
[]
[null,null,null,"109.C. DURANTE EL AÑO 2024 Y HASTA LA APLICACIÓN DEL CENSO EDUCATIVO 2025, ¿SE GENERARON",null,null,null,null,null,null,null,null,null,null,null,null,null,null,null,"113.C. SEÑALE MARCANDO CON UNA “X” SI EN LOS ÚLTIMOS DOCE (12) MESES, ¿HA CONTADO"]
[null,null,null,null,"ESPACIOS PARA LA COLABORACIÓN ENTRE DOCENTES Y/O DIRECTIVOS PARA LA IMPLEMENTACIÓN",null,null,null,null,null,null,null,null,null,null,null,null,null,null,null,"CON ALIADOS ESTRATÉGICOS QUE LE HAYAN BENEFICIADO CON ALGÚN INCENTIVO ECONÓMICO"]
[null,null,null,null,"DE MEJORAS EN LA PRÁCTICA PEDAGÓGICA?",null,null,null,null,null,null,null,null,null,null,null,null,null,null,null,"PARA LA IMPLEMENTACIÓN Y/O SOSTENIBILIDAD DE UNA INNOVACIÓN O BUENA PRÁCTICA?"]
[]
[null,null,null,null,"Sí","",null,null,null,"No  ",null,null,null,null,null,null,null,null,null,null,null,"Aliados Estratégicos",null,null,null,null,"Innovación Educativa",null,null,"Buena práctica"]
[null,null,null,null,null,null,null,null,null,null,null,null,null,null,null,null,null,null,null,null,null,null,null,null,null,{"$f":"AB485+AE485","v":0}]
[null,null,null,"110.C. EN LOS ÚLTIMOS TRES (03) AÑOS, ¿SE HA IMPLEMENTADO EN ESTE CEBA",null,null,null,null,null,null,null,null,null,null,null,null,null,null,null,null,1,"Gobierno regional"]
[null,null,null,null,"ALGÚN PROYECTO DE INNOVACIÓN EDUCATIVA O BUENA PRÁCTICA PEDAGÓGICA?",null,null,null,null,null,null,null,null,null,null,null,null,null,null,null,2,"DRE"]
[null,null,null,null,"(Referencia: ENDO 2021)",null,null,null,null,null,null,null,null,null,null,null,null,null,null,null,3,"UGEL"]
[null,null,null,null,"Marque con una \"X\", una o más opciones",null,null,null,null,null,null,null,null,null,null,null,null,null,null,null,4,"Gobierno local"]
[null,null,null,null,null,null,null,null,null,null,null,null,null,null,null,null,null,null,null,null,5,"Aliados privados"]
[null,null,null,null,null,"Proyecto de Innovación educativa",null,null,null,null,null,null,null,null,null,null,null,null,null,null,6,"Ministerio de Educación"]
[null,null,null,null,null,"Buena práctica pedagógica",null,null,null,null,null,null,null,null,null,null,null,null,null,null,7,"Padres y madres de familia"]
[null,null,null,null,null,"Buena práctica de gestión escolar",null,null,null,null,null,null,null,null,null,null,null,null,null,null,8,"Recursos propios de la IE"]
[null,null,null,null,null,null,null,null,null,null,null,null,null,null,null,null,null,null,null,null,9,"Otro"]
[null,null,null,"111.C. EN RELACIÓN CON EL DESARROLLO DEL PROYECTO DE INNOVACIÓN O BUENA PRÁCTICA",null,null,null,null,null,null,null,null,null,null,null,null,null,null,null,null,null,null,null,null,null,null,null,{"$f":"COUNTIF(AB476:AB484,\"SI\")+COUNTIF(AB476:AB484,\"NO\")","v":0},null,null,{"$f":"COUNTIF(AE476:AE484,\"SI\")+COUNTIF(AE476:AE484,\"NO\")","v":0}]
[null,null,null,null,"PEDAGÓGICA, ¿QUÉ ASPECTOS LIMITAN LA IMPLEMENTACIÓN DE MEJORAS?"]
[null,null,null,null,"Marque con una \"X\", una o más opciones",null,null,null,null,null,null,null,null,null,null,null,null,null,null,"114.C. EN SU OPINIÓN, ¿CUÁL SERÍA EL PRINCIPAL ESTÍMULO O INCENTIVO QUE DEBERÍAN"]
[null,null,null,null,null,null,null,null,null,null,null,null,null,null,null,null,null,null,null,null,"RECIBIR LOS DOCENTES QUE IMPLEMENTAN BUENAS PRÁCTICAS O INNOVACIONES EDUCATIVAS?"]
[null,null,null,null,null,"Institucionalización de la práctica",null,null,null,null,null,null,null,null,null,null,null,null,null,null,"Marque con una \"X\", una o más opciones"]
[null,null,null,null,null,"Reflexionar sobre los resultados de la práctica"]
[null,null,null,null,null,"Tener recursos limitados para mejorar su desarrollo",null,null,null,null,null,null,null,null,null,null,null,null,null,null,null,"Resoluciones de reconocimiento"]
[null,null,null,null,null,"Contar con poco respaldo del equipo directivo y de los docentes.",null,null,null,null,null,null,null,null,null,null,null,null,null,null,null,"Bonos monetarios"]
[null,null,null,null,null,"Planificar en función de un problema identificado",null,null,null,null,null,null,null,null,null,null,null,null,null,null,null,"Puntaje adicional en alguna de las evaluaciones "]
[null,null,null,null,null,"Sustentar con evidencia la práctica o innovación educativa",null,null,null,null,null,null,null,null,null,null,null,null,null,null,null,"Becas de posgrado (especializaciones, diplomados o maestría)"]
[null,null,null,null,null,"Sistematizar y difundir la práctica o innovación educativa",null,null,null,null,null,null,null,null,null,null,null,null,null,null,null,"Pasantías nacionales o internacionales"]
[null,null,null,null,null,"Otro",null,null,null,null,null,null,null,null,null,null,null,null,null,null,null,"Publicación de su proyecto en un libro"]
[null,null,null,null,null,null,null,null,null,null,null,null,null,null,null,null,null,null,null,null,null,"Reconocimiento en ceremonia o acto público"]
[null,null,null,"112.C. ¿QUÉ FACTORES LE AYUDARÍAN A MEJORAR SU INNOVACIÓN O PRÁCTICA PEDAGÓGICA?",null,null,null,null,null,null,null,null,null,null,null,null,null,null,null,null,null,"Otro"]
[null,null,null,null,"Marque con una \"X\", una o más opciones"]
[]
[null,null,null,null,null,"Acceso a tecnología/internet",null,null,null,null,null,null,null,null,null,null,null,null,null,"115.C. A PARTIR DEL DESARROLLO DE LA INNOVACIÓN EDUCATIVA O BUENA PRÁCTICA"]
[null,null,null,null,null,"Acceso a material pedagógico",null,null,null,null,null,null,null,null,null,null,null,null,null,null,"EN ESTE CEBA, ¿CUÁNTO CONSIDERA USTED QUE?"]
[null,null,null,null,null,"Tiempo para reflexionar y sistematizar la práctica"]
[null,null,null,null,null,"Asistencia técnica o asesoría personalizada",null,null,null,null,null,null,null,null,null,null,null,null,null,null,null,null,"Aliados Estratégicos",null,null,null,null,null,null,"Escala de Percepción"]
[null,null,null,null,null,"Talleres de intercambio de experiencia",null,null,null,null,null,null,null,null,null,null,null,null,null,null,null,null,null,null,null,null,null,null,{"$f":"COUNTIF(AD506:AF509,\"X\")","v":0},"Mucho","Poco","Nada"]
[null,null,null,null,null,"Becas de estudio",null,null,null,null,null,null,null,null,null,null,null,null,null,null,1,"La comunidad valora más el esfuerzo de la escuela"]
[null,null,null,null,null,"Pasantías",null,null,null,null,null,null,null,null,null,null,null,null,null,null,2,"Los padres de familia reconocen más el esfuerzo de los docentes"]
[null,null,null,null,null,"Recursos con orientaciones pedagógicas",null,null,null,null,null,null,null,null,null,null,null,null,null,null,3,"Los alumnos reconocen más el empeño de los docentes"]
[null,null,null,null,null,"Difusión de innovaciones o prácticas",null,null,null,null,null,null,null,null,null,null,null,null,null,null,4,"La motivación de docentes con el trabajo ha aumentado"]
[null,null,null,null,null,"Formación de Comunidades de Aprendizaje"]
[null,null,null,null,null,"Financiamiento para el desarrollo de proyectos"]
[null,null,null,null,null,"Otro"]

{"sheet":"C102","index":3,"n_rows":167,"n_cols":25,"rows_kept":167,"cut":false,"hidden":false,"merged":[[166,19,166,23],[142,10,142,11],[144,8,144,11],[145,8,145,11],[147,8,147,10],[148,8,148,12],[89,7,89,10],[116,7,116,10],[140,20,140,23],[1,6,1,24],[2,6,2,24],[124,24,124,26],[125,24,125,26],[134,20,134,26],[138,20,138,26],[139,20,139,26],[76,7,76,10],[11,10,13,10],[11,11,13,12]]}
[{"$f":"IF(OR(UPPER('C100'!O35)<>\"\",UPPER('C100'!X35)<>\"\"),\"X\",\"\")","v":""}]
[{"$f":"IF(UPPER('C100'!AG35)<>\"\",\"X\",\"\")","v":""},null,null,null,null,null,"CENSO EDUCATIVO 2025"]
[null,null,null,null,null,null,"MATRÍCULA, DOCENTES Y MATERIALES EDUCATIVOS"]
[]
[]
[]
[null,null,null,"D. SERVICIOS CON PERTINENCIA CULTURAL (GESTIÓN PÚBLICA Y PRIVADA)"]
[null,null,null,"101.D. DE ACUERDO CON LAS PRACTICAS COTIDIANAS Y COSTUMBRES, ¿USTED CONSIDERA QUE SU",null,null,null,null,null,null,null,null,null,null,null,"102.D. EN ESTE CEBA, ¿LOS DOCENTES CONSIDERAN LOS SABERES Y PRÁCTICAS CULTURALES DEL"]
[null,null,null,null,"CEBA CUENTA CON ESTUDIANTES PERTENECIENTES A LOS SIGUIENTES GRUPOS ÉTNICOS?",null,null,null,null,null,null,null,null,null,null,null," PUEBLO O PUEBLOS ORIGINARIOS DE SUS ESTUDIANTES EN SUS ACTIVIDADES PEDAGÓGICAS?."]
[]
[]
[null,null,null,null,null,null,null,null,null,null,"¿Tiene estudiantes?","Solo si respondió “Sí” % estimado del total de estudiantes"]
["SI",null,null,null,null,null,"GRUPO ÉTNICO",null,null,null,null,null,null,null,null,null,"Sí",null,null,null,null,"No  "]
["NO",null,null,null,null,null,null,null,null,{"$f":"COUNTIF(K15:K22,\"SI\")+COUNTIF(K15:K22,\"NO\")","v":0}]
[null,null,null,null,"1. Quechua",null,null,null,null,null,null,null,"%"]
[null,null,null,null,"2. Aimara",null,null,null,null,null,null,null,"%"]
[null,null,null,null,"3. Indígena u originario de la Amazonía",null,null,null,null,null,null,null,"%"]
[null,null,null,null,"4. Perteneciente o parte de otro pueblo indígena",null,null,null,null,null,null,null,"%"]
[null,null,null,null,"5. Negro moreno, zambo, mulato o afroperuano",null,null,null,null,null,null,null,"%"]
[null,null,null,null,"6. Blanco",null,null,null,null,null,null,null,"%"]
[null,null,null,null,"7. Mestizo",null,null,null,null,null,null,null,"%"]
[null,null,null,null,"8. Otros",null,null,null,null,null,null,null,"%"]
[null,null,null,null,null,null,null,null,null,null,null,{"$f":"SUM(L15:L22)","v":0}]
[]
[]
[]
[]
[]
[]
[]
[]
[]
[]
[]
[]
[]
[]
[]
[]
[]
[]
[]
[]
[]
[]
[]
[]
[]
[]
[]
[]
[]
[]
[]
[]
[]
[]
[]
[]
[]
[]
[]
[null,null,null,null,null,null,null,null,null,null,null,null,null,null,null,null,null,null,null,null,null,""]
[null,null,null,"E. SERVICIO DE APOYO EDUCATIVO (SAE) (GESTIÓN PÚBLICA Y PRIVADA)"]
[null,null,null,"101.E. DURANTE  EL  PRESENTE  AÑO  Y HASTA LA FECHA DE APLICACIÓN DEL  CENSO EDUCATIVO  2025,",null,null,null,null,null,null,null,null,null,null,null,"106.E. USTED SEÑOR(A) DIRECTOR(A), ¿HA RECIBIDO ASESORÍA(PEDAGÓGICA, TÉCNICA, EMOCIONAL,"]
[null,null,null,null,"¿ALGUNOS  DE  LOS  DOCENTES  HAN RECIBIDO O RECIBEN CAPACITACIÓN Y/O ACOMPAÑAMIENTO",null,null,null,null,null,null,null,null,null,null,null,"EN GESTIÓN DE CASOS O SIMILAR) DEL SAEI (SERVICIO DE APOYO EDUCATIVO INTERNO)"]
[null,null,null,null,"Y/O ASESORIAS ESPECIALIZADAS EN EL MARCO DE LA EDUCACIÓN INCLUSIVA  POR  PARTE  DEL ",null,null,null,null,null,null,null,null,null,null,null,"EN EL MARCO DE UNA EDUCACIÓN INCLUSIVA?"]
[null,null,null,null,"SAE EXTERNO  DE LA  UGEL/DRE/GRE, O  ALGUNA  OTRA  INSTITUCIÓN  EN  EL  MARCO  DE  UNA "]
[null,null,null,null,"EDUCACIÓN INCLUSIVA?",null,null,null,null,null,null,null,null,null,null,null,"Sí",null,null,null,null,"No  "]
[null,null,null,null,"Marque con una \"X\", una o más opciones"]
[null,null,null,null,null,null,null,null,null,null,null,null,null,null,null,"107.E. ESTE  SERVICIO/NIVEL EDUCATIVO, ¿HA RECIBIDO LA VISITA DE ALGÚN PROFESIONAL"]
[null,null,null,null,null,"Educación inclusiva para atender a la diversidad",null,null,null,null,null,null,null,null,null,null,"SAE EXTERNO DE LA UGEL?"]
[null,null,null,null,null,"Identificación de barreras educativas"]
[null,null,null,null,null,"Implementación de Apoyos Educativos",null,null,null,null,null,null,null,null,null,null,"Sí",null,null,null,null,"No  "]
[null,null,null,null,null,"Diseño Universal para el Aprendizaje"]
[null,null,null,null,null,"Plan Educativo Personalizado",null,null,null,null,null,null,null,null,null,"108.E. DURANTE EL PRESENTE AÑO Y A LA FECHA DE APLICACIÓN DEL CENSO EDUCATIVO 2025,"]
[null,null,null,null,null,"Otros",null,null,null,null,null,null,null,null,null,null,"RESPECTO A  LA IMPLEMENTACIÓN  DEL SAE EXTERNO DE LA UGEL, ¿ESTE CEBA,"]
[null,null,null,null,null,"No han recibido",null,null,null,null,null,null,null,null,null,null,"HA RECIBIDO ALGUNAS DE LAS SIGUIENTES ACCIONES?"]
[null,null,null,null,null,null,null,null,null,null,null,null,null,null,null,null,"Marque con una \"X\", una o más opciones"]
[null,null,null,"102.E. ¿QUÉ  ESTRATEGIAS FORMATIVAS VIRTUALES PRIORIZARÍA SOBRE TEMAS DE EDUCACIÓN"]
[null,null,null,null,"INCLUSIVA O ATENCIÓN A LA DIVERSIDAD?",null,null,null,null,null,null,null,null,null,null,null,null,"Sensibilización sobre educación inclusiva para la comunidad educativa."]
[null,null,null,null,"Marque con una \"X\", una o más opciones",null,null,null,null,null,null,null,null,null,null,null,null,"Asistencia técnica en educación inclusiva al SAEI de su IE"]
[null,null,null,null,null,null,null,null,null,null,null,null,null,null,null,null,null,"Acompañamiento en educación inclusiva al SAEI de su IE"]
[null,null,null,null,null,"Curso virtual tutorado",null,null,null,null,null,null,null,null,null,null,null,"Asesorías especializadas en educación inclusiva"]
[null,null,null,null,null,"Curso virtual autoformativo",null,null,null,null,null,null,null,null,null,null,null,"Capacitación en educación inclusiva"]
[null,null,null,null,null,"Grupo o círculo de interaprendizaje",null,null,null,null,null,null,null,null,null,null,null,"Soporte sobre la gestión de apoyos educativos"]
[null,null,null,null,null,"Comunidades profesionales de aprendizaje",null,null,null,null,null,null,null,null,null,null,null,"Articulación con redes de apoyo promovidas por el SAEE de UGEL"]
[null,null,null,null,null,"Asesoría personalizada"]
[null,null,null,null,null,"Pasantía",null,null,null,null,null,null,null,null,null,"109.E. ESTE CEBA, ¿TIENE ESTUDIANTES MATRICULADOS EN CONDICIÓN CONDICIÓN"]
[null,null,null,null,null,"Otros",null,null,null,null,null,null,null,null,null,null,"DE DISCAPACIDAD?"]
[]
[null,null,null,"103.E. DURANTE EL PRESENTE AÑO Y HASTA LA FECHA DE APLICACIÓN DEL CENSO EDUCATIVO 2025,",null,null,null,null,null,null,null,null,null,null,null,null,"Sí",null,null,null,null,"No  "]
[null,null,null,null,"ESTE CEBA, ¿HA INCORPORADO CAMBIOS EN LOS INSTRUMENTOS DE GESTIÓN  PARA "]
[null,null,null,null,"IMPLEMENTAR LA EDUCACIÓN INCLUSIVA SEGÚN LAS NORMATIVAS VIGENTES?"]
[null,null,null,null,null,null,null,null,null,null,null,null,null,null,null,null,null,"¿Los/as estudiantes con discapacidad cuentan con planes "]
[null,null,null,null,"Sí",null,null,null,"No  ",null,null,null,null,null,null,null,null,"educativos personalizados (PEP)?"]
[]
[null,null,null,"104.E. DURANTE EL PRESENTE AÑO Y HASTA LA FECHA DE APLICACIÓN DEL CENSO EDUCATIVO 2025,",null,null,null,null,null,null,null,null,null,null,null,null,null,"Sí",null,null,"No  ",null,null,null,"No   aplica  "]
[null,null,null,null,"ESTE SERVICIO/NIVEL EDUCATIVO, ¿HA CONFORMADO EL SERVICIO DE APOYO EDUCATIVO"]
[null,null,null,null,"INTERNO (SAEI)?"]
[null,null,null,null,null,null,null,null,null,null,null,null,null,null,null,"110.E. ¿HA RECIBIDO ASISTENCIA Y ORIENTACIÓN PARA LA ATENCIÓN EDUCATIVA"]
[null,null,null,null,"Sí",null,null,null,"No  ",null,null,null,null,null,null,null,"DE ESTUDIANTES CON DISCAPACIDAD DE PARTE DEL EQUIPO DE SERVICIO DE APOYO"]
[null,null,null,null,null,null,null,null,null,null,null,null,null,null,null,null,"EDUCATIVO VIRTUAL (SAEV ?"]
[null,null,null,null,null,null,null," ¿Cuántas personas lo integran?"]
[]
[null,null,null,"105.E. DURANTE EL PRESENTE AÑO Y HASTA LA FECHA DE APLICACIÓN DEL CENSO EDUCATIVO 2025,",null,null,null,null,null,null,null,null,null,null,null,null,"Sí",null,null,null,null,"No  "]
[null,null,null,null,"RESPECTO A LA IMPLEMENTACIÓN DEL SAE INTERNO, ESTE CEBA, ¿HA REALIZADO ALGUNAS"]
[null,null,null,null,"DE LAS SIGUIENTES ACCIONES?"]
[null,null,null,null,"Marque con una \"X\", una o más opciones"]
[]
[null,null,null,null,null,"Sensibilización sobre educación inclusiva para la comunidad educativa."]
[null,null,null,null,null,"Capacitación en educación inclusiva para docentes, directivos y otros agentes educativos."]
[null,null,null,null,null,"Acompañamiento a los docentes (visitas, grupos de interaprendizaje y asesorías)"]
[null,null,null,null,null,"Asesorías al equipo directivo y otros agentes educativos."]
[null,null,null,null,null,"Orientación a las familias."]
[null,null,null,null,null,"Coordinación y articulación con otros servicios de apoyo, comités de gestión escolar."]
[null,null,null,null,null,"Otro"]
[]
[]
[null,null,null,"F. SUPERVISIÓN DE LA PRESTACIÓN DEL SERVICIO EDUCATIVO DE GESTIÓN PRIVADA - SOLO GESTIÓN PRIVADA"]
[null,null,null,"101.F. DURANTE AL MENOS UNO DE LOS ÚLTIMOS 3 (TRES) AÑOS, ESTE CEBA",null,null,null,null,null,null,null,null,null,null,null,"103.F.  FORMA DE CONSTITUCIÓN (Sólo para personas jurídicas)"]
[null,null,null,null,"HA SIDO SUPERVISADO ORIENTATIVAMENTE EN CONDICIONES BÁSICAS POR LA UGEL?",null,null,null,null,null,null,null,null,null,null,null,"Marque con un aspa ‘’x’’ y registra la información solicitada según corresponda"]
[]
[null,null,null,null,"Sí",null,null,null,"No  ",null,null,null,null,null,null,null,null,null,"  Sociedad"]
[null,null,null,null,null,null,null,null,null,null,null,null,null,null,null,null,null,null,null,null,"N° de Partida Regristral  "]
[null,null,null,null,null,null,null,null,null,null,null,null,null,null,null,null,null,null,null,null,"N° de Asiento Registral  "]
[null,null,null,null,null,"¿Qué aspectos fueron supervisados?",null,null,null,null,null,null,null,null,null,null,null,null,"  Asociación"]
[null,null,null,null,null,"Marque con una \"X\", una o más opciones"]
[null,null,null,null,null,null,null,null,null,null,null,null,null,null,null,"104.F. ESTE SERVICIO/NIVEL EDUCATIVO, ¿PERTENECE A ALGUNA ASOCIACIÓN QUE"]
[null,null,null,null,null,null,"Gestión institucional",null,null,null,null,null,null,null,null,null,"AGRUPE A SS.EE. PRIVADOS?"]
[null,null,null,null,null,null,"Gestión pedagógica"]
[null,null,null,null,null,null,"Infraestructura educativa",null,null,null,null,null,null,null,null,null,"Sí",null,null,null,null,"No  "]
[]
[]
[null,null,null,null,null,null,null,null,null,null,null,null,null,null,null,null,null,"Nombre de la asociación :"]
[]
[null,null,null,"102.F. COMPLETE LOS SIGUIENTES DATOS SOBRE LA PROMOTORÍA DE ESTE SERVICIO/NIVEL",null,null,null,null,null,null,null,null,null,null,null,null,null,"Datos de contacto de la asociación:"]
[null,null,null,null,"EDUCATIVO DE GESTIÓN PRIVADA"]
[null,null,null,null,"Marque con un aspa ‘’X’’ y registra la información solicitada según corresponda",null,null,null,null,null,null,null,null,null,null,null,null,null,"Web "]
[null,null,null,null,null,null,null,null,null,null,null,null,null,null,null,null,null,null,"Correo electrónico "]
[null,null,null,null,"Tipo de persona:",null,null,null,null,null,null,null,null,null,null,null,null,null,"Teléfono/celular "]
[]
[null,null,null,null,null,"  Natural",null,"DNI/CE",null,":",null,null,null,null,null,"105.F. ¿CUÁNTO ES EL COSTO DE LA PENSIÓN DE ENSEÑANZA (EN MONEDA NACIONAL)?"]
[null,null,null,null,null,null,null,null,null,null,null,null,null,null,null,null," Escala:"]
[null,null,null,null,null,null,null,"Nombres  "]
[null,null,null,null,null,null,null,"Apellidos  ",null,null,null,null,null,null,null,null,null,null,"Única",null,"Pensión"]
[]
[null,null,null,null,null,"  Jurídica",null,"RUC  ",null,null,null,null,null,null,null,null,null,null,null,null,"Escala mínima"]
[null,null,null,null,null,null,null,"Razón social  ",null,null,null,null,null,null,null,null,null,null,"Varias"]
[null,null,null,null,null,null,null,null,null,null,null,null,null,null,null,null,null,null,null,null,"Escala máxima"]
[]
[]
[null,null,null,"G. ARTICULACIÓN CON LA EDUCACIÓN COMUNITARIA (GESTIÓN PÚBLICA Y PRIVADA)"]
[null,null,null," 101.G. EN  EL  AÑO  2024, ¿SE  HAN  PUESTO  A  DISPOSICIÓN  LAS  INSTALACIONES  DE  ESTE "]
[null,null,null,null,"CEBA  PARA  EL  DESARROLLO  DE  ACTIVIDADES DE EDUCACIÓN COMUNITARIA?",null,null,null,null,null,null,null,null,null,null,null,"¿Qué temas o contenidos se han abordado en las actividades de educación comunitaria"]
[null,null,null,null,null,null,null,null,null,null,null,null,null,null,null,null,"realizadas en las instalaciones de su institución educativa?"]
[null,null,null,null,null,null,null,null,null,null,null,null,null,null,null,null,"Marque con una \"X\", una o más opciones"]
[]
[null,null,null,null,null,null,null,null,"Sí",null,null,null,null,null,null,null,null,"Ciudadanía y convivencia"]
[null,null,null,null,null,null,null,null,null,null,null,null,null,null,null,null,null,"Pueblos indígenas, diversidad cultural y arte"]
[null,null,null,null,null,null,null,null,null,null,null,null,null,"|",null,null,null,"Gestión pública y gobernabilidad"]
[null,null,null,null,null,null,null,null,null,null,null,null,null,null,null,null,null,"Generación de conocimientos y tecnología"]
[null,null,null,null,null,null,null,null,"No","",null,null,null,null,null,null,null,"Desarrollo de capacidades y liderazgo"]
[null,null,null,null,null,null,null,null,null,null,null,null,null,null,null,null,null,"Trabajo y producción"]
[null,null,null,null,null,null,null,null,null,null,null,null,null,null,null,null,null,"Ambiente y territorio"]
[null,null,null,null,null,null,null,null,null,null,null,null,null,null,null,null,null,"Salud, seguridad alimentaria y deporte"]
[null,null,null,null,null,null,null,null,null,null,null,null,null,null,null,null,null,"Otros"]

{"sheet":"C200","index":4,"n_rows":343,"n_cols":28,"rows_kept":343,"cut":false,"hidden":false,"merged":[[326,3,326,22],[307,3,307,22],[336,2,339,2],[336,3,338,4],[336,5,336,22],[338,5,338,6],[338,7,338,8],[338,9,338,10],[338,11,338,12],[338,13,338,14],[338,15,338,16],[338,17,338,18],[338,19,338,20],[338,21,338,22],[328,5,328,22],[330,5,330,6],[330,7,330,8],[330,9,330,10],[330,11,330,12],[330,13,330,14],[330,15,330,16],[330,17,330,18],[330,19,330,20],[330,21,330,22],[317,2,320,2],[317,3,319,4],[319,5,319,6],[319,7,319,8],[319,9,319,10],[319,11,319,12],[319,13,319,14],[319,15,319,16],[319,17,319,18],[319,19,319,20],[319,21,319,22],[317,5,317,22],[328,2,331,2],[328,3,330,4],[309,5,309,22],[1,4,1,21],[2,4,2,21],[309,2,312,2],[309,3,311,4],[311,5,311,6],[311,7,311,8],[311,9,311,10],[311,11,311,12],[311,13,311,14],[311,15,311,16],[311,17,311,18],[311,19,311,20],[311,21,311,22],[173,11,174,13],[296,3,296,18],[270,3,270,17],[284,3,284,17],[287,11,287,12],[299,6,299,8],[298,9,298,13],[293,2,293,3],[290,2,290,3],[287,9,287,10],[272,15,272,18],[273,17,273,18],[298,14,298,18],[298,3,300,3],[299,4,299,5],[299,16,299,18],[299,14,299,15],[299,9,299,10],[299,11,299,13],[298,2,300,2],[298,4,298,8],[281,2,281,3],[273,9,273,10],[279,2,279,3],[286,7,286,10],[272,4,273,4],[286,2,288,4],[273,13,273,14],[272,11,272,14],[278,2,278,3],[277,2,277,3],[276,2,276,3],[272,5,273,6],[272,2,274,3],[272,7,272,10],[280,2,280,3],[287,13,287,14],[221,11,221,12],[225,2,225,3],[224,2,224,3],[220,2,222,3],[220,5,221,6],[220,11,220,14],[221,13,221,14],[221,7,221,8],[220,7,220,10],[221,9,221,10],[286,5,287,6],[230,2,231,5],[230,7,230,8],[230,9,230,10],[286,15,286,18],[287,7,287,8],[287,17,287,18],[10,3,12,4],[12,17,12,18],[286,11,286,14],[91,11,91,20],[44,7,44,8],[78,14,78,15],[273,7,273,8],[93,15,93,16],[273,15,273,16],[273,11,273,12],[230,14,231,18],[230,11,230,12],[231,8,232,8],[231,9,232,9],[231,10,232,10],[287,15,287,16],[231,11,232,11],[199,9,199,10],[221,17,221,18],[198,9,198,10],[76,18,76,27],[10,2,13,2],[197,7,197,8],[197,9,197,10],[196,15,196,16],[194,11,194,14],[194,7,194,10],[196,7,196,8],[195,11,195,12],[195,13,195,14],[196,9,196,10],[196,13,196,14],[197,15,197,16],[195,15,195,16],[197,13,197,14],[91,2,94,8],[113,2,114,2],[120,3,121,3],[120,2,121,2],[113,3,114,3],[113,4,113,18],[171,3,171,12],[77,18,77,21],[10,15,10,24],[194,15,194,18],[128,19,128,20],[78,26,78,27],[147,11,147,12],[147,13,147,14],[147,15,147,16],[147,17,147,18],[125,3,125,18],[146,2,148,4],[146,6,148,6],[104,3,104,18],[111,3,111,18],[118,3,118,18],[127,2,129,4],[127,6,129,6],[142,3,142,5],[146,9,146,12],[76,6,78,7],[106,4,106,18],[128,9,128,10],[93,13,93,14],[127,17,127,20],[93,19,93,20],[147,19,147,20],[146,7,147,8],[11,19,11,24],[12,5,12,6],[11,9,11,14],[12,23,12,24],[11,15,11,18],[12,7,12,8],[12,13,12,14],[12,19,12,20],[12,21,12,22],[12,15,12,16],[12,11,12,12],[12,9,12,10],[40,3,40,14],[43,5,43,8],[77,12,77,17],[44,11,44,12],[127,9,127,12],[44,9,44,10],[78,24,78,25],[78,20,78,21],[78,22,78,23],[77,22,77,27],[77,8,77,11],[44,13,44,14],[76,8,76,17],[42,3,44,4],[89,3,89,20],[267,16,267,18],[195,17,195,18],[128,15,128,16],[181,15,181,16],[128,17,128,18],[128,13,128,14],[205,11,205,12],[181,17,181,18],[231,7,232,7],[228,3,228,18],[181,9,181,10],[180,11,180,14],[181,11,181,12],[127,7,128,8],[145,3,145,18],[161,4,161,5],[192,3,192,17],[218,3,218,17],[128,11,128,12],[198,13,198,14],[199,7,199,8],[204,11,204,14],[214,3,214,4],[204,2,206,4],[181,7,181,8],[180,5,181,6],[195,9,195,10],[205,9,205,10],[197,11,197,12],[196,11,196,12],[205,13,205,14],[202,3,202,17],[199,13,199,14],[197,17,197,18],[196,17,196,18],[230,22,230,23],[231,22,232,22],[231,23,232,23],[230,20,230,21],[231,24,232,24],[231,25,232,25],[230,24,230,25],[198,17,198,18],[198,15,198,16],[199,15,199,16],[231,21,232,21],[220,15,220,18],[205,17,205,18],[199,17,199,18],[205,15,205,16],[147,9,147,10],[231,12,232,12],[201,2,201,12],[204,5,205,6],[204,15,204,18],[221,15,221,16],[146,13,146,16],[146,17,146,20],[178,3,178,17],[195,7,195,8],[194,6,195,6],[194,2,195,4],[180,4,181,4],[180,7,180,10],[155,4,155,5],[231,20,232,20],[198,11,198,12],[204,7,204,10],[198,7,198,8],[199,11,199,12],[181,13,181,14],[180,15,180,18],[180,2,182,3],[205,7,205,8],[8,3,8,24],[74,3,74,27],[42,2,45,2],[91,9,93,10],[93,17,93,18],[93,11,93,12],[92,11,92,14],[92,15,92,20],[127,13,127,16],[120,4,120,18],[10,5,10,14],[11,5,11,8],[42,5,42,14],[78,10,78,11],[43,9,43,14],[44,5,44,6],[78,12,78,13],[106,3,107,3],[78,16,78,17],[78,8,78,9],[101,2,101,8],[106,2,107,2],[76,2,79,5],[78,18,78,19]]}
[]
[null,null,null,null,"CENSO EDUCATIVO 2025"]
[null,null,null,null,"MATRÍCULA, DOCENTES Y RECURSOS"]
[]
[]
[]
[null,null,"200. MATRÍCULA Y SECCIONES"]
[]
[null,null,201,"MATRÍCULA DE JÓVENES Y ADULTOS DEL (LOS) PERÍODO(S) PROMOCIONAL(ES) CORRESPONDIENTES A LA FECHA DE REPORTE DEL CEBA Y PERIFÉRICOS, POR CICLO, GRADO Y SEXO, SEGÚN EDAD"]
[]
[null,null,"Edad en años cumplidos al 31-03-2025","TOTAL",null,"CEBA (Referencial)",null,null,null,null,null,null,null,null,null,"PERIFÉRICO"]
[null,null,null,null,null,"Inicial",null,null,null,"Intermedio",null,null,null,null,null,"Inicial",null,null,null,"Intermedio"]
[null,null,null,null,null,"1º",null,"2º",null,"1º",null,"2º",null,"3º",null,"1º",null,"2º",null,"1º",null,"2º",null,"3º"]
[null,null,null,"H","M","H","M","H","M","H","M","H","M","H","M","H","M","H","M","H","M","H","M","H","M"]
["00",null,"TOTAL",{"$f":"F15+H15+J15+L15+N15+P15+R15+T15+V15+X15","v":0},{"$f":"G15+I15+K15+M15+O15+Q15+S15+U15+W15+Y15","v":0},{"$f":"SUM(F16:F38)","v":0},0,0,0,0,0,0,0,0,0,0,0,0,0,0,0,0,0,0,0]
["14",null,"14 y menos",{"$f":"F16+H16+J16+L16+N16+P16+R16+T16+V16+X16","v":0},0]
["15",null,15,0,0]
["16",null,16,0,0]
["17",null,17,0,0]
["18",null,18,0,0]
["19",null,19,0,0]
["20",null,20,0,0]
["21",null,21,0,0]
["22",null,22,0,0]
["23",null,23,0,0]
["24",null,24,0,0]
["25",null,"25-29",0,0]
["30",null,"30-34",0,0]
["35",null,"35-39",0,0]
["40",null,"40-44",0,0]
["45",null,"45-49",0,0]
["50",null,"50-54",0,0]
["55",null,"55-59",0,0]
["60",null,"60-64",0,0]
["65",null,"65-69",0,0]
["70",null,"70-74",0,0]
["75",null,"75-79",0,0]
["80",null,"80 y más",0,0]
[null,null,"*Nota: Incluya a los estudiantes con algún tipo de Necesidad Educativa Especial (NEE)."]
[]
[null,null,202,"MATRÍCULA DE JÓVENES Y ADULTOS DEL (LOS) PERÍODO(S) PROMOCIONAL(ES) CORRESPONDIENTES A LA FECHA DE REPORTE DE LOS CÍRCULOS DE APRENDIZAJE, POR CICLO, GRADO Y SEXO, SEGÚN EDAD."]
[]
[null,null,"Edad en años cumplidos al 31-03-2025","TOTAL",null,"CÍRCULOS DE APRENDIZAJE"]
[null,null,null,null,null,"Inicial",null,null,null,"Intermedio"]
[null,null,null,null,null,"1º",null,"2º",null,"1º",null,"2º",null,"3º"]
[null,null,null,"H","M","H","M","H","M","H","M","H","M","H","M"]
["00",null,"TOTAL",{"$f":"F47+H47+J47+L47+N47","v":0},0,{"$f":"SUM(F48:F70)","v":0},{"$f":"SUM(G48:G70)","v":0},{"$f":"SUM(H48:H70)","v":0},0,0,0,0,0,0,0]
["14",null,"14 y menos",0,0]
["15",null,15,0,0]
["16",null,16,{"$f":"F50+H50+J50+L50+N50","v":0},{"$f":"G50+I50+K50+M50+O50","v":0}]
["17",null,17,0,0]
["18",null,18,0,0]
["19",null,19,0,0]
["20",null,20,0,0]
["21",null,21,0,0]
["22",null,22,0,0]
["23",null,23,0,0]
["24",null,24,0,0]
["25",null,"25-29",0,0]
["30",null,"30-34",0,0]
["35",null,"35-39",0,0]
["40",null,"40-44",0,0]
["45",null,"45-49",0,0]
["50",null,"50-54",0,0]
["55",null,"55-59",0,0]
["60",null,"60-64",0,0]
["65",null,"65-69",0,0]
["70",null,"70-74",0,0]
["75",null,"75-79",0,0]
["80",null,"80 y más",0,0]
[null,null,"1/ Los estudiantes son atendidos por facilitadores en alfabetización a cargo de la Dirección de Educación Básica Alternativa "]
[null,null,"Según RSG N° 063-2015-MINEDU"]
[null,null,"Nota: Incluya a los alumnos con algún tipo de necesidad educativa especial (NEE)."]
[]
[null,null,203,"MATRÍCULA DE JÓVENES Y ADULTOS DEL (LOS) PERÍODO(S) PROMOCIONAL(ES) CORRESPONDIENTE A LA FECHA DE REPORTE DE LOS CEBA Y PERIFÉRICOS, POR CICLO, GRADO Y SEXO, SEGÚN SITUACIÓN AL MATRICULARSE"]
[]
[null,null,"SITUACIÓN AL MATRICULARSE",null,null,null,"TOTAL",null,"CEBA (Referencial)",null,null,null,null,null,null,null,null,null,"PERIFÉRICO"]
[null,null,null,null,null,null,null,null,"Inicial",null,null,null,"Intermedio",null,null,null,null,null,"Inicial",null,null,null,"Intermedio"]
[null,null,null,null,null,null,null,null,"1º",null,"2º",null,"1º",null,"2º",null,"3º",null,"1º",null,"2º",null,"1º",null,"2º",null,"3º"]
[null,null,null,null,null,null,"H","M","H","M","H","M","H","M","H","M","H","M","H","M","H","M","H","M","H","M","H","M"]
["00",null,"TOTAL",null,null,null,{"$f":"I81+K81+M81+O81+Q81+S81+U81+W81+Y81+AA81","v":0},0,{"$f":"SUM(I82:I87)","v":0},{"$f":"SUM(J82:J87)","v":0},{"$f":"SUM(K82:K87)","v":0},0,0,0,0,0,0,{"$f":"SUM(R82:R87)","v":0},0,0,0,0,0,0,0,0,0,0]
["01",null,"INGRESANTES ",null,null,null,0,0]
["02",null,"PROMOVIDOS del mismo CEBA",null,null,null,0,0]
["03",null,"PROMOVIDOS de otro CEBA",null,null,null,{"$f":"I84+K84+M84+O84+Q84+S84+U84+W84+Y84+AA84","v":0},{"$f":"J84+L84+N84+P84+R84+T84+V84+X84+Z84+AB84","v":0}]
["04",null,"PERMANECE EN EL GRADO EN EL MISMO CEBA",null,null,null,0,0]
["05",null,"PERMANECE EN EL GRADO PROVENIENTE DE OTRO",null,null,null,0,0]
["06",null,"REENTRANTES",null,null,null,0,0]
[null,null,"Nota: Los totales de esta tabla deben ser iguales a los de la tabla 201."]
[]
[null,null,204,"MATRÍCULA DE JÓVENES Y ADULTOS DEL (LOS) PERÍODO(S) PROMOCIONAL(ES) CORRESPONDIENTE A LA FECHA DE REPORTE DE LOS CÍRCULOS DE APRENDIZAJE, POR CICLO, GRADO Y SEXO, SEGÚN SITUACIÓN AL MATRICULARSE"]
[]
[null,null,"SITUACIÓN AL MATRICULARSE",null,null,null,null,null,null,"TOTAL",null,"CÍRCULO DE APRENDIZAJE"]
[null,null,null,null,null,null,null,null,null,null,null,"Inicial",null,null,null,"Intermedio"]
[null,null,null,null,null,null,null,null,null,null,null,"1º",null,"2º",null,"1º",null,"2º",null,"3º"]
[null,null,null,null,null,null,null,null,null,"H","M","H","M","H","M","H","M","H","M","H","M"]
["00",null,"TOTAL",null,null,null,null,null,null,{"$f":"L96+N96+P96+R96+T96","v":0},0,{"$f":"SUM(L97:L102)","v":0},0,0,0,0,0,0,0,0,0]
["01",null,"INGRESANTES (Cursan por primera vez el 1º grado en el ciclo de la EBA)",null,null,null,null,null,null,0,0]
["02",null,"PROMOVIDOS del mismo Círculo de Aprendizaje",null,null,null,null,null,null,0,0]
["03",null,"PROMOVIDOS de otro CEBA (Aprobaron el periodo anterior en otro CEBA)",null,null,null,null,null,null,{"$f":"L99+N99+P99+R99+T99","v":0},{"$f":"M99+O99+Q99+S99+U99","v":0}]
["04",null,"PERMANECE EN EL GRADO EN EL MISMO Círculo de Aprendizaje (Repetidor)",null,null,null,null,null,null,0,0]
["05",null,"PERMANECE EN EL GRADO PROVENIENTE DE OTRO CEBA (Repetidor)",null,null,null,null,null,null,0,0]
["06",null,"REENTRANTES (Dejaron de estudiar más de un periodo)",null,null,null,null,null,null,0,0]
[null,null,"Nota: Los totales de esta tabla deben ser iguales a los de la tabla 202."]
[]
[null,null,205,"NÚMERO DE INGRESANTES EN EL CICLO INICIAL E INTERMEDIO DEL (LOS) PERÍODOS PROMOCIONAL(ES) CORRESPONDIENTE A LA FECHA DE REPORTE DEL CEBA (REFERENCIAL), POR EDAD, SEGÚN SEXO"]
[]
[null,null,"SEXO","TOTAL","EDAD EN AÑOS CUMPLIDOS"]
[null,null,null,null,"14 y menos",15,16,17,18,19,20,21,22,23,24,"25 - 29","30 - 34","35 - 39","40\ny más"]
["01",null," Hombre",{"$f":"SUM(E109:S109)","v":0}]
["02",null," Mujer",{"$f":"SUM(E110:S110)","v":0}]
[]
[null,null,206,"NÚMERO DE INGRESANTES EN EL CICLO INICIAL E INTERMEDIO DEL (LOS) PERÍODOS PROMOCIONAL(ES) CORRESPONDIENTE A LA FECHA DE REPORTE DE LOS PERIFÉRICOS, POR EDAD, SEGÚN SEXO"]
[]
[null,null,"SEXO","TOTAL","EDAD EN AÑOS CUMPLIDOS"]
[null,null,null,null,"14 y menos",15,16,17,18,19,20,21,22,23,24,"25 - 29","30 - 34","35 - 39","40\ny más"]
["01",null," Hombre",{"$f":"SUM(E116:S116)","v":0}]
["02",null," Mujer",{"$f":"SUM(E117:S117)","v":0}]
[]
[null,null,207,"NÚMERO DE INGRESANTES EN EL CICLO INICIAL E INTERMEDIO DEL (LOS) PERÍODOS PROMOCIONAL(ES) CORRESPONDIENTE A LA FECHA DE REPORTE DE LOS CÍRCULOS DE APRENDIZAJE, POR EDAD, SEGÚN SEXO"]
[]
[null,null,"SEXO","TOTAL","EDAD EN AÑOS CUMPLIDOS"]
[null,null,null,null,"14 y menos",15,16,17,18,19,20,21,22,23,24,"25 - 29","30 - 34","35 - 39","40\ny más"]
["01",null," Hombre",{"$f":"SUM(E123:S123)","v":0}]
["02",null," Mujer",{"$f":"SUM(E124:S124)","v":0}]
[]
[null,null,208,"MATRÍCULA DE JÓVENES Y ADULTOS DEL LOS PERÍODO(S) PROMOCIONAL(ES) CORRESPONDIENTES A LA FECHA DE REPORTE DE LOS CEBA, PERIFÉRICOS Y CÍRCULOS DE APRENDIZAJE POR FORMA DE ATENCIÓN Y SEXO, SEGÚN TIPO DISCAPACIDAD"]
[]
[null,null,"TIPO DE DISCAPACIDAD",null,null,null,"¿Detectó  está discapa- cidad?","TOTAL",null,"CEBA (Referencial)",null,null,null,"PERIFÉRICO",null,null,null,"CÍRCULO DE APRENDIZAJE"]
[null,null,null,null,null,null,null,null,null,"Inicial",null,"Intermedio",null,"Inicial",null,"Intermedio",null,"Inicial",null,"Intermedio"]
[null,null,null,null,null,{"$f":"COUNTIF(G132:G144,\"SI\") + COUNTIF(G132:G144,\"NO\")","v":0},null,"H","M","H","M","H","M","H","M","H","M","H","M","H","M"]
["00",null,"TOTAL",null,null,null,"SN",{"$f":"J131+L131+N131+P131+R131+T131","v":0},{"$f":"K131+M131+O131+Q131+S131+U131","v":0},{"$f":"SUM(J132:J143)","v":0},0,0,0,0,0,0,0,0,0,0,0]
["01",null,"Discapacidad Intelectual - Leve",null,null,null,null,{"$f":"J132+L132+N132+P132+R132+T132","v":0},0]
["02",null,"Discapacidad Intelectual - Moderada",null,null,null,null,0,0]
["03",null,"Discapacidad Auditiva - Hipoacusia",null,null,null,null,0,0]
["04",null,"Discapacidad Auditiva - Sordera",null,null,null,null,0,0]
["05",null,"Discapacidad Visual - Baja Visión",null,null,null,null,0,0]
["06",null,"Discapacidad Visual - Ceguera",null,null,null,null,0,0]
["07",null,"Discapacidad Física o Motora",null,null,null,null,0,0]
["08",null,"TEA - Requiere de apoyo (Nivel 1)",null,null,null,null,0,0]
["09",null,"TEA - Requiere de apoyo notable  (Nivel 2)",null,null,null,null,0,0]
["10",null,"TEA - Requiere de apoyo muy notable  (Nivel 3)",null,null,null,null,0,0]
["11",null,"Sordoceguera",null,null,null,null,0,0]
["12",null,"Otra discapacidad",null,null,null,null,0,0]
[null,null,null,null,null,null,{"$f":"COUNTIF(G132:G143,\"SI\")","v":0},{"$f":"SUM(H132:H143)","v":0},{"$f":"SUM(I132:I143)","v":0},{"$f":"F15+H15","v":0},{"$f":"G15+I15","v":0},{"$f":"J15+L15+N15","v":0},{"$f":"K15+M15+O15","v":0},{"$f":"P15+R15","v":0},{"$f":"Q15+S15","v":0},{"$f":"T15+V15+X15","v":0},{"$f":"U15+W15+Y15","v":0},{"$f":"F47+H47","v":0},{"$f":"G47+I47","v":0},{"$f":"J47+L47+N47","v":0},{"$f":"K47+M47+O47","v":0}]
[]
[null,null,209,"MATRÍCULA TOTAL POR GRADO DE ESTUDIO Y SEXO, SEGÚN OTRAS CONDICIONES DETECTADAS"]
[null,null,"TIPO DE DISCAPACIDAD",null,null,null,"¿Detectó  está condi- ción?","TOTAL",null,"CEBA (Referencial)",null,null,null,"PERIFÉRICO",null,null,null,"CÍRCULO DE APRENDIZAJE"]
[null,null,null,null,null,null,null,null,null,"Inicial",null,"Intermedio",null,"Inicial",null,"Intermedio",null,"Inicial",null,"Intermedio"]
[null,null,null,null,null,{"$f":"COUNTIF(G151:G170,\"SI\") + COUNTIF(G151:G170,\"NO\")","v":0},null,"H","M","H","M","H","M","H","M","H","M","H","M","H","M"]
["00",null,"TOTAL",null,null,null,"SN",{"$f":"J150+L150+N150+P150+R150+T150","v":0},0,{"$f":"SUM(J151:J169)","v":0},0,0,0,0,0,0,0,0,0,0,0]
["01",null,"Retraso global del desarrollo",null,null,null,null,0,0]
["02",null,"Trastorno por Déficit de Atención - TDAH",null,null,null,null,0,0]
["03",null,"TEA - Dislexia",null,null,null,null,{"$f":"J153+L153+N153+P153+R153+T153","v":0},{"$f":"K153+M153+O153+Q153+S153+U153","v":0}]
["04",null,"TEA - Discalculia",null,null,null,null,0,0]
["05",null,"TEA - Disgrafia",null,null,null,null,0,0]
["06",null,"TEA - Otros",null,null,null,null,0,0]
["07",null,"Esquizofrenia (E)",null,null,null,null,0,0]
["08",null,"Depresión (D)",null,null,null,null,0,0]
["09",null,"Ansiedad (A)",null,null,null,null,0,0]
["10",null,"Trastornos de personalidad",null,null,null,null,0,0]
["11",null,"Otros de la salud mental, socioemocional o com…",null,null,null,null,0,0]
["12",null,"Enfermedades Raras",null,null,null,null,0,0]
["13",null,"Talla Baja",null,null,null,null,0,0]
["14",null,"Menos de 15 días de hospitalización",null,null,null,null,0,0]
["15",null,"De 15 a 30 días de hospitalización",null,null,null,null,0,0]
["16",null,"Más de 30 días de hospitalización",null,null,null,null,0,0]
["17",null,"Talento",null,null,null,null,0,0]
["18",null,"Superdotación",null,null,null,null,0,0]
["19",null,"Otras condiciones relacionadas",null,null,null,null,{"$f":"J169+L169+N169+P169+R169+T169","v":0},0]
[null,null,null,null,null,null,{"$f":"COUNTIF(G151:G169,\"SI\")","v":0},{"$f":"SUM(H151:H169)","v":0},{"$f":"SUM(I151:I169)","v":0},{"$f":"F15+H15","v":0},{"$f":"G15+I15","v":0},{"$f":"J15+L15+N15","v":0},{"$f":"K15+M15+O15","v":0},{"$f":"P15+R15","v":0},{"$f":"Q15+S15","v":0},{"$f":"T15+V15+X15","v":0},{"$f":"U15+W15+Y15","v":0},{"$f":"F47+H47","v":0},{"$f":"G47+I47","v":0},{"$f":"J47+L47+N47","v":0},{"$f":"K47+M47+O47","v":0}]
[]
[null,null,210,"PARA LOS CASOS DETECTADOS DE ESTUDIANTES CON OTRO TIPO DE NEE O ENFERMEDAD, INDIQUE ¿CUÁL FUE SU SITUACIÓN AL MATRICULARSE EN EL PRESENTE AÑO?"]
[]
[null,null,"SITUACIÓN AL MATRICULARSE",null,null,null,null,null,null,null,null,"N° de estudiantes detectado"]
[]
["00",null,"Número de estudiantes con otro tipo de NEE o enfermedad que desertaron o se retiraron",null,null,null,null,null,null,null,null,null,null,{"$f":"SUM(H132:I143)","v":0}]
["01",null,"Número de estudiantes con otro tipo de NEE o enfermedad que promovieron de grado",null,null,null,null,null,null,null,null,null,null,{"$f":"SUM(H151:I169)","v":0}]
["02"]
[null,null,211,"MATRÍCULA DE JÓVENES Y ADULTOS DEL (LOS) PERÍODO(S) PROMOCIONAL(ES) CORRESPONDIENTES A LA FECHA DE REPORTE DE LOS CEBA, PERIFÉRICOS Y CÍRCULOS DE APRENDIZAJE, POR CICLO Y SEXO, SEGÚN TENENCIA DE HIJOS"]
[]
[null,null,"NÚMERO DE HIJOS (AS)",null,null,"TOTAL",null,"CEBA (Referencial)",null,null,null,"PERIFÉRICO",null,null,null,"CÍRCULO DE APRENDIZAJE"]
[null,null,null,null,null,null,null,"Inicial",null,"Intermedio",null,"Inicial",null,"Intermedio",null,"Inicial",null,"Intermedio"]
[null,null,null,null,null,"H","M","H","M","H","M","H","M","H","M","H","M","H","M"]
["00",null,"TOTAL",null,null,{"$f":"H184+J184+L184+N184+P184+R184","v":0},{"$f":"I184+K184+M184+O184+Q184+S184","v":0},{"$f":"SUM(H185:H190)","v":0},{"$f":"SUM(I185:I190)","v":0},{"$f":"SUM(J185:J190)","v":0},0,0,0,0,0,0,0,0,0]
["01",null,0,null,null,{"$f":"H185+J185+L185+N185+P185+R185","v":0},{"$f":"I185+K185+M185+O185+Q185+S185","v":0}]
["02",null,1,null,null,0,0]
["03",null,2,null,null,0,0]
["04",null,3,null,null,0,0]
["05",null,4,null,null,0,0]
["06",null,"5 y más",null,null,0,0]
[null,null,"Nota: Los totales por sexo de esta tabla deben ser iguales a los totales por sexo de la tabla 201 + 202"]
[]
[null,null,212,"MATRÍCULA DE JÓVENES Y ADULTOS DEL (LOS) PERÍODO(S) PROMOCIONAL(ES) CORRESPONDIENTES A LA FECHA DE REPORTE DE LOS CEBA, PERIFÉRICOS Y CÍRCULOS DE APRENDIZAJE, POR CICLO, SEGÚN NÚMERO DE EMBARAZOS"]
[]
[null,null,"NÚMERO DE EMBARAZOS",null,null,null,"TOTAL","CEBA (Referencial)",null,null,null,"PERIFÉRICO",null,null,null,"CÍRCULO DE APRENDIZAJE"]
[null,null,null,null,null,null,null,"Inicial",null,"Intermedio",null,"Inicial",null,"Intermedio",null,"Inicial",null,"Intermedio"]
["00",null,"TOTAL",null,null,null,{"$f":"SUM(H197:S197)","v":0},{"$f":"SUM(H198:I200)","v":0},null,{"$f":"SUM(J198:K200)","v":0},null,{"$f":"SUM(L198:M200)","v":0},null,{"$f":"SUM(N198:O200)","v":0},null,{"$f":"SUM(P198:Q200)","v":0},null,{"$f":"SUM(R198:S200)","v":0}]
["01",null,"Primer embarazo",null,null,null,{"$f":"SUM(H198:S198)","v":0}]
["02",null,"Segundo embarazo o más",null,null,null,{"$f":"SUM(H199:S199)","v":0}]
["03",null,"Ninguno",null,null,null,{"$f":"SUM(H200:S200)","v":0}]
[null,null,"Nota: Los totales por sexo de esta tabla deben ser iguales a los totales por sexo de la tabla 201 + 202 (sólo mujeres)"]
[null,null,"    "]
[null,null,213,"MATRÍCULA DE JÓVENES Y ADULTOS, DEL (LOS) PERÍODO(S) PROMOCIONAL(ES) CORRESPONDIENTES A LA FECHA DE REPORTE DE LOS CEBA, PERIFÉRICOS Y CÍRCULOS DE APRENDIZAJE, POR CICLO Y SEXO, SEGÚN TIPO DE OCUPACIÓN"]
[]
[null,null,"TIPO DE OCUPACIÓN",null,null,"TOTAL",null,"CEBA (Referencial)",null,null,null,"PERIFÉRICO",null,null,null,"CÍRCULO DE APRENDIZAJE"]
[null,null,null,null,null,null,null,"Inicial",null,"Intermedio",null,"Inicial",null,"Intermedio",null,"Inicial",null,"Intermedio"]
[null,null,null,null,null,"H","M","H","M","H","M","H","M","H","M","H","M","H","M"]
["00",null,"TOTAL",null,null,{"$f":"H208+J208+L208+N208+P208+R208","v":0},{"$f":"I208+K208+M208+O208+Q208+S208","v":0},{"$f":"SUM(H209:H216)","v":0},{"$f":"SUM(I209:I216)","v":0},0,0,0,0,0,0,0,0,0,0]
["01",null,"Empleado (a)",null,null,0,0]
["02",null,"Obrero (a)",null,null,0,0]
["03",null,"Ambulante",null,null,0,0]
["04",null,"Trabajador (a) Independiente",null,null,0,0]
["05",null,"Trabajador (a) del Hogar",null,null,0,0]
["06",null,"Trabajo Familiar",null,null,0,0]
["07",null,"Otro",null,null,0,0]
["08",null,"Solo estudia",null,null,0,0]
[null,null,"Nota: Los totales por sexo de esta tabla deben ser iguales a los totales por sexo de la tabla 201 + 202"]
[]
[null,null,214,"MATRÍCULA DE JÓVENES Y ADULTOS DEL (LOS) PERÍODO(S) PROMOCIONAL(ES) CORRESPONDIENTES A LA FECHA DE REPORTE DE LOS CEBA, PERIFÉRICOS Y CÍRCULOS DE APRENDIZAJE, POR CICLO Y SEXO, SEGÚN MIEMBROS DEL HOGAR"]
[]
[null,null,"TIPO DEL MIEMBRO EN EL HOGAR",null,null,"TOTAL",null,"CEBA (Referencial)",null,null,null,"PERIFÉRICO",null,null,null,"CÍRCULO DE APRENDIZAJE"]
[null,null,null,null,null,null,null,"Inicial",null,"Intermedio",null,"Inicial",null,"Intermedio",null,"Inicial",null,"Intermedio"]
[null,null,null,null,null,"H","M","H","M","H","M","H","M","H","M","H","M","H","M"]
["00",null,"TOTAL",null,null,{"$f":"H224+J224+L224+N224+P224+R224","v":0},0,{"$f":"SUM(H225:H226)","v":0},{"$f":"SUM(I225:I226)","v":0},0,0,0,0,0,0,0,0,0,0]
["01",null,"Jefe(a) del hogar",null,null,0,0]
["02",null,"No es jefe(a) del hogar",null,null,0,0]
[null,null,"Nota: Los totales por sexo de esta tabla deben ser iguales a los totales por sexo de la tabla 201 + 202"]
[]
[null,null,215,"MATRÍCULA DE JÓVENES Y ADULTOS DEL (LOS) PERÍODO(S) PROMOCIONAL(ES) CORRESPONDIENTES A LA FECHA DE REPORTE DE LOS CEBA, PERIFÉRICOS Y CÍRCULOS DE APRENDIZAJE, POR CICLO Y SEXO, SEGÚN LENGUA MATERNA"]
[]
[null,null,"LENGUA",null,null,null,null,"CEBA",null,"PERIFÉRICO",null,"CÍRCULO",null,null,"LENGUA",null,null,null,null,null,"CEBA",null,"PERIFÉRICO",null,"CÍRCULO"]
[null,null,null,null,null,null,"TOTAL","Inicial","Inter- medio","Inicial","Inter- medio","Inicial","Inter- medio",null,null,null,null,null,null,"TOTAL","Inicial","Inter- medio","Inicial","Inter- medio","Inicial","Inter- medio"]
[null,null,"Código           Denominación",null,null,null,null,null,null,null,null,null,null,null,"Código           Denominación"]
[null,null,"0000","TOTAL",null,null,{"$f":"SUM(H234:M234)","v":0},{"$f":"SUM(H235:H268,U234:U268)","v":0},0,0,0,0,0,null,"3200","Omagua",null,null,null,{"$f":"SUM(U234:Z234)","v":0}]
[null,null,"0100","Castellano",null,null,{"$f":"SUM(H235:M235)","v":0},null,null,null,null,null,null,null,"3310","Quechua amazónico (Kichwa)",null,null,null,{"$f":"SUM(U235:Z235)","v":0}]
[null,null,"LENGUAS ORIGINARIAS DEL PERÚ",null,null,null,null,null,null,null,null,null,null,null,"3321","Quechua central (Ancash)",null,null,null,{"$f":"SUM(U236:Z236)","v":0}]
[null,null,"0200","Achuar",null,null,{"$f":"SUM(H237:M237)","v":0},null,null,null,null,null,null,null,"3322","Quechua central (Huánuco)",null,null,null,{"$f":"SUM(U237:Z237)","v":0}]
[null,null,"0300","Aimara",null,null,{"$f":"SUM(H238:M238)","v":0},null,null,null,null,null,null,null,"3323","Quechua central (Wanka)",null,null,null,0]
[null,null,"0400","Amahuaca",null,null,{"$f":"SUM(H239:M239)","v":0},null,null,null,null,null,null,null,"3324","Quechua central (Pasco)",null,null,null,0]
[null,null,"0500","Arabela",null,null,0,null,null,null,null,null,null,null,"3331","Quechua norteño (Cajamarca)",null,null,null,0]
[null,null,"0600","Ashaninka",null,null,0,null,null,null,null,null,null,null,"3332","Quechua norteño (Inkawasi Kañaris)",null,null,null,0]
[null,null,"0610","Asheninka",null,null,0,null,null,null,null,null,null,null,"3341","Quechua sureño (Chanka)",null,null,null,0]
[null,null,"0700","Awajún",null,null,0,null,null,null,null,null,null,null,"3342","Quechua sureño (Collao)",null,null,null,0]
[null,null,"0800","Bora",null,null,0,null,null,null,null,null,null,null,"3400","Resigaro",null,null,null,0]
[null,null,"0900","Kapanawa",null,null,0,null,null,null,null,null,null,null,"3500","Secoya",null,null,null,0]
[null,null,"1000","Cashinahua",null,null,0,null,null,null,null,null,null,null,"3600","Sharanahua",null,null,null,0]
[null,null,"1100","Kawki",null,null,0,null,null,null,null,null,null,null,"3700","Shawi",null,null,null,0]
[null,null,"1200","Chamikuro",null,null,0,null,null,null,null,null,null,null,"3800","Shipibo-Konibo",null,null,null,0]
[null,null,"1300","Ese eja",null,null,0,null,null,null,null,null,null,null,"3900","Shiwilu",null,null,null,0]
[null,null,"1400","Harakbut",null,null,0,null,null,null,null,null,null,null,"4000","Taushiro",null,null,null,0]
[null,null,"1500","Iñapari",null,null,0,null,null,null,null,null,null,null,"4100","Ticuna",null,null,null,0]
[null,null,"1600","Ikitu",null,null,0,null,null,null,null,null,null,null,"4200","Urarina",null,null,null,0]
[null,null,"1700","Iskonawa",null,null,0,null,null,null,null,null,null,null,"4300","Wampis",null,null,null,0]
[null,null,"1800","Jaqaru",null,null,0,null,null,null,null,null,null,null,"4400","Yagua",null,null,null,0]
[null,null,"1900","Kakataibo",null,null,0,null,null,null,null,null,null,null,"4500","Yaminahua",null,null,null,0]
[null,null,"2000","Kakinte",null,null,0,null,null,null,null,null,null,null,"4600","Yanesha",null,null,null,0]
[null,null,"2110","Kandozi-chapra (chapra)",null,null,0,null,null,null,null,null,null,null,"4700","Yine",null,null,null,0]
[null,null,"2120","Kandozi-chapra (kandozi)",null,null,0,null,null,null,null,null,null,null,"4800","Nahua",null,null,null,0]
[null,null,"2200","Kukama kukamiria",null,null,0,null,null,null,null,null,null,null,"4900","Lenguaje de señas peruana",null,null,null,{"$f":"SUM(U259:Z259)","v":0}]
[null,null,"2300","Madija",null,null,0,null,null,null,null,null,null,null,"LENGUA EXTRANJERA"]
[null,null,"2400","Maijiki",null,null,0,null,null,null,null,null,null,null,"5100","Alemán",null,null,null,{"$f":"SUM(U261:Z261)","v":0}]
[null,null,"2500","Matsés",null,null,0,null,null,null,null,null,null,null,"5200","Inglés",null,null,null,0]
[null,null,"2600","Matsigenka",null,null,0,null,null,null,null,null,null,null,"5300","Italiano",null,null,null,0]
[null,null,"2700","Muniche",null,null,0,null,null,null,null,null,null,null,"5400","Japonés",null,null,null,0]
[null,null,"2800","Murui-muinani",null,null,0,null,null,null,null,null,null,null,"5500","Portugués",null,null,null,0]
[null,null,"2900","Matsigenka-montetokunirira",null,null,0,null,null,null,null,null,null,null,"5600","Ruso",null,null,null,0]
[null,null,"3000","Nomatsigenga",null,null,{"$f":"SUM(H267:M267)","v":0},null,null,null,null,null,null,null,"5700","Francés",null,null,null,0]
[null,null,"3100","Ocaina",null,null,{"$f":"SUM(H268:M268)","v":0},null,null,null,null,null,null,null,"5800","Otra",null,null,null,0]
[null,null,"Nota: Los totales por sexo de esta tabla deben ser iguales a los totales por sexo de la tabla 201 + 202"]
[]
[null,null,216,"MATRÍCULA DE JÓVENES Y ADULTOS DEL (LOS) PERÍODO(S) PROMOCIONAL(ES) CORRESPONDIENTES A LA FECHA DE REPORTE DE LOS CEBA, PERIFÉRICOS Y CÍRCULOS DE APRENDIZAJE, POR CICLO Y SEXO, SEGÚN ESTADO CIVIL"]
[]
[null,null,"ESTADO CIVIL",null,null,"TOTAL",null,"CEBA (Referencial)",null,null,null,"PERIFÉRICO",null,null,null,"CÍRCULO DE APRENDIZAJE"]
[null,null,null,null,null,null,null,"Inicial",null,"Intermedio",null,"Inicial",null,"Intermedio",null,"Inicial",null,"Intermedio"]
[null,null,null,null,null,"H","M","H","M","H","M","H","M","H","M","H","M","H","M"]
["00",null,"TOTAL",null,null,{"$f":"H276+J276+L276+N276+P276+R276","v":0},0,{"$f":"SUM(H277:H282)","v":0},{"$f":"SUM(I277:I282)","v":0},{"$f":"SUM(J277:J282)","v":0},0,0,0,0,0,{"$f":"SUM(P277:P282)","v":0},0,0,0]
["01",null,"Soltero(a)",null,null,0,0]
["02",null,"Casado(a)",null,null,0,0]
["03",null,"Conviviente",null,null,0,0]
["04",null,"Viudo(a)",null,null,0,0]
["05",null,"Divorciado(a)",null,null,0,0]
["06",null,"Separado(a)",null,null,0,0]
[null,null,"Nota: Los totales de esta tabla deben ser iguales a los totales de la tabla 201 + 202."]
[]
[null,null,217,"MATRÍCULA DE JÓVENES Y ADULTOS DEL (LOS) PERÍODO(S) PROMOCIONAL(ES) CORRESPONDIENTES A LA FECHA DEL REPORTE DE LOS CEBA, PERIFÉRICOS Y CÍRCULOS DE APRENDIZAJE, POR CICLO Y SEXO, SEGÚN TIPO DE PROGRAMA DE REPARACIÓN EN EDUCACIÓN (Ley 28592)"]
[]
[null,null,"TIPO DE PROGRAMA DE REPARACIÓN EN EDUCACIÓN",null,null,"TOTAL",null,"CEBA (Referencial)",null,null,null,"PERIFÉRICO",null,null,null,"CÍRCULO DE APRENDIZAJE"]
[null,null,null,null,null,null,null,"Inicial",null,"Intermedio",null,"Inicial",null,"Intermedio",null,"Inicial",null,"Intermedio"]
[null,null,null,null,null,"H","M","H","M","H","M","H","M","H","M","H","M","H","M"]
["00",null,"TOTAL",null,null,{"$f":"H290+J290+L290+N290+P290+R290","v":0},0,{"$f":"SUM(H291:H294)","v":0},0,0,0,0,0,0,0,0,0,0,0]
["01",null,"RUV",null,null,0,0]
["02",null,"REBRED",null,null,{"$f":"H292+J292+L292+N292+P292+R292","v":0},{"$f":"I292+K292+M292+O292+Q292+S292","v":0}]
["03",null,"Otros Programas del Estado",null,null,{"$f":"H293+J293+L293+N293+P293+R293","v":0},{"$f":"I293+K293+M293+O293+Q293+S293","v":0}]
["04",null,"Estudiantes no beneficiados",null,null,0,0]
[null,null,"Nota: Los totales de esta tabla deben ser iguales a los totales de la tabla 201 + 202."]
[]
[null,null,218,"SECCIONES DEL (LOS) PERÍODO(S) PROMOCIONAL(ES) CORRESPONDIENTES A LA FECHA DE REPORTE DE LOS CEBA, PERIFÉRICOS Y CÍRCULOS DE APRENDIZAJE, POR CICLO Y GRADO, SEGÚN TURNO"]
[]
[null,null,"TURNO","TOTAL","CEBA (Referencial)",null,null,null,null,"PERIFÉRICO",null,null,null,null,"CÍRCULO DE APRENDIZAJE"]
[null,null,null,null,"Inicial",null,"Intermedio",null,null,"Inicial",null,"Intermedio",null,null,"Inicial",null,"Intermedio"]
[null,null,null,null,"1º","2º","1º","2º","3º","1º","2º","1º","2º","3º","1º","2º","1º","2º","3º"]
["00",null,"TOTAL",{"$f":"SUM(E302:S302)","v":0},{"$f":"SUM(E303:E305)","v":0},{"$f":"SUM(F303:F305)","v":0},{"$f":"SUM(G303:G305)","v":0},0,0,0,0,0,0,0,0,0,0,0,0]
["01",null,"Mañana",{"$f":"SUM(E303:S303)","v":0}]
["02",null,"Tarde",{"$f":"SUM(E304:S304)","v":0}]
["03",null,"Noche",{"$f":"SUM(E305:S305)","v":0}]
[null,null,"Sólo registre el número de secciones que tenga, por grado de estudio, según turno."]
[]
[null,null,219,"MATRÍCULA DE JÓVENES Y ADULTOS EN CEBA REFERENCIAL, POR CICLO INICIAL O INTERMEDIO, SEGÚN CENTRO/DEPENDENCIA, GRADO Y SEXO"]
[]
[null,null,"CICLO","TOTAL",null,"CEBA (Referencial)"]
[null,null,null,null,null,"Centro Penitenciario",null,null,null,null,null,"Muelle o Caleta",null,null,null,null,null,"Dependencia de las FF.AA. (cuarteles)"]
[null,null,null,null,null,"1º",null,"2º",null,"3º",null,"1º",null,"2º",null,"3º",null,"1º",null,"2º",null,"3º"]
[null,null,null,"H","M","H","M","H","M","H","M","H","M","H","M","H","M","H","M","H","M","H","M"]
["00",null,"TOTAL",{"$f":"F314+H314+J314+L314+N314+P314+R314+T314+V314","v":0},0,{"$f":"SUM(F315:F316)","v":0},0,0,0,0,0,0,0,0,0,0,0,0,0,0,0,0,0]
["01",null,"Inicial",0,0]
["02",null,"Intermedio",0,0]
[]
[null,null,"CICLO","TOTAL",null,"CEBA (Referencial)"]
[null,null,null,null,null,"Centro de Adulto Mayor ",null,null,null,null,null,"Centro Juveniles de Diagnóstico y Rehabilitación",null,null,null,null,null,"Otros"]
[null,null,null,null,null,"1º",null,"2º",null,"3º",null,"1º",null,"2º",null,"3º",null,"1º",null,"2º",null,"3º"]
[null,null,null,"H","M","H","M","H","M","H","M","H","M","H","M","H","M","H","M","H","M","H","M"]
["00",null,"TOTAL",{"$f":"F322+H322+J322+L322+N322+P322+R322+T322+V322","v":0},0,{"$f":"SUM(F323:F324)","v":0},0,0,0,0,0,0,0,0,0,0,0,0,0,0,0,0,0]
["01",null,"Inicial",0,0]
["02",null,"Intermedio",0,0]
[]
[]
[null,null,220,"MATRÍCULA DE JÓVENES Y ADULTOS EN PERIFÉRICOS, POR CICLO INICIAL O INTERMEDIO, SEGÚN CENTRO/DEPENDENCIA, GRADO Y SEXO"]
[]
[null,null,"CICLO","TOTAL",null,"CEBA (Referencial)"]
[null,null,null,null,null,"Centro Penitenciario",null,null,null,null,null,"Muelle o Caleta",null,null,null,null,null,"Dependencia de las FF.AA. (cuarteles)"]
[null,null,null,null,null,"1º",null,"2º",null,"3º",null,"1º",null,"2º",null,"3º",null,"1º",null,"2º",null,"3º"]
[null,null,null,"H","M","H","M","H","M","H","M","H","M","H","M","H","M","H","M","H","M","H","M"]
["00",null,"TOTAL",{"$f":"F333+H333+J333+L333+N333+P333+R333+T333+V333","v":0},0,{"$f":"SUM(F334:F335)","v":0},0,0,0,0,0,0,0,0,0,0,0,0,0,0,0,0,0]
["01",null,"Inicial",0,0]
["02",null,"Intermedio",0,0]
[]
[null,null,"CICLO","TOTAL",null,"CEBA (Referencial)"]
[null,null,null,null,null,"Centro de Adulto Mayor ",null,null,null,null,null,"Centro Juveniles de Diagnóstico y Rehabilitación",null,null,null,null,null,"Otros"]
[null,null,null,null,null,"1º",null,"2º",null,"3º",null,"1º",null,"2º",null,"3º",null,"1º",null,"2º",null,"3º"]
[null,null,null,"H","M","H","M","H","M","H","M","H","M","H","M","H","M","H","M","H","M","H","M"]
["00",null,"TOTAL",{"$f":"F341+H341+J341+L341+N341+P341+R341+T341+V341","v":0},0,{"$f":"SUM(F342:F343)","v":0},0,0,0,0,0,0,0,0,0,0,0,0,0,0,0,0,0]
["01",null,"Inicial",0,0]
["02",null,"Intermedio",0,0]

{"sheet":"C300","index":5,"n_rows":198,"n_cols":64,"rows_kept":198,"cut":false,"hidden":false,"merged":[[15,62,17,62],[15,11,17,11],[15,15,15,16],[15,17,17,17],[15,18,17,18],[15,20,17,20],[15,22,17,22],[15,28,17,28],[15,32,17,32],[15,34,17,34],[15,12,17,12],[15,13,17,13],[15,14,17,14],[15,61,16,61],[15,60,16,60],[16,52,17,52],[15,19,17,19],[15,21,17,21],[15,25,17,25],[15,26,17,26],[15,29,17,29],[15,23,17,23],[15,27,17,27],[15,24,17,24],[15,33,17,33],[15,31,17,31],[15,30,17,30],[16,59,17,59],[16,53,17,53],[16,54,17,54],[16,55,17,55],[16,56,17,56],[16,58,17,58],[16,57,17,57],[15,36,17,36],[15,35,17,35],[7,11,7,24],[1,11,1,24],[2,11,2,24],[14,15,14,16],[11,37,11,38]]}
[]
[null,null,null,null,null,null,null,null,null,null,null,"CENSO EDUCATIVO 2025"]
[null,null,null,null,null,null,null,null,null,null,null,"MATRÍCULA, DOCENTES Y RECURSOS"]
[]
["PERSONAL",{"$f":"O10+V10+X10","v":0}]
[]
["DOCENTES",{"$f":"COUNTIF(R19:R218,\"01: Docente\")","v":0},null,null,null,null,null,null,null,null,null,"300. PERSONAL DOCENTE, AUXILIARES DE EDUCACIÓN Y ADMINISTRATIVOS (Para II.EE. Públicas y Privadas)"]
["AUXILIARES",{"$f":"COUNTIF(R19:R218,\"03: Aux. de Educación\")","v":0},null,null,null,null,null,null,null,null,null,"En esta tabla, REGISTRE a todo el personal docente, auxiliares de educación y personal administrativo que se encuentre laborando en el servicio/nivel educativo durante el periodo\nde reporte del censo educativo. (EXCLUYA al personal que se encuentre haciendo uso de licencia y a los que han sido destacados a otra IE/DRE/UGEL)"]
["ADMINISTRATIVOS",{"$f":"COUNTIF(R19:R218,\"02: Administrativo\")","v":0}]
["DOCENTE DE AULA",{"$f":"COUNTIF(AG19:AG218,\"04: (111)-Docente de Aula / por horas\")","v":0},null,null,null,null,null,null,null,null,null,null,null,"TOTAL DOCENTES:  ",null,null,null,"DOCENTES DE AULA: ",null,null,"AUXILIAR DE EDUCACIÓN:  ",null,"ADMINISTRATIVOS:  "]
["DOCENTES CON SECCIÓN",{"$f":"COUNTIF(AK19:AK148,\"SI\")","v":0}]
[null,{"$f":"B7+B8+B9","v":0},null,null,null,null,null,null,null,null,null,"A continuación registre a todo el personal que desempeñe funciones docentes en el Servicio/Nivel educativo: Directivos con o sin aula a cargo, docentes de aula, jefes o jerárquicos, especiales (ed. física, computación, etc.)"]
["LICENCIA",null,null,null,null,null,null,null,null,null,null,"Documentos fuente: Legajo de personal y CAP de la institución educativa."]
[null,null,3,4,5,6,7,8,{"$f":"H14+1","v":9},{"$f":"I14+1","v":10}]
["DOC. LENGUA ORIGINARIA",{"$f":"SUM(J19:J148)","v":0},null,null,null,null,null,null,null,null,null,301,301.10000000000002,301.2,301.3,302,null,303,304,305,306,307,308,309,310,311,312,313,314,315,316,317,318,319,320,321,322,"323. Ciclo y grado atendido",null,null,null,null,null,null,null,null,null,null,null,null,null,null,324,null,null,null,null,null,null,null,325.10000000000002,325.2,325.3]
["GESTION PRIVADA",{"$f":"IF(OR('C100'!O35=\"X\",'C100'!X35=\"X\"),1,IF('C100'!AG35=\"X\",3,\"\"))","v":""},null,null,null,null,null,null,null,null,null,"Nº","Apellido Paterno","Apellido Materno","Nombres","Documento de Identidad",null,"Tipo de\nPersonal","Edad","Sexo","Lengua\nmaterna","¿Domina una\nlengua\noriginaria?\n\nSí - No","Lengua originaria\nque domina","Fuente de\nfinanciamiento","Condición Laboral","Modalidad de Contrato","Máximo nivel\neducativo alcanzado","Especialidad Pedagógica\nque ha estudiado","¿En qué tipo de\ninstitución obtuvo\nsu formación pedagógica?","Estudios de Postgrado\nen Pedagogía","Años de Experiencia Laboral","Años de\nexperiencia\nlaboral en\neste servicio/nivel\neducativo","Función o cargo","Situación en cargo\ndirectivo","Forma de atención","Centro donde labora","¿Tiene secciones a cargo?","CEBA (Referencial)",null,null,null,null,"Periférico",null,null,null,null,"Círculo de Aprendizaje",null,null,null,null,"Área(s) curricular(es) a cargo. Marque con una “X”, según corresponda",null,null,null,null,null,null,null,"¿ Atiende a estudiantes con NEE asociadas a discapacidad ?","¿Presenta alguna discapa- cidad?","Solo si respondió Sí en la pregunta\n325.2 ¿Cúal es el tipo de discapacidad?"]
[null,null,null,null,null,null,null,null,null,null,null,null,null,null,null,302.10000000000002,302.2,null,null,null,null,null,null,null,null,null,null,null,null,null,null,null,null,null,null,null,null,"Inicial",null,"Intermedio",null,null,"Inicial",null,"Intermedio",null,null,"Inicial",null,"Intermedio",null,null,"Mate\nmática","Comuni cación","Inglés","Desarrollo Personal y Ciudadano","Ciencia, Tecnología y Salud","Castellano como segunda Lengua","Educación para el Trabajo","Educación Religiosa"]
["302.1 Tipo de documento de Identidad","314. Tipo de inst. donde estudio","Corr","Escala","Gest","Secc","Fun cion","Duplex","Fmt","Leng",null,null,null,null,null,"Tipo","Número",null,null,null,null,null,null,null,null,null,null,null,null,null,null,null,null,null,null,null,null,"1º","2º","1º","2º","3º","1º","2º","1º","2º","3º","1º","2º","1º","2º","3º",null,null,null,null,null,null,null,null,"Sí / No","Sí / No"]
["01: DNI.","01: IESP (Público)",1,{"$f":"IF(AND(LEFT(R19,2)=\"01\",LEFT(Y19,2)=\"01\",LEFT(X19,2)=\"01\",E19=1),1,0)","v":0},{"$f":"$B$16","v":""},{"$f":"COUNTIF(AL19:AZ19,\"X\")","v":0},{"$f":"IF(R19<>\"\",VALUE(LEFT(R19,2)),0)","v":0},{"$f":"IF(Q19<>\"\",COUNTIF($Q$20:$Q$319,Q19),0)","v":0},{"$f":"IF(L19<>\"\",1,0)","v":0},{"$f":"IF(AND(R19=\"01: Docente\",V19=\"SI\"),1,0)","v":0},null,{"$f":"IF(C19<=$B$5,C19,\"\")","v":""},"","","","","","","","","","","","","","","","","","","","","","","","","","","","","","","","","","","","","","","","","","","","","","","","","","",""]
["02: Carnet Ext.","02: IESP (Privado)",2,0,{"$f":"$B$16","v":""},{"$f":"COUNTIF(AL20:AZ20,\"X\")","v":0},{"$f":"IF(R20<>\"\",VALUE(LEFT(R20,2)),0)","v":0},{"$f":"IF(Q20<>\"\",COUNTIF($Q$20:$Q$319,Q20),0)","v":0},0,{"$f":"IF(AND(R20=\"01: Docente\",V20=\"SI\"),1,0)","v":0},null,{"$f":"IF(C20<=$B$5,C20,\"\")","v":""},"","","","","","","","","","","","","","","","","","","","","","","","","","","","","","","","","","","","","","","","","","","","","","","","","","","",""]
["03: Pasaporte","03: Universidad Privada",3,0,"",0,0,0,0,0,null,{"$f":"IF(C21<=$B$5,C21,\"\")","v":""},"","","","","","","","","","","","","","","","","","","","","","","","","","","","","","","","","","","","","","","","","","","","","","","","","","","",""]
[null,"04: Universidad Pública",4,0,"",0,0,0,0,0,null,"","","","","","","","","","","","","","","","","","","","","","","","","","","","","","","","","","","","","","","","","","","","","","","","","","","","",""]
["303. Tipo de Personal",null,5,0,"",0,0,0,0,0,null,"","","","","","","","","","","","","","","","","","","","","","","","","","","","","","","","","","","","","","","","","","","","","","","","","","","","",""]
["01: Docente","315. Segunda Especialidad",6,0,"",0,0,0,0,0,null,"","","","","","","","","","","","","","","","","","","","","","","","","","","","","","","","","","","","","","","","","","","","","","","","","","","","",""]
["02: Administrativo","Utilice las especialidades de la tabla de códigos 313.",7,0,"",0,0,0,0,0,null,"","","","","","","","","","","","","","","","","","","","","","","","","","","","","","","","","","","","","","","","","","","","","","","","","","","","",""]
["03: Aux. de Educación",null,8,0,"",0,0,0,0,0,null,"","","","","","","","","","","","","","","","","","","","","","","","","","","","","","","","","","","","","","","","","","","","","","","","","","","","",""]
[null,"316. Estudios de Postgrado en Pedagogía",9,0,"",0,0,0,0,0,null,"","","","","","","","","","","","","","","","","","","","","","","","","","","","","","","","","","","","","","","","","","","","","","","","","","","","",""]
["305. Sexo","Estudios de Maestría y doctorado",10,0,"",0,0,0,0,0,null,"","","","","","","","","","","","","","","","","","","","","","","","","","","","","","","","","","","","","","","","","","","","","","","","","","","","",""]
["Hombre","01: Maestria concluida con grado",11,0,"",0,0,0,0,0,null,"","","","","","","","","","","","","","","","","","","","","","","","","","","","","","","","","","","","","","","","","","","","","","","","","","","","",""]
["Mujer","02: Maestria concluida sin grado",12,0,"",0,0,0,0,0,null,"","","","","","","","","","","","","","","","","","","","","","","","","","","","","","","","","","","","","","","","","","","","","","","","","","","","",""]
[null,"03: Maestria en proceso",13,0,"",0,0,0,0,0,null,"","","","","","","","","","","","","","","","","","","","","","","","","","","","","","","","","","","","","","","","","","","","","","","","","","","","",""]
["306. Lengua Materna","04: Doctorado concluido con grado",14,0,"",0,0,0,0,0,null,"","","","","","","","","","","","","","","","","","","","","","","","","","","","","","","","","","","","","","","","","","","","","","","","","","","","",""]
["0100: Castellano","05: Doctorado concluido sin grado",15,0,"",0,0,0,0,0,null,"","","","","","","","","","","","","","","","","","","","","","","","","","","","","","","","","","","","","","","","","","","","","","","","","","","","",""]
["0200: Achuar","06: Doctorado en proceso",16,0,"",0,0,0,0,0,null,"","","","","","","","","","","","","","","","","","","","","","","","","","","","","","","","","","","","","","","","","","","","","","","","","","","","",""]
["0300: Aimara","07: Sin Postgrado",17,0,"",0,0,0,0,0,null,"","","","","","","","","","","","","","","","","","","","","","","","","","","","","","","","","","","","","","","","","","","","","","","","","","","","",""]
["0400: Amahuaca",null,18,0,"",0,0,0,0,0,null,"","","","","","","","","","","","","","","","","","","","","","","","","","","","","","","","","","","","","","","","","","","","","","","","","","","","",""]
["0500: Arabela",null,19,0,"",0,0,0,0,0,null,"","","","","","","","","","","","","","","","","","","","","","","","","","","","","","","","","","","","","","","","","","","","","","","","","","","","",""]
["0600: Asháninka","317. Tiempo de Servicio",20,0,"",0,0,0,0,0,null,"","","","","","","","","","","","","","","","","","","","","","","","","","","","","","","","","","","","","","","","","","","","","","","","","","","","",""]
["0610: Asheninka","Solo personal Nombrado.",21,0,"",0,0,0,0,0,null,"","","","","","","","","","","","","","","","","","","","","","","","","","","","","","","","","","","","","","","","","","","","","","","","","","","","",""]
["0700: Awajún","Tiempo contado expresado en años desde su fecha de Nombramiento",22,0,"",0,0,0,0,0,null,"","","","","","","","","","","","","","","","","","","","","","","","","","","","","","","","","","","","","","","","","","","","","","","","","","","","",""]
["0800: Bora",null,23,0,"",0,0,0,0,0,null,"","","","","","","","","","","","","","","","","","","","","","","","","","","","","","","","","","","","","","","","","","","","","","","","","","","","",""]
["0900: Kapanawa","318. Años de Experiencia Laboral",24,0,"",0,0,0,0,0,null,"","","","","","","","","","","","","","","","","","","","","","","","","","","","","","","","","","","","","","","","","","","","","","","","","","","","",""]
["1000: Cashinahua","Registre el total de años que tiene como experiencia",25,0,"",0,0,0,0,0,null,"","","","","","","","","","","","","","","","","","","","","","","","","","","","","","","","","","","","","","","","","","","","","","","","","","","","",""]
["1100: Kawki","en el Tipo de Personal que se está registrando (Tabla 301.)",26,0,"",0,0,0,0,0,null,"","","","","","","","","","","","","","","","","","","","","","","","","","","","","","","","","","","","","","","","","","","","","","","","","","","","",""]
["1200: Chamikuro",null,27,0,"",0,0,0,0,0,null,"","","","","","","","","","","","","","","","","","","","","","","","","","","","","","","","","","","","","","","","","","","","","","","","","","","","",""]
["1300: Ese eja","319. Años de experiencia laboral en este servicio/ nivel educativo",28,0,"",0,0,0,0,0,null,"","","","","","","","","","","","","","","","","","","","","","","","","","","","","","","","","","","","","","","","","","","","","","","","","","","","",""]
["1400: Harakbut","Anote el N° de años de experiencia prestando servicios",29,0,"",0,0,0,0,0,null,"","","","","","","","","","","","","","","","","","","","","","","","","","","","","","","","","","","","","","","","","","","","","","","","","","","","",""]
["1500: Iñapari","en este servicio/nivel educativo por el tipo de personal",30,0,"",0,0,0,0,0,null,"","","","","","","","","","","","","","","","","","","","","","","","","","","","","","","","","","","","","","","","","","","","","","","","","","","","",""]
["1600: Ikuitu","que se está registrando (Tabla 301.)",31,0,"",0,0,0,0,0,null,"","","","","","","","","","","","","","","","","","","","","","","","","","","","","","","","","","","","","","","","","","","","","","","","","","","","",""]
["1700: Iskonawa",null,32,0,"",0,0,0,0,0,null,"","","","","","","","","","","","","","","","","","","","","","","","","","","","","","","","","","","","","","","","","","","","","","","","","","","","",""]
["1800: Jaqaru","320. Escala Magisterial",33,0,"",0,0,0,0,0,null,"","","","","","","","","","","","","","","","","","","","","","","","","","","","","","","","","","","","","","","","","","","","","","","","","","","","",""]
["1900: Kakataibo","Complete los datos de Escala Magisterial, según corresponda",34,0,"",0,0,0,0,0,null,"","","","","","","","","","","","","","","","","","","","","","","","","","","","","","","","","","","","","","","","","","","","","","","","","","","","",""]
["2000: Kakinte (caquinte)","01: Primera",35,0,"",0,0,0,0,0,null,"","","","","","","","","","","","","","","","","","","","","","","","","","","","","","","","","","","","","","","","","","","","","","","","","","","","",""]
["2110: Kandozi (Chapra)","02: Segunda",36,0,"",0,0,0,0,0,null,"","","","","","","","","","","","","","","","","","","","","","","","","","","","","","","","","","","","","","","","","","","","","","","","","","","","",""]
["2120: Kandozi (Kandozi)","03: Tercera",37,0,"",0,0,0,0,0,null,"","","","","","","","","","","","","","","","","","","","","","","","","","","","","","","","","","","","","","","","","","","","","","","","","","","","",""]
["2200: Kukama-kukamiria","04: Cuarta",38,0,"",0,0,0,0,0,null,"","","","","","","","","","","","","","","","","","","","","","","","","","","","","","","","","","","","","","","","","","","","","","","","","","","","",""]
["2300: Madija (culina)","05: Quinta",39,0,"",0,0,0,0,0,null,"","","","","","","","","","","","","","","","","","","","","","","","","","","","","","","","","","","","","","","","","","","","","","","","","","","","",""]
["2400: Maijiki","06: Sexta",40,0,"",0,0,0,0,0,null,"","","","","","","","","","","","","","","","","","","","","","","","","","","","","","","","","","","","","","","","","","","","","","","","","","","","",""]
["2500: Matsés","07: Séptima",41,0,"",0,0,0,0,0,null,"","","","","","","","","","","","","","","","","","","","","","","","","","","","","","","","","","","","","","","","","","","","","","","","","","","","",""]
["2600: Matsigenka","08: Octava",42,0,"",0,0,0,0,0,null,"","","","","","","","","","","","","","","","","","","","","","","","","","","","","","","","","","","","","","","","","","","","","","","","","","","","",""]
["2700: Munichi","09: Sin Escala",43,0,"",0,0,0,0,0,null,"","","","","","","","","","","","","","","","","","","","","","","","","","","","","","","","","","","","","","","","","","","","","","","","","","","","",""]
["2800: Murui-muinani",null,44,0,"",0,0,0,0,0,null,"","","","","","","","","","","","","","","","","","","","","","","","","","","","","","","","","","","","","","","","","","","","","","","","","","","","",""]
["2900: Matsigenka-montetokunirira","321. Función o Cargo",45,0,"",0,0,0,0,0,null,"","","","","","","","","","","","","","","","","","","","","","","","","","","","","","","","","","","","","","","","","","","","","","","","","","","","",""]
["3000: Nomatsigenga","(Desempeñado a la fecha de reporte)",46,0,"",0,0,0,0,0,null,"","","","","","","","","","","","","","","","","","","","","","","","","","","","","","","","","","","","","","","","","","","","","","","","","","","","",""]
["3100: Ocaina","Docentes",47,0,"",0,0,0,0,0,null,"","","","","","","","","","","","","","","","","","","","","","","","","","","","","","","","","","","","","","","","","","","","","","","","","","","","",""]
["3200: Omagua","01: (102)-Director",48,0,"",0,0,0,0,0,null,"","","","","","","","","","","","","","","","","","","","","","","","","","","","","","","","","","","","","","","","","","","","","","","","","","","","",""]
["3310: Quechua amazónico (Kichwa)","02: (103)-Sub Director",49,0,"",0,0,0,0,0,null,"","","","","","","","","","","","","","","","","","","","","","","","","","","","","","","","","","","","","","","","","","","","","","","","","","","","",""]
["3321: Quechua central (Ancash)","03: (106)-Coordinador, Asesor",50,0,"",0,0,0,0,0,null,"","","","","","","","","","","","","","","","","","","","","","","","","","","","","","","","","","","","","","","","","","","","","","","","","","","","",""]
["3322: Quechua central (Huánuco)","04: (111)-Docente de Aula / por horas",51,0,"",0,0,0,0,0,null,"","","","","","","","","","","","","","","","","","","","","","","","","","","","","","","","","","","","","","","","","","","","","","","","","","","","",""]
["3323: Quechua central (Wanka)","05: (112)-Docente Educación Física",52,0,"",0,0,0,0,0,null,"","","","","","","","","","","","","","","","","","","","","","","","","","","","","","","","","","","","","","","","","","","","","","","","","","","","",""]
["3324: Quechua central (Pasco)","06: (113)-Docente de Computación",53,0,"",0,0,0,0,0,null,"","","","","","","","","","","","","","","","","","","","","","","","","","","","","","","","","","","","","","","","","","","","","","","","","","","","",""]
["3331: Quechua norteño (Cajamarca)","07: (114)-Profesor de Innovación Pedagógica",54,0,"",0,0,0,0,0,null,"","","","","","","","","","","","","","","","","","","","","","","","","","","","","","","","","","","","","","","","","","","","","","","","","","","","",""]
["3332: Quechua norteño (Inkawasi Kañaris)","08: (115)-Docente Especial - otro",55,0,"",0,0,0,0,0,null,"","","","","","","","","","","","","","","","","","","","","","","","","","","","","","","","","","","","","","","","","","","","","","","","","","","","",""]
["3341: Quechua sureño (Chanka)","09: (116)-Docente de Aula con función o cargo directivo",56,0,"",0,0,0,0,0,null,"","","","","","","","","","","","","","","","","","","","","","","","","","","","","","","","","","","","","","","","","","","","","","","","","","","","",""]
["3342: Quechua sureño (Collao)","10: (138)-Tutor a distancia",57,0,"",0,0,0,0,0,null,"","","","","","","","","","","","","","","","","","","","","","","","","","","","","","","","","","","","","","","","","","","","","","","","","","","","",""]
["3400: Resígaro","11: (139)-Otro docente",58,0,"",0,0,0,0,0,null,"","","","","","","","","","","","","","","","","","","","","","","","","","","","","","","","","","","","","","","","","","","","","","","","","","","","",""]
["3500: Secoya",null,59,0,"",0,0,0,0,0,null,"","","","","","","","","","","","","","","","","","","","","","","","","","","","","","","","","","","","","","","","","","","","","","","","","","","","",""]
["3600: Sharanahua",null,60,0,"",0,0,0,0,0,null,"","","","","","","","","","","","","","","","","","","","","","","","","","","","","","","","","","","","","","","","","","","","","","","","","","","","",""]
["3700: Shawi",null,61,0,"",0,0,0,0,0,null,"","","","","","","","","","","","","","","","","","","","","","","","","","","","","","","","","","","","","","","","","","","","","","","","","","","","",""]
["3800: Shipibo-Konibo",null,62,0,"",0,0,0,0,0,null,"","","","","","","","","","","","","","","","","","","","","","","","","","","","","","","","","","","","","","","","","","","","","","","","","","","","",""]
["3900: Shiwilu",null,63,0,"",0,0,0,0,0,null,"","","","","","","","","","","","","","","","","","","","","","","","","","","","","","","","","","","","","","","","","","","","","","","","","","","","",""]
["4000: Taushiro",null,64,0,"",0,0,0,0,0,null,"","","","","","","","","","","","","","","","","","","","","","","","","","","","","","","","","","","","","","","","","","","","","","","","","","","","",""]
["4100: Ticuna",null,65,{"$f":"IF(AND(LEFT(R83,2)=\"01\",LEFT(Y83,2)=\"01\",LEFT(X83,2)=\"01\",E83=1),1,0)","v":0},"",0,0,0,{"$f":"IF(L83<>\"\",1,0)","v":0},0,null,"","","","","","","","","","","","","","","","","","","","","","","","","","","","","","","","","","","","","","","","","","","","","","","","","","","","",""]
["4200: Urarina",null,66,0,{"$f":"$B$16","v":""},{"$f":"COUNTIF(AL84:AZ84,\"X\")","v":0},{"$f":"IF(R84<>\"\",VALUE(LEFT(R84,2)),0)","v":0},{"$f":"IF(Q84<>\"\",COUNTIF($Q$20:$Q$319,Q84),0)","v":0},0,{"$f":"IF(AND(R84=\"01: Docente\",V84=\"SI\"),1,0)","v":0},null,"","","","","","","","","","","","","","","","","","","","","","","","","","","","","","","","","","","","","","","","","","","","","","","","","","","","",""]
["4300: Wampis",null,67,0,"",0,0,0,0,0,null,{"$f":"IF(C85<=$B$5,C85,\"\")","v":""},"","","","","","","","","","","","","","","","","","","","","","","","","","","","","","","","","","","","","","","","","","","","","","","","","","","",""]
["4400: Yagua","Administrativos",68,0,"",0,0,0,0,0,null,"","","","","","","","","","","","","","","","","","","","","","","","","","","","","","","","","","","","","","","","","","","","","","","","","","","","",""]
["4500: Yaminahua","12: (501)-Psicólogo",69,0,"",0,0,0,0,0,null,"","","","","","","","","","","","","","","","","","","","","","","","","","","","","","","","","","","","","","","","","","","","","","","","","","","","",""]
["4600: Yanesha","13: (502)-Trabajo social / Servicio social",70,0,"",0,0,0,0,0,null,"","","","","","","","","","","","","","","","","","","","","","","","","","","","","","","","","","","","","","","","","","","","","","","","","","","","",""]
["4700: Yine","14: (503)-Personal de Salud",71,0,"",0,0,0,0,0,null,"","","","","","","","","","","","","","","","","","","","","","","","","","","","","","","","","","","","","","","","","","","","","","","","","","","","",""]
["4800: Nahua","15: (504)-Administrador o contador",72,0,"",0,0,0,0,0,null,"","","","","","","","","","","","","","","","","","","","","","","","","","","","","","","","","","","","","","","","","","","","","","","","","","","","",""]
["5100: Alemán","16: (537)-Guía intérprete de sordoceguera",73,0,"",0,0,0,0,0,null,"","","","","","","","","","","","","","","","","","","","","","","","","","","","","","","","","","","","","","","","","","","","","","","","","","","","",""]
["5200: Inglés","17: (538)-Intérprete de Lengua de Señas Peruana",74,0,"",0,0,0,0,0,null,"","","","","","","","","","","","","","","","","","","","","","","","","","","","","","","","","","","","","","","","","","","","","","","","","","","","",""]
["5300: Italiano","18: (539)-Modelo Lingüístico",75,0,"",0,0,0,0,0,null,"","","","","","","","","","","","","","","","","","","","","","","","","","","","","","","","","","","","","","","","","","","","","","","","","","","","",""]
["5400: Japonés","19: (506)-Auxiliar de Biblioteca",76,0,"",0,0,0,0,0,null,"","","","","","","","","","","","","","","","","","","","","","","","","","","","","","","","","","","","","","","","","","","","","","","","","","","","",""]
["5500: Portugués","20: (507)-Auxiliar de Laboratorios",77,0,"",0,0,0,0,0,null,"","","","","","","","","","","","","","","","","","","","","","","","","","","","","","","","","","","","","","","","","","","","","","","","","","","","",""]
["5600: Ruso","21: (508)-Secretaria u Oficinista",78,0,"",0,0,0,0,0,null,"","","","","","","","","","","","","","","","","","","","","","","","","","","","","","","","","","","","","","","","","","","","","","","","","","","","",""]
["5700: Francés","22: (510)-Coordinador de Taller",79,0,"",0,0,0,0,0,null,"","","","","","","","","","","","","","","","","","","","","","","","","","","","","","","","","","","","","","","","","","","","","","","","","","","","",""]
["5800: Otra lengua extranjera","23: (511)-Asistente Administrativo",80,0,"",0,0,0,0,0,null,"","","","","","","","","","","","","","","","","","","","","","","","","","","","","","","","","","","","","","","","","","","","","","","","","","","","",""]
[null,"24: (512)-Personal de Servicio-mantenimiento",81,0,"",0,0,0,0,0,null,"","","","","","","","","","","","","","","","","","","","","","","","","","","","","","","","","","","","","","","","","","","","","","","","","","","","",""]
["308. Lengua Originaria","25: (513)-Personal de Servicio-cocina",82,0,"",0,0,0,0,0,null,"","","","","","","","","","","","","","","","","","","","","","","","","","","","","","","","","","","","","","","","","","","","","","","","","","","","",""]
["De: 0200 a 4800","26: (514)-Personal de Servicio-limpieza",83,0,"",0,0,0,0,0,null,"","","","","","","","","","","","","","","","","","","","","","","","","","","","","","","","","","","","","","","","","","","","","","","","","","","","",""]
[null,"27: (515)-Personal de Servicio-portero",84,0,"",0,0,0,0,0,null,"","","","","","","","","","","","","","","","","","","","","","","","","","","","","","","","","","","","","","","","","","","","","","","","","","","","",""]
["309. Fuente de Financiamiento","28: (516)-Personal de Servicio-vigilante",85,0,"",0,0,0,0,0,null,"","","","","","","","","","","","","","","","","","","","","","","","","","","","","","","","","","","","","","","","","","","","","","","","","","","","",""]
["01: Sector Educación","29: (517)-Otro personal de servicio",86,0,"",0,0,0,0,0,null,"","","","","","","","","","","","","","","","","","","","","","","","","","","","","","","","","","","","","","","","","","","","","","","","","","","","",""]
["02: Otro sector público","30: (505)-Otro personal profesional",87,0,"",0,0,0,0,0,null,"","","","","","","","","","","","","","","","","","","","","","","","","","","","","","","","","","","","","","","","","","","","","","","","","","","","",""]
["03: Municipalidad","31: (518)-Otro personal No profesional",88,0,"",0,0,0,0,0,null,"","","","","","","","","","","","","","","","","","","","","","","","","","","","","","","","","","","","","","","","","","","","","","","","","","","","",""]
["04: Gobierno Regional",null,89,0,"",0,0,0,0,0,null,"","","","","","","","","","","","","","","","","","","","","","","","","","","","","","","","","","","","","","","","","","","","","","","","","","","","",""]
["05: APAFA",null,90,0,"",0,0,0,0,0,null,"","","","","","","","","","","","","","","","","","","","","","","","","","","","","","","","","","","","","","","","","","","","","","","","","","","","",""]
["06: Otra fuente Privada",null,91,0,"",0,0,0,0,0,null,"","","","","","","","","","","","","","","","","","","","","","","","","","","","","","","","","","","","","","","","","","","","","","","","","","","","",""]
[null,null,92,0,"",0,0,0,0,0,null,"","","","","","","","","","","","","","","","","","","","","","","","","","","","","","","","","","","","","","","","","","","","","","","","","","","","",""]
["310. Condición Laboral",null,93,0,"",0,0,0,0,0,null,"","","","","","","","","","","","","","","","","","","","","","","","","","","","","","","","","","","","","","","","","","","","","","","","","","","","",""]
["01: Nombrado",null,94,0,"",0,0,0,0,0,null,"","","","","","","","","","","","","","","","","","","","","","","","","","","","","","","","","","","","","","","","","","","","","","","","","","","","",""]
["02: Contratado",null,95,0,"",0,0,0,0,0,null,"","","","","","","","","","","","","","","","","","","","","","","","","","","","","","","","","","","","","","","","","","","","","","","","","","","","",""]
["03: No aplica",null,96,0,"",0,0,0,0,0,null,"","","","","","","","","","","","","","","","","","","","","","","","","","","","","","","","","","","","","","","","","","","","","","","","","","","","",""]
[null,null,97,0,"",0,0,0,0,0,null,"","","","","","","","","","","","","","","","","","","","","","","","","","","","","","","","","","","","","","","","","","","","","","","","","","","","",""]
["311. Modalidad de Contrato",null,98,0,"",0,0,0,0,0,null,"","","","","","","","","","","","","","","","","","","","","","","","","","","","","","","","","","","","","","","","","","","","","","","","","","","","",""]
["Contrato Público",null,99,0,"",0,0,0,0,0,null,"","","","","","","","","","","","","","","","","","","","","","","","","","","","","","","","","","","","","","","","","","","","","","","","","","","","",""]
["01: A plazo fijo D. Leg. 728",null,100,0,"",0,0,0,0,0,null,"","","","","","","","","","","","","","","","","","","","","","","","","","","","","","","","","","","","","","","","","","","","","","","","","","","","",""]
["02: Locación de Serv. / Honorarios",null,101,0,"",0,0,0,0,0,null,"","","","","","","","","","","","","","","","","","","","","","","","","","","","","","","","","","","","","","","","","","","","","","","","","","","","",""]
["03: CAS - D. Leg. 1057","99: (999)-Auxiliar de Educación",102,0,"",0,0,0,0,0,null,"","","","","","","","","","","","","","","","","","","","","","","","","","","","","","","","","","","","","","","","","","","","","","","","","","","","",""]
["04: Contrato D. Leg. 276",null,103,0,"",0,0,0,0,0,null,"","","","","","","","","","","","","","","","","","","","","","","","","","","","","","","","","","","","","","","","","","","","","","","","","","","","",""]
["05: Contrato Ley 30328","322. Situación en el Cargo Directivo",104,0,"",0,0,0,0,0,null,"","","","","","","","","","","","","","","","","","","","","","","","","","","","","","","","","","","","","","","","","","","","","","","","","","","","",""]
["06: Otra modalidad","01: Designado",105,0,"",0,0,0,0,0,null,"","","","","","","","","","","","","","","","","","","","","","","","","","","","","","","","","","","","","","","","","","","","","","","","","","","","",""]
["Contrato Privado","02: Encargado",106,0,"",0,0,0,0,0,null,"","","","","","","","","","","","","","","","","","","","","","","","","","","","","","","","","","","","","","","","","","","","","","","","","","","","",""]
["07: A plazo indefinido (Permanente)",null,107,0,"",0,0,0,0,0,null,"","","","","","","","","","","","","","","","","","","","","","","","","","","","","","","","","","","","","","","","","","","","","","","","","","","","",""]
["08: Plazo fijo (Tiempo determinado)",null,108,0,"",0,0,0,0,0,null,"","","","","","","","","","","","","","","","","","","","","","","","","","","","","","","","","","","","","","","","","","","","","","","","","","","","",""]
["09: A tiempo parcial (por horas)",null,109,0,"",0,0,0,0,0,null,"","","","","","","","","","","","","","","","","","","","","","","","","","","","","","","","","","","","","","","","","","","","","","","","","","","","",""]
["10: Locación de Serv. / Honorarios",null,110,0,"",0,0,0,0,0,null,"","","","","","","","","","","","","","","","","","","","","","","","","","","","","","","","","","","","","","","","","","","","","","","","","","","","",""]
["11: Otra modalidad","323. Destaque o Licencia",111,0,"",0,0,0,0,0,null,"","","","","","","","","","","","","","","","","","","","","","","","","","","","","","","","","","","","","","","","","","","","","","","","","","","","",""]
[null,"01: Cubriendo una licencia",112,0,"",0,0,0,0,0,null,"","","","","","","","","","","","","","","","","","","","","","","","","","","","","","","","","","","","","","","","","","","","","","","","","","","","",""]
["312. Máximo Nivel Educativo Alcanzado","02: De otra I.E./DRE/UGEL",113,0,"",0,0,0,0,0,null,"","","","","","","","","","","","","","","","","","","","","","","","","","","","","","","","","","","","","","","","","","","","","","","","","","","","",""]
["01: EP.Concluidos con título","03: No Aplica",114,0,"",0,0,0,0,0,null,"","","","","","","","","","","","","","","","","","","","","","","","","","","","","","","","","","","","","","","","","","","","","","","","","","","","",""]
["02: EP.Concluidos sin título",null,115,0,"",0,0,0,0,0,null,"","","","","","","","","","","","","","","","","","","","","","","","","","","","","","","","","","","","","","","","","","","","","","","","","","","","",""]
["03: EP.No concluidos",null,116,0,"",0,0,0,0,0,null,"","","","","","","","","","","","","","","","","","","","","","","","","","","","","","","","","","","","","","","","","","","","","","","","","","","","",""]
["04: NP.Concluidos con título",null,117,0,"",0,0,0,0,0,null,"","","","","","","","","","","","","","","","","","","","","","","","","","","","","","","","","","","","","","","","","","","","","","","","","","","","",""]
["05: NP.Concluidos sin título","324. Jornada Laboral (Nombramiento / Contrato)",118,0,"",0,0,0,0,0,null,"","","","","","","","","","","","","","","","","","","","","","","","","","","","","","","","","","","","","","","","","","","","","","","","","","","","",""]
["06: NP.No concluidos","40: 40 horas",119,0,"",0,0,0,0,0,null,"","","","","","","","","","","","","","","","","","","","","","","","","","","","","","","","","","","","","","","","","","","","","","","","","","","","",""]
["07: Secundaria","30: 30 horas",120,0,"",0,0,0,0,0,null,"","","","","","","","","","","","","","","","","","","","","","","","","","","","","","","","","","","","","","","","","","","","","","","","","","","","",""]
["08: Primaria","25: 25 horas",121,0,"",0,0,0,0,0,null,"","","","","","","","","","","","","","","","","","","","","","","","","","","","","","","","","","","","","","","","","","","","","","","","","","","","",""]
[null,"24: 24 horas",122,0,"",0,0,0,0,0,null,"","","","","","","","","","","","","","","","","","","","","","","","","","","","","","","","","","","","","","","","","","","","","","","","","","","","",""]
["313. Especialidad del Título","23: Menos 24 horas",123,0,"",0,0,0,0,0,null,"","","","","","","","","","","","","","","","","","","","","","","","","","","","","","","","","","","","","","","","","","","","","","","","","","","","",""]
["01: Educación Inicial",null,124,0,"",0,0,0,0,0,null,"","","","","","","","","","","","","","","","","","","","","","","","","","","","","","","","","","","","","","","","","","","","","","","","","","","","",""]
["02: Educación Primaria","SI / NO",125,0,"",0,0,0,0,0,null,"","","","","","","","","","","","","","","","","","","","","","","","","","","","","","","","","","","","","","","","","","","","","","","","","","","","",""]
["03: E.I. Intercultural Bilingüe","SI",126,0,"",0,0,0,0,0,null,"","","","","","","","","","","","","","","","","","","","","","","","","","","","","","","","","","","","","","","","","","","","","","","","","","","","",""]
["04: E.P. Intercultural Bilingüe","NO",127,0,"",0,0,0,0,0,null,"","","","","","","","","","","","","","","","","","","","","","","","","","","","","","","","","","","","","","","","","","","","","","","","","","","","",""]
["05: Educación Básica Alternativa",null,128,0,"",0,0,0,0,0,null,"","","","","","","","","","","","","","","","","","","","","","","","","","","","","","","","","","","","","","","","","","","","","","","","","","","","",""]
["06: Educación Especial","331. Especialidad Artistica",129,{"$f":"IF(AND(LEFT(R147,2)=\"01\",LEFT(Y147,2)=\"01\",LEFT(X147,2)=\"01\",E147=1),1,0)","v":0},"",0,0,0,{"$f":"IF(L147<>\"\",1,0)","v":0},0,null,"","","","","","","","","","","","","","","","","","","","","","","","","","","","","","","","","","","","","","","","","","","","","","","","","","","","",""]
["07: Educación Física","01: Danza",130,0,{"$f":"$B$16","v":""},{"$f":"COUNTIF(AL148:AZ148,\"X\")","v":0},{"$f":"IF(R148<>\"\",VALUE(LEFT(R148,2)),0)","v":0},{"$f":"IF(Q148<>\"\",COUNTIF($Q$20:$Q$319,Q148),0)","v":0},0,{"$f":"IF(AND(R148=\"01: Docente\",V148=\"SI\"),1,0)","v":0},null,"","","","","","","","","","","","","","","","","","","","","","","","","","","","","","","","","","","","","","","","","","","","","","","","","","","","",""]
["08: Educación Artística","02: Música",null,null,null,null,null,null,null,null,null,null,null,null,null,"",null,"","","","","","","","","","","","","","","","","","","","","","","","","","","","","","","","","","","","","","",null,null,"","","",null,"",null,""]
["09: E.S. Lengua y Literatura","03: Teatro",null,null,null,null,null,null,null,null,null,"…","…","…","…","…","…","…","…","…","…","…","…","…","…","…","…","…","…","…","…","…","…","…","…","…","…","…","…","…","…","…","…","…","…","…","…","…","…","…","…","…","…","…","…","…","…","…","…","…","…","…","…"]
["10: E.S. Comunicación","04: Artes visuales"]
["11: E.S. Matemática y Física","05: Otra"]
["12: E.S. Matemática","336.2 ¿Cuál es el tipo de discapacidad?"]
["13: E.S. CCSS y Filosofía","01: Auditiva"]
["14: E.S. Ciencias Sociales","02: Visual"]
["15: E.S. Ciencias Naturales","03: Física o Motora"]
["16: E.S. Ciencia Tecnología y Ambiente","04: Otras"]
["17: E.S. Alimentación y Nutrición"]
["18: E.S. Biología y Química","334.3 Asistencia Técnica"]
["19: E.S. Historia y Geografía","01: Uso pedagógico de los cuadernos"]
["20: E.S. CC.HH. Sociales","02: TICs"]
["21: E.S. Idioma Inglés","03: Inclusión Financiera"]
["22: Educación Religiosa","04: Prevención de la violencia"]
["23: E.S. Educación Familiar","05: Otro"]
["24: E.T. Artes Industriales","06: No recibió asistencia técnica"]
["25: E.T. Artesanía"]
["26: E.T. Agropecuaria","339.3 ¿Cuál fue el tipo de estudios en EIB?"]
["27: E.T. Construcción en madera","01: Doctorado"]
["28: E.T. Computación e Informática","02: Maestría"]
["29: E.T. Carpintería/Ebanistería","03: Segunda especialidad"]
["30: E.T. Electricidad","04: Especialización"]
["31: E.T. Electrónica","05: Actualización"]
["32: E.T. Ebanistería","06: Otro"]
["33: E.T. Industria del Vestido"]
["34: E.T. Industria del Vestido Alimentación y Alta Costura","Parroquiales"]
["35: E.T. en Industria del Vestido y Alta Costura","05: APAFA"]
["36: E.T.Técnica Esp. Ind. del Vestido Ind.Alimentaria y Artes","06: Otra fuente Privada"]
["37: E.T. Industria Alimentaria","01: Sector Educación"]
["38: E.T. Mecánica Automotriz"]
["39: E.T. Mecánica de Producción"]
["40: E.T. Mecánica de Producción y Soldadura","Forma"]
["41: E.T. Textilería","01: Presencial"]
["42: Otra pedagógica"]
[]
[null,"Centro deonde labora"]
["Area curriculares","01: CEBA Referencial"]
["01: Matemática","02: Periférico"]
["02: Comunicación","03: Círculo de aprendizaje"]
["03: Ingles","04: 01 y 02"]
["04: Ciencias Sociales","05: 01 y 03"]
["05: Desarrollo personal ciudadania …","06: 02 y 03"]
["06: Educación Física","07: 01, 02 y 03"]
["07: Ciencia y Tecnología"]
["08: Castellano como segunda lengua"]
["09: Educación para el trabajo"]
["10: Educación religiosa"]
["11: Tutoría y Orientación Educativa"]
["12: Arte y cultura"]

{"sheet":"C327","index":6,"n_rows":132,"n_cols":32,"rows_kept":132,"cut":false,"hidden":false,"merged":[[28,13,29,13],[1,9,1,15],[2,9,2,15],[28,6,29,6],[28,8,29,8],[28,9,28,11],[27,9,27,11],[28,7,29,7]]}
[]
[null,null,null,null,null,null,null,null,null,"CENSO EDUCATIVO 2025"]
[null,null,null,null,null,null,null,null,null,"MATRÍCULA, DOCENTES Y RECURSOS"]
[]
[]
[]
[null,null,null,null,null,"COMPETENCIAS DE ARTE Y CULTURA"]
[null,null,null,null,null,null,"326. EN ESTE CEBA, ¿SE DESARROLLAN LAS COMPETENCIAS DE ARTE Y CULTURA?"]
[]
[]
[null,null,null,null,null,null,"","Sí   ",null,"¿Cuántos docentes están asignados al dictado de la asignatura?",null,null,null,null,""]
[null,null,null,null,null,null,null,null,null,"¿El desarrollo de las competencias en Arte y Cultura se realizan dentro del horario regular?"]
[null,null,null,null,null,null,null,null,null,null,"Sí   ","",null,"No   ",""]
[null,null,null,null,null,null,null,"No  "]
[null,null,null,null,null,null,null,null,null,"¿Cuántas horas a la semana se destinan para el desarrollo de las competencias en Arte y Cultura?",null,null,null,null,null,null,"",""]
[]
[]
[null,null,null,null,null,"DOCENTES QUE DOMINAN LENGUA ORIGINARIA (Solo II.EE. Públicas)"]
[]
["GESTIÓN",null,null,null,null,null,"327. SEGÚN LO ANOTADO EN LA PREGUNTA 307, ¿CUENTA CON UN DOCENTE QUE DOMINE UNA LENGUA ORIGINARIA?"]
[null,null,null,null,null,null,"Hacer click en el botón [Verificar] para revisar los docentes que dominan una lengua originaria"]
[1]
[null,null,null,null,null,null,null,null,null,"Sí   ",null,null,null,"¿Cuántos?"]
[]
[null,null,null,null,null,null,null,null,null,"No  ",null,null,null,"Pase a la sección 400."]
[]
[]
[null,null,null,null,null,null,null,null,null,327.10000000000002,null,null,327.2,327.3,327.39999999999998,327.5,327.60000000000002,327.7]
[null,null,null,null,null,null,"Nº","Nº de fila registrado en la pregunta 307","Documento de Identidad","Conocimiento de\nlengua originaria",null,null,"¿Cuenta con estudios en Educación Intercultural Bilingüe?","Solo si respondió SÍ  en la pregunta 334.2 ¿Cuál fue el tipo de estudios en EIB?","¿Ha recibido\ncapacitación en EIB?","¿El docente enseña\nen lengua originaria?","¿El material recibido coincide con la lengua que enseña?","¿En la actualidad el Docente se encuentra en el Registro de Docentes Bilingües?"]
["330.3 ¿Cuál fue el tipo de estudios en EIB?","Corr","Gest","Fmt",null,null,null,null,null,"Habla","Lee","Escribe"," Sí - No",null," Sí - No"," Sí - No"," Sí - No"," Sí - No"]
["01: Doctorado",1,{"$f":"$A$22","v":1},{"$f":"IF(G31<>\"\",1,0)","v":0},null,null,{"$f":"IF(B31<=$O$23,B31,\"\")","v":""},null,null,null,null,null,null,null,null,null,null,null,"","","","","","","","","","","","","",""]
["02: Maestría",{"$f":"B31+1","v":2},{"$f":"$A$22","v":1},{"$f":"IF(G32<>\"\",1,0)","v":0},null,null,{"$f":"IF(B32<=$O$23,B32,\"\")","v":""},null,null,null,null,null,null,null,null,null,null,null,"","","","","","","","","","","","","",""]
["03: Segunda especialidad",{"$f":"B32+1","v":3},1,{"$f":"IF(G33<>\"\",1,0)","v":0},null,null,"",null,null,null,null,null,null,null,null,null,null,null,"","","","","","","","","","","","","",""]
["04: Especialización",4,1,0,null,null,"",null,null,null,null,null,null,null,null,null,null,null,"","","","","","","","","","","","","",""]
["05: Actualización",5,1,0,null,null,"",null,null,null,null,null,null,null,null,null,null,null,"","","","","","","","","","","","","",""]
["06: Otro",6,1,0,null,null,"",null,null,null,null,null,null,null,null,null,null,null,"","","","","","","","","","","","","",""]
[null,7,1,0,null,null,"",null,null,null,null,null,null,null,null,null,null,null,"","","","","","","","","","","","","",""]
[null,8,1,0,null,null,"",null,null,null,null,null,null,null,null,null,null,null,"","","","","","","","","","","","","",""]
["SI",9,1,0,null,null,"",null,null,null,null,null,null,null,null,null,null,null,"","","","","","","","","","","","","",""]
["NO",10,1,0,null,null,"",null,null,null,null,null,null,null,null,null,null,null,"","","","","","","","","","","","","",""]
[null,11,1,0,null,null,"",null,null,null,null,null,null,null,null,null,null,null,"","","","","","","","","","","","","",""]
[null,12,1,0,null,null,"",null,null,null,null,null,null,null,null,null,null,null,"","","","","","","","","","","","","",""]
[null,13,1,0,null,null,"",null,null,null,null,null,null,null,null,null,null,null,"","","","","","","","","","","","","",""]
[null,14,1,0,null,null,"",null,null,null,null,null,null,null,null,null,null,null,"","","","","","","","","","","","","",""]
[null,15,1,0,null,null,"",null,null,null,null,null,null,null,null,null,null,null,"","","","","","","","","","","","","",""]
[null,16,1,0,null,null,"",null,null,null,null,null,null,null,null,null,null,null,"","","","","","","","","","","","","",""]
[null,17,1,0,null,null,"",null,null,null,null,null,null,null,null,null,null,null,"","","","","","","","","","","","","",""]
[null,18,1,0,null,null,"",null,null,null,null,null,null,null,null,null,null,null,"","","","","","","","","","","","","",""]
[null,19,1,0,null,null,"",null,null,null,null,null,null,null,null,null,null,null,"","","","","","","","","","","","","",""]
[null,20,1,0,null,null,"",null,null,null,null,null,null,null,null,null,null,null,"","","","","","","","","","","","","",""]
[null,21,1,0,null,null,"",null,null,null,null,null,null,null,null,null,null,null,"","","","","","","","","","","","","",""]
[null,22,1,0,null,null,"",null,null,null,null,null,null,null,null,null,null,null,"","","","","","","","","","","","","",""]
[null,23,1,0,null,null,"",null,null,null,null,null,null,null,null,null,null,null,"","","","","","","","","","","","","",""]
[null,24,1,0,null,null,"",null,null,null,null,null,null,null,null,null,null,null,"","","","","","","","","","","","","",""]
[null,25,1,0,null,null,"",null,null,null,null,null,null,null,null,null,null,null,"","","","","","","","","","","","","",""]
[null,26,1,0,null,null,"",null,null,null,null,null,null,null,null,null,null,null,"","","","","","","","","","","","","",""]
[null,27,1,0,null,null,"",null,null,null,null,null,null,null,null,null,null,null,"","","","","","","","","","","","","",""]
[null,28,1,0,null,null,"",null,null,null,null,null,null,null,null,null,null,null,"","","","","","","","","","","","","",""]
[null,29,1,0,null,null,"",null,null,null,null,null,null,null,null,null,null,null,"","","","","","","","","","","","","",""]
[null,30,1,0,null,null,"",null,null,null,null,null,null,null,null,null,null,null,"","","","","","","","","","","","","",""]
[null,31,1,0,null,null,"",null,null,null,null,null,null,null,null,null,null,null,"","","","","","","","","","","","","",""]
[null,32,1,0,null,null,"",null,null,null,null,null,null,null,null,null,null,null,"","","","","","","","","","","","","",""]
[null,33,1,0,null,null,{"$f":"IF(B63<=$O$23,B63,\"\")","v":""},null,null,null,null,null,null,null,null,null,null,null,"","","","","","","","","","","","","",""]
[null,34,1,0,null,null,"",null,null,null,null,null,null,null,null,null,null,null,"","","","","","","","","","","","","",""]
[null,35,1,0,null,null,"",null,null,null,null,null,null,null,null,null,null,null,"","","","","","","","","","","","","",""]
[null,36,1,0,null,null,"",null,null,null,null,null,null,null,null,null,null,null,"","","","","","","","","","","","","",""]
[null,37,1,0,null,null,"",null,null,null,null,null,null,null,null,null,null,null,"","","","","","","","","","","","","",""]
[null,38,1,0,null,null,"",null,null,null,null,null,null,null,null,null,null,null,"","","","","","","","","","","","","",""]
[null,39,1,0,null,null,"",null,null,null,null,null,null,null,null,null,null,null,"","","","","","","","","","","","","",""]
[null,40,1,0,null,null,"",null,null,null,null,null,null,null,null,null,null,null,"","","","","","","","","","","","","",""]
[null,41,1,0,null,null,"",null,null,null,null,null,null,null,null,null,null,null,"","","","","","","","","","","","","",""]
[null,42,1,0,null,null,"",null,null,null,null,null,null,null,null,null,null,null,"","","","","","","","","","","","","",""]
[null,43,1,0,null,null,"",null,null,null,null,null,null,null,null,null,null,null,"","","","","","","","","","","","","",""]
[null,44,1,0,null,null,"",null,null,null,null,null,null,null,null,null,null,null,"","","","","","","","","","","","","",""]
[null,45,1,0,null,null,"",null,null,null,null,null,null,null,null,null,null,null,"","","","","","","","","","","","","",""]
[null,46,1,0,null,null,"",null,null,null,null,null,null,null,null,null,null,null,"","","","","","","","","","","","","",""]
[null,47,1,0,null,null,"",null,null,null,null,null,null,null,null,null,null,null,"","","","","","","","","","","","","",""]
[null,48,1,0,null,null,"",null,null,null,null,null,null,null,null,null,null,null,"","","","","","","","","","","","","",""]
[null,49,1,0,null,null,"",null,null,null,null,null,null,null,null,null,null,null,"","","","","","","","","","","","","",""]
[null,50,1,0,null,null,"",null,null,null,null,null,null,null,null,null,null,null,"","","","","","","","","","","","","",""]
[null,51,1,0,null,null,"",null,null,null,null,null,null,null,null,null,null,null,"","","","","","","","","","","","","",""]
[null,52,1,0,null,null,"",null,null,null,null,null,null,null,null,null,null,null,"","","","","","","","","","","","","",""]
[null,53,1,0,null,null,"",null,null,null,null,null,null,null,null,null,null,null,"","","","","","","","","","","","","",""]
[null,54,1,0,null,null,"",null,null,null,null,null,null,null,null,null,null,null,"","","","","","","","","","","","","",""]
[null,55,1,0,null,null,"",null,null,null,null,null,null,null,null,null,null,null,"","","","","","","","","","","","","",""]
[null,56,1,0,null,null,"",null,null,null,null,null,null,null,null,null,null,null,"","","","","","","","","","","","","",""]
[null,57,1,0,null,null,"",null,null,null,null,null,null,null,null,null,null,null,"","","","","","","","","","","","","",""]
[null,58,1,0,null,null,"",null,null,null,null,null,null,null,null,null,null,null,"","","","","","","","","","","","","",""]
[null,59,1,0,null,null,"",null,null,null,null,null,null,null,null,null,null,null,"","","","","","","","","","","","","",""]
[null,60,1,0,null,null,"",null,null,null,null,null,null,null,null,null,null,null,"","","","","","","","","","","","","",""]
[null,61,1,0,null,null,"",null,null,null,null,null,null,null,null,null,null,null,"","","","","","","","","","","","","",""]
[null,62,1,0,null,null,"",null,null,null,null,null,null,null,null,null,null,null,"","","","","","","","","","","","","",""]
[null,63,1,0,null,null,"",null,null,null,null,null,null,null,null,null,null,null,"","","","","","","","","","","","","",""]
[null,64,1,0,null,null,"",null,null,null,null,null,null,null,null,null,null,null,"","","","","","","","","","","","","",""]
[null,65,{"$f":"$A$22","v":1},0,null,null,{"$f":"IF(B95<=$O$23,B95,\"\")","v":""},null,null,null,null,null,null,null,null,null,null,null,"","","","","","","","","","","","","",""]
[null,66,1,0,null,null,"",null,null,null,null,null,null,null,null,null,null,null,"","","","","","","","","","","","","",""]
[null,{"$f":"B96+1","v":67},1,{"$f":"IF(G97<>\"\",1,0)","v":0},null,null,"",null,null,null,null,null,null,null,null,null,null,null,"","","","","","","","","","","","","",""]
[null,68,1,0,null,null,"",null,null,null,null,null,null,null,null,null,null,null,"","","","","","","","","","","","","",""]
[null,69,1,0,null,null,"",null,null,null,null,null,null,null,null,null,null,null,"","","","","","","","","","","","","",""]
[null,70,1,0,null,null,"",null,null,null,null,null,null,null,null,null,null,null,"","","","","","","","","","","","","",""]
[null,71,1,0,null,null,"",null,null,null,null,null,null,null,null,null,null,null,"","","","","","","","","","","","","",""]
[null,72,1,0,null,null,"",null,null,null,null,null,null,null,null,null,null,null,"","","","","","","","","","","","","",""]
[null,73,1,0,null,null,"",null,null,null,null,null,null,null,null,null,null,null,"","","","","","","","","","","","","",""]
[null,74,1,0,null,null,"",null,null,null,null,null,null,null,null,null,null,null,"","","","","","","","","","","","","",""]
[null,75,1,0,null,null,"",null,null,null,null,null,null,null,null,null,null,null,"","","","","","","","","","","","","",""]
[null,76,1,0,null,null,"",null,null,null,null,null,null,null,null,null,null,null,"","","","","","","","","","","","","",""]
[null,77,1,0,null,null,"",null,null,null,null,null,null,null,null,null,null,null,"","","","","","","","","","","","","",""]
[null,78,1,0,null,null,"",null,null,null,null,null,null,null,null,null,null,null,"","","","","","","","","","","","","",""]
[null,79,1,0,null,null,"",null,null,null,null,null,null,null,null,null,null,null,"","","","","","","","","","","","","",""]
[null,80,1,0,null,null,"",null,null,null,null,null,null,null,null,null,null,null,"","","","","","","","","","","","","",""]
[null,81,1,0,null,null,"",null,null,null,null,null,null,null,null,null,null,null,"","","","","","","","","","","","","",""]
[null,82,1,0,null,null,"",null,null,null,null,null,null,null,null,null,null,null,"","","","","","","","","","","","","",""]
[null,83,1,0,null,null,"",null,null,null,null,null,null,null,null,null,null,null,"","","","","","","","","","","","","",""]
[null,84,1,0,null,null,"",null,null,null,null,null,null,null,null,null,null,null,"","","","","","","","","","","","","",""]
[null,85,1,0,null,null,""]
[null,86,1,0,null,null,""]
[null,87,1,0,null,null,""]
[null,88,1,0,null,null,""]
[null,89,1,0,null,null,""]
[null,90,1,0,null,null,""]
[null,91,1,0,null,null,""]
[null,92,1,0,null,null,""]
[null,93,1,0,null,null,""]
[null,94,1,0,null,null,""]
[null,95,1,0,null,null,""]
[null,96,1,0,null,null,""]
[null,97,1,0,null,null,""]
[null,98,1,0,null,null,""]
[null,99,1,0,null,null,""]
[null,100,1,0,null,null,"",null,null,null,null,null,null,null,null,null,null,null,"","","","","","","","","","","","","",""]
[null,null,null,null,null,null,null,null,""]
[null,null,null,null,null,null,"…","…","…","…","…","…","…","…","…","…","…","…"]

{"sheet":"C400","index":7,"n_rows":97,"n_cols":31,"rows_kept":97,"cut":false,"hidden":false,"merged":[[29,16,29,19],[93,13,93,14],[94,13,94,14],[95,13,95,14],[86,13,86,14],[87,13,87,14],[88,13,88,14],[89,13,89,14],[90,13,90,14],[91,13,91,14],[92,13,92,14],[66,16,66,20],[82,15,82,30],[83,16,83,20],[84,28,84,30],[84,21,84,22],[1,6,1,19],[2,6,2,19],[34,1,34,22],[48,13,50,14],[51,13,51,14],[49,5,50,8],[48,2,51,3],[48,11,50,11],[48,12,50,12],[48,15,48,30],[50,28,50,30],[50,15,51,15],[49,16,49,20],[49,21,49,25],[49,26,49,30],[50,26,50,27],[84,23,84,25],[83,21,83,25],[83,26,83,30],[84,15,85,15],[50,21,50,22],[50,23,50,25],[50,18,50,20],[50,16,50,17],[65,15,65,30],[57,2,61,3],[52,2,56,3],[57,13,57,14],[58,13,58,14],[59,13,59,14],[60,13,60,14],[61,13,61,14],[52,13,52,14],[53,13,53,14],[54,13,54,14],[55,13,55,14],[56,13,56,14],[86,2,90,3],[91,2,95,3],[65,11,67,11],[65,12,67,12],[82,11,84,11],[82,12,84,12],[65,2,68,3],[69,2,73,3],[74,2,78,3],[82,2,85,3],[66,5,67,8],[83,5,84,8],[74,13,74,14],[75,13,75,14],[76,13,76,14],[77,13,77,14],[78,13,78,14],[69,13,69,14],[70,13,70,14],[71,13,71,14],[72,13,72,14],[73,13,73,14],[85,13,85,14],[66,21,66,25],[66,26,66,30],[67,15,68,15],[67,16,67,17],[67,18,67,20],[67,21,67,22],[67,23,67,25],[67,26,67,27],[67,28,67,30],[65,13,67,14],[82,13,84,14],[84,26,84,27],[68,13,68,14],[84,16,84,17],[84,18,84,20]]}
[]
[null,null,null,null,null,null,"CENSO EDUCATIVO 2025"]
[null,null,null,null,null,null,"MATRÍCULA, DOCENTES Y RECURSOS"]
[]
[]
[]
[]
[]
[]
[]
[]
[]
[]
[]
[]
[]
[]
[]
[]
[null,null,"ÁREA DE PSICOLOGÍA"]
[null,"328 EN EL PRESENTE AÑO, ¿SE CUENTA CON ALGÚN PROFESIONAL DE PSICOLOGÍA",null,null,null,null,null,null,null,null,null,null,null,"  329. ¿A TRAVÉS DE QUÉ MECANISMO SE INCORPORÓ AL PROFESIONAL DE PSICOLOGÍA"]
[null,null,"INCORPORADO AL SERVICIO/NIVEL EDUCATIVO?",null,null,null,null,null,null,null,null,null,null,"EN ESTE SERVICIO/NIVEL EDUCATIVO?"]
[null,null,null,null,null,null,null,null,null,null,null,null,null,"Marque con una “X”, una opcion"]
[]
[null,null,"Sí  ",null,null,null,null,null,null,null,null,null,null,null,"Contratación a través de UGEL (alguna intervención o estrategia)"]
[null,null,null,null,null,null,null,null,null,null,null,null,null,null,"Contratación a través de UGEL (identificación de necesidad)"]
[null,null,null,null,null,null,null,null,null,null,null,null,null,null,"Prácticas profesionales"]
[null,null,"No  ",null,null,null,"Pase a la SECCIÓN 400",null,null,null,null,null,null,null,"Servicio Rural y Urbano Marginal de Salud (Serums)"]
[null,null,null,null,null,null,null,null,null,null,null,null,null,null,"Pasantias"]
[null,null,null,null,null,null,null,null,null,null,null,null,null,null,"Otros"]
[]
[]
[]
[]
[null,"400. MATERIALES EDUCATIVOS (Solo para gestión pública)"]
[]
[null,{"$f":"IF(OR('C100'!O35=\"X\",'C100'!X35=\"X\"),\"X\",IF('C100'!AG35=\"X\",3,\"\"))","v":""},"401. ¿RECIBIÓ MATERIALES CORRESPONDIENTES A LA DOTACIÓN 2023?",null,null,null,null,null,null,null,null,null,null,"402. ¿RECIBIÓ CUADERNOS DE TRABAJO EN LENGUA ORIGINARIA?"]
[]
[null,null,"Sí  ",null,null,null,null,"No  ",null,null,"Pase a la SECCIÓN 500.",null,null,"Sí  ",null,null,"No  "]
[]
[null,null,null,null,null,null,null,null,null,null,null,null,null,null,null,null,"¿CORRESPONDEN A LA LENGUA DE LOS ESTUDIANTES DE "]
[null,null,null,null,null,null,null,null,null,null,null,null,null,null,null,null,"DE ESTE SERVICIO/NIVEL EDUCATIVO?"]
[]
[null,null,null,null,null,null,null,null,null,null,null,null,null,null,null,null,"Sí  ",null,null,"No  "]
[]
[]
[null,"403. DETALLE DE CUADERNOS DE TRABAJO, TEXTOS, KITS Y GUÍAS CORRESPONDIENTES A LA DOTACIÓN 2024 POR GRADO - RECIBIDO"]
[]
[null,null,"BENEFICIARIO",null,null,null,null,null,null,null,null,"¿Recibió los materiales?","Primera\nFecha de Recepción","Última\nFecha de Recepción",null,"CANTIDAD DE MATERIAL RECIBIDO"]
[null,null,null,null,null,"MATERIAL EDUCATIVO",null,null,null,null,null,null,null,null,null,null,"CEBA",null,null,null,null,"PERIFÉRICO",null,null,null,null,"CÍRCULOS DE APRENDIZAJE"]
[null,null,null,null,null,null,null,null,null,null,null,null,null,null,null,"TOTAL RECIBIDO","Inicial",null,"Intermedio",null,null,"Inicial",null,"Intermedio",null,null,"Inicial",null,"Intermedio"]
[null,null,null,null,null,null,null,null,null,null,{"$f":"COUNTIF(L53:L62,\"NO\")","v":0}," SI - NO","Día/Mes/Año","Día/Mes/Año",null,null,"1º","2º","3º","4º","5º","1º","2º","3º","4º","5º","1º","2º","3º","4º","5º"]
[null,"01","ESTUDIANTES",null,"Proyectos de aprendizaje",null,null,null,null,null,null,null,null,null,null,{"$f":"SUM(Q53:AE53)","v":0}]
[null,"02",null,null,"Situaciones comunicativas",null,null,null,null,null,null,null,null,null,null,{"$f":"SUM(Q54:AE54)","v":0}]
[null,"03",null,null,"Situaciones para construir y resolver",null,null,null,null,null,null,null,null,null,null,{"$f":"SUM(Q55:AE55)","v":0}]
[null,"04",null,null,"Situaciones para aprender y construir experiencias",null,null,null,null,null,null,null,null,null,null,0]
[null,"05",null,null,"Material fungible - Programa de Alfabetización",null,null,null,null,null,null,null,null,null,null,0]
[null,"06","COORDINADOR/\nACOMPAÑANTE/\nFACILITADOR",null,"Proyectos de aprendizaje",null,null,null,null,null,null,null,null,null,null,0]
[null,"07",null,null,"Situaciones comunicativas",null,null,null,null,null,null,null,null,null,null,0]
[null,"08",null,null,"Situaciones para construir y resolver",null,null,null,null,null,null,null,null,null,null,0]
[null,"09",null,null,"Situaciones para aprender y construir experiencias",null,null,null,null,null,null,null,null,null,null,0]
[null,"10",null,null,"Material fungible - Programa de Alfabetización",null,null,null,null,null,null,null,null,null,null,{"$f":"SUM(Q62:AE62)","v":0}]
[null,null,null,null,null,null,null,null,null,null,null,{"$f":"COUNTIF(L53:L62,\"SI\")+COUNTIF(L53:L62,\"NO\")","v":0},null,null,null,{"$f":"SUM(P53:P62)","v":0}]
[]
[null,"403. DETALLE DE CUADERNOS DE TRABAJO, TEXTOS, KITS Y GUÍAS CORRESPONDIENTES A LA DOTACIÓN 2024 POR GRADO - SOBRANTE"]
[null,null,"BENEFICIARIO",null,null,null,null,null,null,null,null,"¿Recibió los materiales?","Primera\nFecha de Recepción","Última\nFecha de Recepción",null,"CANTIDAD DE MATERIAL SOBRANTE"]
[null,null,null,null,null,"MATERIAL EDUCATIVO",null,null,null,null,null,null,null,null,null,null,"CEBA",null,null,null,null,"PERIFÉRICO",null,null,null,null,"CÍRCULOS DE APRENDIZAJE"]
[null,null,null,null,null,null,null,null,null,null,null,null,null,null,null,"TOTAL RECIBIDO","Inicial",null,"Intermedio",null,null,"Inicial",null,"Intermedio",null,null,"Inicial",null,"Intermedio"]
[null,null,null,null,null,null,null,null,null,null,{"$f":"COUNTIF(L70:L79,\"SI\")","v":0}," SI - NO","Día/Mes/Año","Día/Mes/Año",null,null,"1º","2º","3º","4º","5º","1º","2º","3º","4º","5º","1º","2º","3º","4º","5º"]
[null,"01","ESTUDIANTES",null,"Proyectos de aprendizaje",null,null,null,null,null,null,{"$f":"IF(L53<>\"\",L53,\"\")","v":""},"","",null,{"$f":"SUM(Q70:AE70)","v":0}]
[null,"02",null,null,"Situaciones comunicativas",null,null,null,null,null,null,"","","",null,{"$f":"SUM(Q71:AE71)","v":0}]
[null,"03",null,null,"Situaciones para construir y resolver",null,null,null,null,null,null,"","","",null,{"$f":"SUM(Q72:AE72)","v":0}]
[null,"04",null,null,"Situaciones para aprender y construir experiencias",null,null,null,null,null,null,"","","",null,0]
[null,"05",null,null,"Material fungible - Programa de Alfabetización",null,null,null,null,null,null,"","","",null,0]
[null,"06","COORDINADOR/\nACOMPAÑANTE/\nFACILITADOR",null,"Proyectos de aprendizaje",null,null,null,null,null,null,"","","",null,0]
[null,"07",null,null,"Situaciones comunicativas",null,null,null,null,null,null,"","","",null,0]
[null,"08",null,null,"Situaciones para construir y resolver",null,null,null,null,null,null,"","","",null,0]
[null,"09",null,null,"Situaciones para aprender y construir experiencias",null,null,null,null,null,null,"","","",null,0]
[null,"10",null,null,"Material fungible - Programa de Alfabetización",null,null,null,null,null,null,"","","",null,{"$f":"SUM(Q79:AE79)","v":0}]
[null,null,null,null,null,null,null,null,null,null,null,null,null,null,null,{"$f":"SUM(P70:P79)","v":0}]
[]
[null,"403. DETALLE DE CUADERNOS DE TRABAJO, TEXTOS, KITS Y GUÍAS CORRESPONDIENTES A LA DOTACIÓN 2024 POR GRADO - FALTANTE"]
[null,null,"BENEFICIARIO",null,null,null,null,null,null,null,null,"¿Recibió los materiales?","Primera\nFecha de Recepción","Última\nFecha de Recepción",null,"CANTIDAD DE MATERIAL FALTANTE"]
[null,null,null,null,null,"MATERIAL EDUCATIVO",null,null,null,null,null,null,null,null,null,null,"CEBA",null,null,null,null,"PERIFÉRICO",null,null,null,null,"CÍRCULOS DE APRENDIZAJE"]
[null,null,null,null,null,null,null,null,null,null,null,null,null,null,null,"TOTAL RECIBIDO","Inicial",null,"Intermedio",null,null,"Inicial",null,"Intermedio",null,null,"Inicial",null,"Intermedio"]
[null,null,null,null,null,null,null,null,null,null,{"$f":"COUNTIF(L87:L96,\"SI\")","v":0}," SI - NO","Día/Mes/Año","Día/Mes/Año",null,null,"1º","2º","3º","4º","5º","1º","2º","3º","4º","5º","1º","2º","3º","4º","5º"]
[null,"01","ESTUDIANTES",null,"Proyectos de aprendizaje",null,null,null,null,null,null,{"$f":"IF(L53<>\"\",L53,\"\")","v":""},"","",null,{"$f":"SUM(Q87:AE87)","v":0}]
[null,"02",null,null,"Situaciones comunicativas",null,null,null,null,null,null,"","","",null,{"$f":"SUM(Q88:AE88)","v":0}]
[null,"03",null,null,"Situaciones para construir y resolver",null,null,null,null,null,null,"","","",null,{"$f":"SUM(Q89:AE89)","v":0}]
[null,"04",null,null,"Situaciones para aprender y construir experiencias",null,null,null,null,null,null,"","","",null,0]
[null,"05",null,null,"Material fungible - Programa de Alfabetización",null,null,null,null,null,null,"","","",null,0]
[null,"06","COORDINADOR/\nACOMPAÑANTE/\nFACILITADOR",null,"Proyectos de aprendizaje",null,null,null,null,null,null,"","","",null,0]
[null,"07",null,null,"Situaciones comunicativas",null,null,null,null,null,null,"","","",null,0]
[null,"08",null,null,"Situaciones para construir y resolver",null,null,null,null,null,null,"","","",null,0]
[null,"09",null,null,"Situaciones para aprender y construir experiencias",null,null,null,null,null,null,"","","",null,0]
[null,"10",null,null,"Material fungible - Programa de Alfabetización",null,null,null,null,null,null,"","","",null,{"$f":"SUM(Q96:AE96)","v":0}]
[null,null,null,null,null,null,null,null,null,null,null,null,null,null,null,{"$f":"SUM(P87:P96)","v":0}]

{"sheet":"C500","index":8,"n_rows":123,"n_cols":21,"rows_kept":123,"cut":false,"hidden":false,"merged":[[50,13,50,14],[50,16,50,18],[40,13,40,14],[1,6,1,19],[2,6,2,19],[33,16,34,18],[35,16,35,18],[39,16,39,18],[38,16,38,18],[37,13,37,14],[33,13,35,14],[36,13,36,14],[6,1,6,22],[43,13,43,14],[33,15,35,15],[37,16,37,18],[36,16,36,18],[48,16,48,18],[47,13,47,14],[43,16,43,18],[47,16,47,18],[45,16,45,18],[42,13,42,14],[44,13,44,14],[42,16,42,18],[41,13,41,14],[39,13,39,14],[38,13,38,14],[46,13,46,14],[46,16,46,18],[85,7,85,11],[40,16,40,18],[41,16,41,18],[33,12,35,12],[112,16,112,20],[44,16,44,18],[45,13,45,14],[48,13,48,14],[100,1,100,22],[65,17,65,21],[51,13,51,14],[51,16,51,18],[49,13,49,14],[49,16,49,18],[76,16,76,20],[87,16,87,20]]}
[]
[null,null,null,null,null,null,"CENSO EDUCATIVO 2025"]
[null," ",null,null,null,null,"MATRÍCULA, DOCENTES Y RECURSOS"]
[]
[]
[]
[null,"500. OTROS RECURSOS DISPONIBLES PARA LA ENSEÑANZA (Para II.EE. Públicas y Privadas)"]
[]
[]
[]
[]
[]
[]
[]
[]
[]
[]
[]
[]
[]
[]
[]
[]
[]
[]
[]
[]
[]
[]
[]
[null,null,"EQUIPOS Y SERVICIOS QUE DISPONE EL CEBA"]
[null,null,"501. EQUIPOS Y SERVICIOS QUE DISPONE EL SERVICIO/NIVEL EDUCATIVO"]
[]
[null,null,null,null,null,null,null,null,null,null,null,null,"SI - NO","¿Cuántos tiene?",null,"¿Cuántos estan operativos?","¿Son utilizados para la enseñanza en interacción con los estudiantes?"]
[null,null,null,null,null,null,"EQUIPOS Y SERVICIOS"]
[null,null,null,null,null,null,null,null,null,null,null,{"$f":"COUNTIF(M37:M52,\"SI\")+COUNTIF(M37:M52,\"NO\")","v":0},null,null,null,null,"SI - NO"]
[null,null,"SI",null,null,"01","Televisor(es)"]
[null,null,"NO",null,null,"02","Computadoras (PC de escritorio)"]
[null,null,null,null,null,"03","Laptop convencionales"]
[null,null,null,null,null,"04","Laptop XO"]
[null,null,null,null,null,"05","Servidores ( exclusivo del nivel)"]
[null,null,null,null,null,"06","Tablets"]
[null,null,null,null,null,"07","Proyector"]
[null,null,null,null,null,"08","Radiograbadora"]
[null,null,null,null,null,"09","Reproductor de DVD o Blue Ray"]
[null,null,null,null,null,"10","Impresoras"]
[null,null,null,null,null,"11","Pizarras digitales"]
[null,null,null,null,null,"12"," Access Point"]
[null,null,null,null,null,"13","Servicio de Internet"]
[null,null,null,null,null,"14","Balanza de peso corporal (mecánica y/o digital)"]
[null,null,null,null,null,"15","Impresora 3D"]
[null,null,null,null,null,"16","Robótica educativa"]
[]
[]
[null,null,"502. ¿QUÉ CICLOS ATENDIDOS CUENTAN CON BIBLIOTECA DE AULA?",null,null,null,null,null,null,null,null,null,null,"504. ¿QUÉ TIPO DE TALLERES BRINDA EL CEBA?"]
[null,null,"Marque con una aspa “X” el ciclo correspondiente y anote el número total de",null,null,null,null,null,null,null,null,null,null,"Marque con un aspa “X” uno o más casilleros"]
[null,null,"ejemplares, según corresponda."]
[null,null,null,null,null,null,null,null,null,"Nº Total de",null,null,null,null,"","Corte y Confección"]
[null,null,null,null,null,null,null,null,null,"Ejemplares",null,null,null,null,"","Computación e Informática"]
[null,null,null,"","Inicial",null,null,null,null,"",null,null,null,null,"","Agroindustria"]
[null,null,null,"","Intermedio",null,null,null,null,"",null,null,null,null,"","Mecánica"]
[null,null,null,null,"NINGUNO",null,null,null,null,null,null,null,null,null,"","Gastronomía"]
[null,null,null,null,null,null,null,null,null,null,null,null,null,null,"","Carpintería"]
[null,null,null,null,null,null,null,null,null,null,null,null,null,null,"","Contabilidad"]
[null,null,"503. ¿EL CEBA CUENTA CON TALLERES?",null,null,null,null,null,null,null,null,null,null,null,"","Electricidad"]
[null,null,null,null,null,null,null,null,null,null,null,null,null,null,"","Otro",null,""]
[null,null,"Si","","No  ",null,null,null,"Pase a la pregunta 505",null,null,null,null,null,"","Ninguno"]
[]
[]
[null,null,"505. ¿LOS ESTUDIANTES HACEN USO DE LAS TABLETAS?",null,null,null,null,null,null,null,null,null,null,"506. SUS ESTUDIANTES, ¿QUÉ ACCIONES REALIZAN CON AYUDA DE LAS TABLETAS?"]
[]
[null,null,null,null,null,null,null,null,null,null,null,null,null,null,"Marque con una “X”, una o más opciones"]
[null,null,null,null," Sí  "]
[null,null,null,null,null,null,null,null,null,null,null,null,null,null,"","Buscar información"]
[null,null,null,null,"No  ","",null,null,null,"Pase a la sección 600",null,null,null,null,"","Elaborar sus productos"]
[null,null,null,null,null,null,null,null,null,null,null,null,null,null,"","Organizar sus actividades"]
[null,null,null,null,null,null,null,null,null,null,null,null,null,null,"","Otros",""]
[]
[]
[null,null,null,null,"¿Por qué no hacen uso de las tabletas?",null,null,null,null,null,null,null,null,"507. ¿QUÉ APLICACIONES O UTILITARIOS DE LAS TABLETAS SON LOS MÁS INTEGRADOS"]
[null,null,null,null,"Marque con una “X”, una o más opciones",null,null,null,null,null,null,null,null,null,"USADOS POR LOS DOCENTES EN EL PROCESO DE ENSEÑANZA Y APRENDIZAJE?"]
[]
[null,null,null,null,null,"","Por miedo/temor a dañarlas",null,null,null,null,null,null,null,"Marque con una “X”, una o más opciones"]
[null,null,null,null,null,"","Porque no saben cómo usarla"]
[null,null,null,null,null,"","Porque no funcionan",null,null,null,null,null,null,null,"","Aplicaciones para crear objetos virtuales"]
[null,null,null,null,null,"","Otro","",null,null,null,null,null,null,"","Aplicaciones que brindan información"]
[null,null,null,null,null,null,null,null,null,null,null,null,null,null,"","Utilitarios, como lector y editor PDF, AnyDesk, etc."]
[null,null,null,null,null,null,null,null,null,null,null,null,null,null,"","Otros",""]
[]
[]
[null,null,"AULAS Y SERVICIOS HIGIÉNICOS UTILIZADO POR EL CEBA"]
[null,null,"508. INDIQUE EL NÚMERO DE AULAS UTILIZADO",null,null,null,null,null,null,null,null,null,null,"509. INDIQUE EL NÚMERO DE SERVICIOS HIGIÉNICOS UTILIZADOS"]
[]
[null,null,null,null,"TOTAL AULAS",null,null,null,null,null,null,{"$f":"L96+L98","v":0},null,null,"TOTAL SS.HH.",null,null,null,null,null,{"$f":"U96+U98","v":0}]
[]
[null,null,null,null,"De uso exclusivo :",null,null,null,null,null,null,null,null,null,"De uso exclusivo :"]
[]
[null,null,null,null,"De uso compartido con otros niveles :",null,null,null,null,null,null,null,null,null,"De uso compartido con otros niveles :"]
[]
[]
[null,"600. EDUCACIÓN FÍSICA Y DEPORTE (Para II.EE. Públicas y Privadas)"]
[]
[null,null,"A. SITUACIÓN DEL DEPORTE ESCOLAR"]
[null,null,"601. EN EL AÑO 2024, EN ESTE CEBA, ¿PARTICIPÓ EN LOS JEDPA (JUEGOS ESCOLARES",null,null,null,null,null,null,null,null,null,null,"603. ¿QUÉ ACTIVIDADES DESARROLLA ESTE SERVICIO/NIVEL EDUCATIVO DURANTE EL"]
[null,null,null,"DEPORTIVOS Y PARADEPORTIVOS)?",null,null,null,null,null,null,null,null,null,null,"PRESENTE AÑO, ORIENTADAS A LA PROMOCIÓN DE UNA VIDA ACTIVA, CREATIVA"]
[null,null,null,null,null,null,null,null,null,null,null,null,null,null,"Y SALUDABLE?"]
[null,null,"Sí  ","",null,null,"No  ",null,null,null,null,null,null,null,"Marque con una “X”, una o más opciones"]
[]
[null,null,null,null,null,null,null,null,null,null,null,null,null,null,"","10 min de actividad física diaria"]
[null,null,"602. EN EL PRESENTE AÑO, ¿ESTE SERVICIO/NIVEL EDUCATIVO HA INCORPORADO EN SU PLAN",null,null,null,null,null,null,null,null,null,null,null,"","Pausa activa"]
[null,null,null,"ANUAL DE TRABAJO ACTIVIDADES ORIENTADAS A LA PROMOCIÓN DE UNA VIDA ACTIVA,",null,null,null,null,null,null,null,null,null,null,"","Juego aprendo y me siento saludable"]
[null,null,null,"CREATIVA Y SALUDABLE?",null,null,null,null,null,null,null,null,null,null,"","Actividad familiar (carrera familiar, maratón, caminata, pasacalle, etc.)"]
[null,null,null,null,null,null,null,null,null,null,null,null,null,null,"","Otro"]
[null,null,"Sí  ","",null,null,"No  ",null,null,null,"Pase a la sección 700"]
[null,null,null,null,null,null,null,null,null,null,null,null,null,"604. SI EN LA PREGUNTA ANTERIOR SELECCIONO LA OPCIÓN “10 MINUTOS DE ACTIVIDAD FÍSICA”,"]
[null,null,null,null,null,null,null,null,null,null,null,null,null,null,"¿CUÁNTOS DÍAS A LA SEMANA DESARROLLA ESTA ACTIVIDAD?"]
[null,null,null,null,null,null,null,null,null,null,null,null,null,null,"Marque con una “X”, una solo opción"]
[]
[null,null,null,null,null,null,null,null,null,null,null,null,null,null,"","1 día"]
[null,null,null,null,null,null,null,null,null,null,null,null,null,null,"","2 días"]
[null,null,null,null,null,null,null,null,null,null,null,null,null,null,"","3 días"]
[null,null,null,null,null,null,null,null,null,null,null,null,null,null,"","4 días"]
[null,null,null,null,null,null,null,null,null,null,null,null,null,null,"","5 días"]

{"sheet":"C700","index":9,"n_rows":188,"n_cols":28,"rows_kept":188,"cut":false,"hidden":false,"merged":[[129,9,129,13],[6,2,6,27],[18,20,18,25],[19,7,19,11],[82,22,83,22],[82,23,83,26],[89,20,90,21],[89,25,90,26],[97,20,97,24],[107,22,107,26],[112,7,112,12],[117,20,118,21],[117,26,118,26],[187,7,187,11],[135,20,136,21],[147,7,147,12],[142,19,142,23],[185,20,185,25],[170,20,170,25],[159,23,159,26]]}
[]
[null,null,null,null,null,null,null,null,"CENSO EDUCATIVO 2025"]
[null,null,null,null,null,null,null,null,"MATRÍCULA, DOCENTES Y MATERIALES EDUCATIVOS"]
[]
[]
[]
[null,null,"700. FORTALECIMIENTO DE LA GESTIÓN"]
[]
[null,null,null,"701. ¿CUÁLES SON LOS PRINCIPALES TEMAS QUE REQUIERE COMO CAPACITACIÓN",null,null,null,null,null,null,null,null,null,null,null,null,"707. ¿QUÉ INFORMACIÓN LE GUSTARÍA ENCONTRAR EN EL PORTAL WEB DE "]
[null,null,null,null,"PARA MEJORAR SU DESEMPEÑO COMO DIRECTOR(A)? ",null,null,null,null,null,null,null,null,null,null,null,null,"EVALUACIÓN DOCENTE DEL MINEDU? "]
[null,null,null,null,"Marque con una “X”, hasta 4 opciones",null,null,null,null,null,null,null,null,null,null,null,null,"Marque con una “X”, hasta dos opciones"]
[]
[null,null,null,{"$f":"COUNTIF(E13:E20,\"X\")","v":0},null,"Desarrollo de las competencias de las áreas curriculares",null,null,null,null,null,null,null,null,null,null,{"$f":"COUNTIF(R13:R19,\"X\")","v":0},"","Informes de resultados de evaluaciones por región"]
[null,null,null,null,null,"Planificación y evaluación",null,null,null,null,null,null,null,null,null,null,null,"","Informes de resultados de evaluaciones por área Pedagógica"]
[null,null,null,null,null,"Manejo de herramientas TIC y ofimáticas",null,null,null,null,null,null,null,null,null,null,null,"","Infografías sobre resultados en evaluaciones"]
[null,null,null,null,null,"Soporte emocional",null,null,null,null,null,null,null,null,null,null,null,"","Material audiovisual sobre evaluación docente"]
[null,null,null,null,null,"Participación de padres y madres de familias ",null,null,null,null,null,null,null,null,null,null,null,"","Informes dinámicos de resultados"]
[null,null,null,null,null,"Relacionamiento institucional y gestión de alianzas ",null,null,null,null,null,null,null,null,null,null,null,"","Webinars/presentaciones en línea"]
[null,null,null,null,null,"Acompañamiento pedagógico",null,null,null,null,null,null,null,null,null,null,null,"","Otros",null,""]
[null,null,null,null,null,"Otros"]
[]
[null,null,null,"702. DURANTE EL AÑO 2024 Y HASTA LA FECHA DE APLICACIÓN DEL CENSO EDUCATIVO 2025,"]
[null,null,null,null,"¿HA REALIZADO ACCIONES EN FAVOR DEL BIENESTAR SOCIOEMOCIONAL DE LOS",null,null,null,null,null,null,null,null,null,null,null,"708. ¿ACTUALMENTE CUENTA CON ALGÚN ESPACIO EN EL QUE PUEDA DIALOGAR CON DIRECTORES"]
[null,null,null,null,"ESTUDIANTES Y/O DE LOS DOCENTES Y/O FAMILIAS?",null,null,null,null,null,null,null,null,null,null,null,null,"DE OTRAS IIEE PARA COMPARTIR EXPERIENCIAS Y DESARROLLAR ESTRATEGIAS PARA"]
[null,null,null,null,null,null,null,null,null,null,null,null,null,null,null,null,null,"RESOLVER PROBLEMAS DE LA GESTIÓN DE SU SERVICIO/NIVEL EDUCATIVO?"]
[null,null,null,null,"Sí",null,null,null,null,"No  "]
[null,null,null,null,null,null,null,null,null,null,null,null,null,null,null,null,null,"Sí",null,null,null,null,"No  "]
[]
[null,null,null,null,"¿Qué acciones realizó? ",null,null,null,null,null,null,null,null,null,null,null,null,null,null,null,"¿Quién promueve estos espacios?"]
[null,null,null,null,"Marque con una “X”, una o más opciones",null,null,null,null,null,null,null,null,null,null,null,null,null,null,null,"Marque con una “X”, una o más opciones"]
[]
[null,null,null,null,null,"Elaborar un diagnóstico del estado del bienestar socioemocional de estudiantes ",null,null,null,null,null,null,null,null,null,null,null,null,null,null,null,"DRE/GRE"]
[null,null,null,null,null,"Elaborar un diagnóstico del estado del bienestar socioemocional de docentes ",null,null,null,null,null,null,null,null,null,null,null,null,null,null,null,"UGEL"]
[null,null,null,null,null,"Ejecutar acciones en la IIEE para trabajar específicamente gestión de emociones …",null,null,null,null,null,null,null,null,null,null,null,null,null,null,null,"Red educativa "]
[null,null,null,null,null,"Generar espacios de diálogo en la comunidad educativa con docentes y/o familias. ",null,null,null,null,null,null,null,null,null,null,null,null,null,null,null,"Por iniciativa propia"]
[null,null,null,null,null,"Promover espacios específicamente para abordar gestión de emociones con familias ",null,null,null,null,null,null,null,null,null,null,null,null,null,null,null,"Asociaciones varias (ONG, sector privado, universidades) "]
[null,null,null,null,null,"Ejecutar acciones en el marco de la Tutoría y Orientación Educativa (TOE)",null,null,null,null,null,null,null,null,null,null,null,null,null,null,null,"Ninguna de las anteriores"]
[]
[null,null,null,"703. ESTE SERVICIO/NIVEL EDUCATIVO, ¿COORDINA ALGUNA ACCIÓN CON OTROS ACTORES"]
[null,null,null,null,"DE LA LOCALIDAD PARA MEJORAR LA PRESTACIÓN DEL SERVICIO EDUCATIVO?"]
[null,null,null,null,null,null,null,null,null,null,null,null,null,null,null,null,"709. ¿QUÉ TAN INTERESADO SE ENCONTRARÍA DE PARTICIPAR EL AÑO 2026 DE ESPACIOS"]
[null,null,null,null,"Sí",null,null,null,null,"No  ",null,null,null,null,null,null,null,"EN LOS QUE SE REALICE TRABAJO COLABORATIVO CON DIRECTORES DE OTRAS"]
[null,null,null,null,null,null,null,null,null,null,null,null,null,null,null,null,null,"INSTITUCIONES EDUCATIVAS, PARA DIALOGAR SOBRE LOS PROBLEMAS DE LA"]
[null,null,null,null,null,null,null,"Indique a los actores de la localidad",null,null,null,null,null,null,null,null,null,"GESTIÓN ESCOLAR?"]
[null,null,null,null,null,null,null,"Marque con una “X”, una o más opciones",null,null,null,null,null,null,null,null,null,"Marque con una “X”, una opción"]
[]
[null,null,null,null,null,null,null,null,"Municipalidad distrital",null,null,null,null,null,null,null,null,null,"Muy interesado"]
[null,null,null,null,null,null,null,null,"Municipalidad provincial",null,null,null,null,null,null,null,null,null,"Interesado"]
[null,null,null,null,null,null,null,null,"Gobierno regional",null,null,null,null,null,null,null,null,null,"Poco interesado"]
[null,null,null,null,null,null,null,null,"Empresa privada",null,null,null,null,null,null,null,null,null,"Nada interesado"]
[null,null,null,null,null,null,null,null,"ONG o sociedad civil"]
[]
[null,null,null,"704. USTED SEÑOR(A) DIRECTOR(A), DURANTE EL PRESENTE AÑO ESCOLAR 2025, ¿CON QUÉ"]
[null,null,null,null,"FRECUENCIA HA VISITADO EL PORTAL WEB PARA DIRECTIVO DE IIEE DEL MINEDU?",null,null,null,null,null,null,null,null,null,null,null,"710. DURANTE EL PRESENTE AÑO Y HASTA LA FECHA DE APLICACIÓN DEL CENSO"]
[null,null,null,null,"(https://directivos.minedu.gob.pe/) ",null,null,null,null,null,null,null,null,null,null,null,null,"EDUCATIVO 2025, SELECCIONE UNA O HASTA TRES ACCIONES QUE USTED HA"]
[null,null,null,null,"Marque con una “X”, una opción",null,null,null,null,null,null,null,null,null,null,null,null,"IMPLEMENTADO EN ESTE SERVICIO/NIVEL EDUCATIVO."]
[null,null,null,null,null,null,null,null,null,null,null,null,null,null,null,null,null,"Marque con una “X”, hasta 3 opciones"]
[null,null,null,null,null,"Nunca he ingresado durante este año"]
[null,null,null,null,null,"Casi nunca",null,null,null,null,null,null,null,null,null,null,{"$f":"COUNTIF(R59:R65,\"X\")","v":0},null,"Conducir la planificación institucional"]
[null,null,null,null,null,"A veces",null,null,null,null,null,null,null,null,null,null,null,null,"Promover y sostener la participación democrática de los diversos actores de la IE."]
[null,null,null,null,null,"Frecuentemente ",null,null,null,null,null,null,null,null,null,null,null,null,"Favorecer las condiciones operativas que aseguren aprendizajes de calidad"]
[null,null,null,null,"X","Siempre",null,null,null,null,null,null,null,null,null,null,null,null,"Liderar procesos de evaluación de la gestión de la IE."]
[null,null,null,null,null,null,null,null,null,null,null,null,null,null,null,null,null,null,"Promover y liderar una comunidad de aprendizaje con las y los docentes de su IE."]
[null,null,null,"705. USTED SEÑOR(A) DIRECTOR(A), ¿CONOCE EL PORTAL WEB DE EVALUACIÓN DOCENTE?",null,null,null,null,null,null,null,null,null,null,null,null,null,null,"Gestiona la calidad de los procesos pedagógicos al interior de su IE."]
[null,null,null,null,"https://evaluaciondocente.perueduca.pe/",null,null,null,null,null,null,null,null,null,null,null,null,null,"Ninguna de las anteriores"]
[]
[null,null,null,null,"Sí","",null,null,null,"No  ",null," u   Pase a la pregunta 708."]
[]
[null,null,null,"706. PARA USTED SEÑOR(A) DIRECTOR(A), ¿CUÁN IMPORTANTE CONSIDERA QUE ES LA"]
[null,null,null,null,"INFORMACIÓN QUE ENCUENTRA EN EL PORTAL WEB SOBRE LA EVALUACIÓN DOCENTE?"]
[null,null,null,null,"Marque con una “X”, una opción"]
[]
[null,null,null,null,"","Muy importante"]
[null,null,null,null,"","Importante"]
[null,null,null,null,"","Poco importante"]
[null,null,null,null,"","Nada importante"]
[]
[]
[null,null,null,"711. PARA SU LABOR COMO DIRECTOR(A)/DOCENTE, ¿CONOCE Y USA LOS RESULTADOS DE LAS",null,null,null,null,null,null,null,null,null,null,null,null,"715. DURANTE EL AÑO 2025 ESTE SERVICIO/NIVEL EDUCATIVO, ¿TUVÓ ALGUNA PLAZA DE"]
[null,null,null,null,"ÚLTIMAS EVALUACIONES DE LOGROS DE APRENDIZAJE A ESTUDIANTES,COMO LA",null,null,null,null,null,null,null,null,null,null,null,null,"PERSONAL ADMINISTRATIVO QUE NO HA LOGRADO CUBRIR?"]
[null,null,null,null,"EVALUACIÓN NACIONAL DE LOGROS DE APRENDIZAJE (ENLA) 2023 O 2024?"]
[null,null,null,null,"Marque con una “X”, una opción",null,null,null,null,null,null,null,null,null,null,null,null,null,"Sí"]
[null,null,null,null,null,null,null,null,null,null,null,null,null,null,null,null,null,null,"No",null,null,null,"u","Pase a la pregunta 718"]
[null,null,null,null,null,"No los conozco.",null,null,null,"------------",null,"Pase a la pregunta 714",null,null,null,null,null,null,"No tuve plaza asignada"]
[null,null,null,null,null,"Sí los conozco, pero no los uso.",null,null,null,"------------",null,"Pase a la pregunta 713",null,null,null,null,null,{"$f":"CONCATENATE(R84,R83)","v":""}]
[null,null,null,null,null,"Sí los conozco y los uso."]
[null,null,null,null,null,null,null,null,null,null,null,null,null,null,null,null,"716. ¿CUÁNTAS PLAZAS VACANTES SEGÚN CARGO NO SE LOGRÓ CUBRIR?"]
[null,null,null,"712. ¿CÓMO USA LOS RESULTADOS Y/O LOS INFORMES PEDAGÓGICOS DE LAS EVALUACIONES",null,null,null,null,null,null,null,null,null,null,null,null,null,"Complete según corresponda"]
[null,null,null,null,"NACIONALES DE LOGROS DE APRENDIZAJE A ESTUDIANTES?"]
[null,null,null,null,"Marque con una “X”, una o más opciones",null,null,null,null,null,null,null,null,null,null,null,null,null,null,null,"Cargo",null,null,null,null,"Cargo Cantidad de plazas no cubiertas"]
[null,null,null,null,null,null,null,null,null,null,null,null,null,null,null,null,null,null,null,null,null,null,null,null,{"$f":"SUM(AA92:AA98)","v":0}]
[null,null,null,null,null,"Como insumo para la elaboración de documentos de gestión ",null,null,null,null,null,null,null,null,null,null,null,1,"Secretario/a"]
[null,null,null,null,null,"Como insumo para las sesiones de aprendizaje en el aula.",null,null,null,null,null,null,null,null,null,null,null,2,"Oficinista"]
[null,null,null,null,null,"Como insumo para espacios de intercambio y reflexión en la IE.",null,null,null,null,null,null,null,null,null,null,null,3,"Trabajador de servicio que cumple funciones de guardianía"]
[null,null,null,null,null,"Como insumo para informar los logros y desafíos de aprendizaje a las familias.",null,null,null,null,null,null,null,null,null,null,null,4,"Trabajador de servicio que cumple funciones de limpieza"]
[null,null,null,null,null,"Como insumo para construir alianzas con otras instituciones y/o empresas.",null,null,null,null,null,null,null,null,null,null,null,5,"Auxiliar de Biblioteca"]
[null,null,null,null,null,"Como diagnostico para planificación curricular",null,null,null,null,null,null,null,null,null,null,null,6,"Auxiliar de Laboratorio"]
[null,null,null,null,null,null,null,null,null,null,null,null,null,null,null,null,null,7,"Otro",null,"SDFSDF"]
[null,null,null,"713. ¿A TRAVÉS DE QUÉ CANALES RECIBE INFORMACIÓN DE LAS EVALUACIONES DE"]
[null,null,null,null,"LOGROS DE APRENDIZAJE?"]
[null,null,null,null,"Marque como máximo hasta 3 opciones",null,null,null,null,null,null,null,null,null,null,null,"717. ¿POR QUÉ NO SE HA LOGRADO CUBRIR LA(S) PLAZA(S)?"]
[null,null,null,null,null,null,null,null,null,null,null,null,null,null,null,null,null,"Marque con una “X”, hasta dos opciones"]
[null,null,null,null,null,"Redes sociales (Facebook, Youtube, Twitter, Instagram, etc.)"]
[null,null,null,null,null,"Correo electrónico",null,null,null,null,null,null,null,null,null,null,null,null,"La Institución Educativa no requiere al personal asignado"]
[null,null,null,null,null,"Mensajes de texto",null,null,null,null,null,null,null,null,null,null,null,null,"No se presentaron postulantes"]
[null,null,null,null,null,"Mensajes por WhatsApp",null,null,null,null,null,null,null,null,null,null,null,null,"Postulantes no cuentan con la experiencia requerida"]
[null,null,null,null,null,"Eventos (conferencias, webinars, charlas, etc)",null,null,null,null,null,null,null,null,null,null,null,null,"UGEL no brinda mayor información"]
[null,null,null,null,null,"Espacios formativos (talleres, capacitaciones, etc.)",null,null,null,null,null,null,null,null,null,null,null,null,"Requiero otro tipo de personal"]
[null,null,null,null,null,"Envío de dispositivos de almacenamiento portátil con recursos"]
[null,null,null,null,null,"Envío de enlaces de almacenamiento en la nube con recursos"]
[null,null,null,null,null,"Programas de radios comunitarias",null,null,null,null,null,null,null,null,null,null,"718. CON RESPECTO A LAS ACTIVIDADES ADMINISTRATIVAS, SELECCIONE LOS DOS PRINCIPALES"]
[null,null,null,null,null,"Portales web de las DRE/GRE y UGEL",null,null,null,null,null,null,null,null,null,null,null,"ÁMBITOS QUE REPRESENTARON MAYOR CARGA LABORAL DURANTE EL PRESENTE"]
[null,null,null,null,null,"Otro",null,"",null,null,null,null,null,null,null,null,null,"AÑO E INDIQUE UN ORDEN DE PRIORIDAD DE “1” O “2” , SIENDO 1 “MAYOR CARGA”"]
[null,null,null,null,null,null,null,null,null,null,null,null,null,null,null,null,null,"Y 2 “MENOR CARGA” ENTRE LA SELECCIONADA"]
[null,null,null,"714. USTED SEÑOR(A) DIRECTOR(A), ¿CUENTA CON PERSONAL ADMINISTRATIVO?"]
[null,null,null,null,null,null,null,null,null,null,null,null,null,null,null,null,null,"Marque hasta dos opciones principales y señale 1 ó 2 según carga priorizada"]
[null,null,null,null,"Sí",null,null,null,null,"No  "]
[null,null,null,null,null,null,null,null,null,null,null,null,null,null,null,null,null,null,null,null,"Ámbito",null,null,null,null,null,"Prioridad\n(*)"]
[null,null,null,null,null,null,null,"¿Qué temáticas considera usted que el personal",null,null,null,null,null,null,null,null,null,null,null,null,null,null,null,null,null,{"$f":"SUM(AB120:AB125)","v":6}]
[null,null,null,null,null,null,null,"administrativo debe ser capacitado?",null,null,null,null,null,null,null,null,null,1,"Gestión de recursos financieros, bienes, servicios e infraestructura",null,null,null,null,null,null,null,null,{"$f":"IF(AA120=\"\",1,0)","v":1}]
[null,null,null,null,null,null,null,"Marque como máximo tres opciones",null,null,null,null,null,null,null,null,null,2,"Gestión de información de la IIEE (registro en sistemas administrativos)",null,null,null,null,null,null,null,null,{"$f":"IF(AA121=\"\",1,0)","v":1}]
[null,null,null,null,null,null,null,null,null,null,null,null,null,null,null,null,null,3,"Gestión y seguimiento del uso de los recursos educativos.",null,null,null,null,null,null,null,null,1]
[null,null,null,null,null,null,null,null,"Trabajo en equipo",null,null,null,null,null,null,null,null,4,"Limpieza y mantenimiento",null,null,null,null,null,null,null,null,1]
[null,null,null,null,null,null,null,null,"Orientación al servicio y comunicación asertiva",null,null,null,null,null,null,null,null,5,"Prevención y atención de situaciones de riesgo",null,null,null,null,null,null,null,null,1]
[null,null,null,null,null,null,null,null,"Primeros auxilios y seguridad y salud en el trabajo ",null,null,null,null,null,null,null,null,6,"Vigilancia y guardianía",null,null,null,null,null,null,null,null,1]
[null,null,null,null,null,null,null,null,"Manejo de herramientas TIC y ofimática"]
[null,null,null,null,null,null,null,null,"Manejo de los sistemas informáticos del MINEDU"]
[null,null,null,null,null,null,null,null,"Mantenimiento (electricidad, gasfitería, carpintería, etc)",null,null,null,null,null,null,null,null,null,"(*) Señale Prioridad, donde:"]
[null,null,null,null,null,null,null,null,"Conocimiento de seguridad básica",null,null,null,null,null,null,null,null,null,null,"1: Más carga"]
[null,null,null,null,null,null,null,null,"Otros","",null,null,null,null,null,null,null,null,null,"2: Menos carga"]
[]
[]
[null,null,null,"719. USTED SEÑOR(A) DIRECTOR(A), ¿CUENTA CON PERSONAL AUXILIAR DE EDUCACIÓN?",null,null,null,null,null,null,null,null,null,null,null,null,"724. ¿CUÁLES SON LOS INSTRUMENTOS DE GESTIÓN ESCOLAR CON QUE CUENTA ESTE"]
[null,null,null,null,null,null,null,null,null,null,null,null,null,null,null,null,null,"SERVICIO/NIVEL EDUCATIVO?"]
[null,null,null,null,"Sí",null,null,null,null,"No  "]
[null,null,null,null,null,null,null,null,null,null,null,null,null,null,null,null,null,null,null,null,"Ámbito"]
[null,null,null,null,null,null,null,null,null,null,null,null,null,null,null,null,null,null,null,null,null,null,null,{"$f":"COUNTIF(Y138:Y143,\"SI\")+COUNTIF(Y138:Y143,\"NO\")","v":0},"SI - NO"]
[null,null,null,null,"¿Qué temáticas considera usted que el personal auxiliar",null,null,null,null,null,null,null,null,null,null,null,null,1,"Proyecto Educativo Institucional (PEI)"]
[null,null,null,null,"de educación debe ser capacitado?",null,null,null,null,null,null,null,null,null,null,null,null,2,"Proyecto Currícular Institucional (PCI)"]
[null,null,null,null,"Marque como máximo tres opciones",null,null,null,null,null,null,null,null,null,null,null,null,3,"Reglamento Interno (RI)"]
[null,null,null,null,null,null,null,null,null,null,null,null,null,null,null,null,null,4,"Plan Anual de Trabajo (PAT)"]
[null,null,null,{"$f":"COUNTIF(E142:E148,\"X\")","v":0},null,"Comunicación oral",null,null,null,null,null,null,null,null,null,null,null,5,"Documento de Gestión (DG)"]
[null,null,null,null,null,"Trabajo en equipo y organización",null,null,null,null,null,null,null,null,null,null,null,6,"Otros"]
[null,null,null,null,null,"Resolución de problemas con agilidad y manejo de conflicto"]
[null,null,null,null,null,"Primeros auxilios y seguridad y salud en el trabajo",null,null,null,null,null,null,null,null,null,null,"725. ¿TIENE CONOCIMIENTO QUE EXISTE UNA HERRAMIENTA DIGITAL PARA LA EMISIÓN DE"]
[null,null,null,null,null,"Desarrollo infantil",null,null,null,null,null,null,null,null,null,null,null,"CERTIFICADOS DE ESTUDIOS?"]
[null,null,null,null,null,"Relación con los estudiantes (el juego, soporte socioemocional"]
[null,null,null,null,null,"Otro",null,"",null,null,null,null,null,null,null,null,null,"Sí",null,null,null,null,"No  "]
[]
[null,null,null,"720. ¿EN QUÉ TRIMESTRE CONSIDERA USTED QUE ES IDÓNEA LA FORMACIÓN DEL PERSONAL"]
[null,null,null,null,"ADMINISTRATIVO Y/O AUXILIAR DE EDUCACIÓN?",null,null,null,null,null,null,null,null,null,null,null,null,null,"¿Ha hecho uso de la herramienta?"]
[null,null,null,null,"Marque con una “X”, hasta dos opciones"]
[null,null,null,null,null,null,null,null,null,null,null,null,null,null,null,null,null,"Sí","",null,null,"¿Cuál es el motivo?"]
[null,null,null,{"$f":"COUNTIF(E154:E158,\"X\")","v":0},null,"Entre enero y marzo",null,null,null,null,null,null,null,null,null,null,null,null,null,null,null,"Marque con una “X”, una o más opciones"]
[null,null,null,null,null,"Entre abril y junio",null,null,null,null,null,null,null,null,null,null,null,"No  ",""]
[null,null,null,null,null,"Entre julio y setiembre",null,null,null,null,null,null,null,null,null,null,null,null,null,null,null,null,"Baja demanda educativa o pocos estudiantes"]
[null,null,null,null,null,"Entre octubre y diciembre",null,null,null,null,null,null,null,null,null,null,null,null,null,null,null,null,"La IE que dirijo es multigrado"]
[null,null,null,null,null,"No cuento con personal administrativo y/o auxiliar de educación",null,null,null,null,null,null,null,null,null,null,null,null,null,null,null,null,"Bajo o escaso acceso a internet en la localidad"]
[null,null,null,null,null,null,null,null,null,null,null,null,null,null,null,null,null,null,null,null,null,null,"En la localidad se habla otra lengua distinta al español"]
[null,null,null,"721. DURANTE EL PRESENTE AÑO Y HASTA LA FECHA DE APLICACIÓN DEL CENSO EDUCATIVO 2025,",null,null,null,null,null,null,null,null,null,null,null,null,null,null,null,null,null,null,"Otros",""]
[null,null,null,null,"¿EL EQUIPO DIRECTIVO DE ESTE SERVICIO/NIVEL EDUCATIVO HA GESTIONADO ACCIONES"]
[null,null,null,null,"VINCULADAS AL TRABAJO COLABORATIVO CON DOCENTES?",null,null,null,null,null,null,null,null,null,null,null,"726. ¿HA RECIBIDO ASISTENCIA TÉCNICA (WEBINAR) POR PARTE DE MINEDU EN"]
[null,null,null,null,null,null,null,null,null,null,null,null,null,null,null,null,null,"ALGUNOS DE LOS SIGUIENTES TEMAS?"]
[null,null,null,null,"Sí",null,null,null,null,"No  ",null,null,null,null,null,null,null,"Marque con una “X”, una o más opciones"]
[]
[null,null,null,null,null,null,null,"¿Qué actividades ha implementado?",null,null,null,null,null,null,null,null,null,null,"Alfabetización Inicial"]
[null,null,null,null,null,null,null,"Marque con una “X”, hasta dos opciones priorizadas",null,null,null,null,null,null,null,null,null,null,"Atención diferenciada"]
[null,null,null,null,null,null,null,null,null,null,null,null,null,null,null,null,null,null,"Plan Lector"]
[null,null,null,null,null,null,{"$f":"COUNTIF(H169:H172,\"X\")","v":0},null,"Planificación institucional",null,null,null,null,null,null,null,null,null,"Uso pedagógico de la biblioteca de aula"]
[null,null,null,null,null,null,null,null,"Reuniones colegiadas",null,null,null,null,null,null,null,null,null,"Uso pedagógico de los cuadernillos de comunicación y matemática"]
[null,null,null,null,null,null,null,null,"Comunidades de aprendizaje profesional",null,null,null,null,null,null,null,null,null,"Otros"]
[null,null,null,null,null,null,null,null,"Gestión de la convivencia escolar"]
[null,null,null,null,null,null,null,null,null,null,null,null,null,null,null,null,"727. ¿HA INCORPORADO EN EL PAT, LA CELEBRACIÓN DEL DÍA O SEMANA DE LA"]
[null,null,null,"722. EN EL PRESENTE AÑO, ¿SE HA INCORPORADO ALGÚN OBJETIVO O ACCIÓN RELACIONADA CON",null,null,null,null,null,null,null,null,null,null,null,null,null,"EDUCACIÓN PRIMARIA?"]
[null,null,null,null,"LA PREVENCIÓN, PROMOCIÓN O ATENCIÓN DE LA SALUD FÍSICA, MENTAL O EMOCIONAL DEL"]
[null,null,null,null,"PERSONAL DOCENTE, DIRECTIVO, JERÁRQUICO O ADMINISTRATIVO EN LOS INSTRUMENTOS",null,null,null,null,null,null,null,null,null,null,null,null,"Sí","",null,null,null,"No  "]
[null,null,null,null,"DE GESTIÓN DEL SERVICIO/NIVEL EDUCATIVO?"]
[null,null,null,null,null,null,null,null,null,null,null,null,null,null,null,null,"728. ¿QUÉ ACTIVIDADES HA PLANTEADO PARA EL DESARROLLO DE LA SEMANA DE"]
[null,null,null,null,"Sí",null,null,null,null,"No  ",null," u   Pase a la pregunta 724.",null,null,null,null,null,"LA EDUCACIÓN PRIMARIA?"]
[null,null,null,null,null,null,null,null,null,null,null,null,null,null,null,null,null,"Marque con una “X”, una o más opciones"]
[null,null,null,"723. ¿A TRAVÉS DE QUÉ INSTRUMENTOS DE GESTIÓN SE HA INCORPORADO?"]
[null,null,null,null,"Marque con una “X”, una opción",null,null,null,null,null,null,null,null,null,null,null,null,null,"Ferias"]
[null,null,null,null,null,null,null,null,null,null,null,null,null,null,null,null,null,null,"Charlas"]
[null,null,null,null,null,"Proyecto Educativo Institucional (PEI)",null,null,null,null,null,null,null,null,null,null,null,null,"Actuaciones"]
[null,null,null,null,null,"Plan Anual de Trabajo (PAT)",null,null,null,null,null,null,null,null,null,null,null,null,"Campañas comunicacionales"]
[null,null,null,null,null,"Proyecto Curricular de la IE (PCI)",null,null,null,null,null,null,null,null,null,null,null,null,"Otros"]
[null,null,null,null,null,"Reglamento Interno (RI)"]
[null,null,null,null,null,"Otros",null,""]

{"sheet":"C800","index":10,"n_rows":97,"n_cols":27,"rows_kept":97,"cut":false,"hidden":false,"merged":[[22,8,22,9],[22,10,22,11],[22,15,29,16],[22,17,29,20],[23,10,23,11],[24,8,24,9],[24,10,24,11],[25,8,25,9],[25,10,25,11],[6,1,6,27],[12,15,13,16],[12,17,13,20],[12,21,12,26],[14,15,21,16],[14,17,21,20],[18,7,18,9],[18,10,18,12],[19,7,20,7],[19,8,20,9],[19,10,20,11],[19,12,20,12],[21,8,21,9],[21,10,21,11],[30,17,36,20],[32,15,34,16],[54,2,57,4],[54,5,57,7],[54,8,57,9],[54,10,57,11],[54,12,57,12],[25,3,25,6],[58,2,58,4],[58,5,58,7],[58,8,58,9],[58,10,58,11],[70,5,71,6],[70,8,71,8],[70,9,71,12],[71,16,72,19],[71,20,71,25],[72,9,72,12],[72,22,72,23],[75,22,75,23],[76,9,76,12],[77,9,77,12],[73,9,73,12],[73,20,73,21],[73,22,73,23],[74,9,74,12],[74,20,74,21],[74,22,74,23],[78,9,78,12],[79,9,79,12],[80,9,80,12],[75,9,75,12],[75,20,75,21]]}
[]
[null,null,null,null,null,"CENSO EDUCATIVO 2025"]
[null,null,null,null,null,"MATRÍCULA, DOCENTES Y RECURSOS"]
[]
[]
[]
[null,"800. GESTIÓN DEL RIESGO DE DESASTRES"]
[]
[null,null,"801. EN EL PRESENTE AÑO, ESTE SERVICIO/NIVEL EDUCATIVO, ¿HA INCORPORADO ACCIONES",null,null,null,null,null,null,null,null,null,null,null,null,"802. SOBRE LA GESTIÓN DEL RIESGO DE DESASTRES EN ESTE SERVICIO/NIVEL EDUCATIVO,"]
[null,null,null,"ESTRATÉGICAS Y OPERATIVAS EN GESTIÓN DEL RIESGO DE DESASTRES Y SEGURIDAD Y",null,null,null,null,null,null,null,null,null,null,null,null,"ATIENDA LAS SIGUIENTES PREGUNTAS:"]
[null,null,null,"DEFENSA NACIONAL EN SUS INSTRUMENTOS DE GESTIÓN VIGENTES? ",null,null,null,null,null,null,null,null,null,null,null,null,"Marque con una “X” en “Si” o “No” según corresponda en atención a cada pregunta"]
[]
[null,null,null,"Sí","",null,null,null,"No  ",null,null,null,null,null,null,"Bien o Servicio",null,"Pregunta",null,null,null,"Marque con un “X”, según corresponda "]
[null,null,null,null,null,null,null,null,null,null,null,null,null,null,null,null,null,null,null,null,null,null,"SI","NO","Si es Sí, de quién lo recibió"]
[null,null,null,null,null,null,null,null,null,null,null,null,null,null,null,"Planos de Seguridad",null,"¿El servicio/nivel educativo cuenta con planos de seguridad acorde a la normativa?"]
[null,null,null,"Precise las acciones incorporadas en los documentos de gestión",null,null,null,null,null,null,null,null,null,null,null,null,null,null,null,null,null,null,null,null,"De la DRE/GRE",null,""]
[null,null,null,"Marque con una “X”, según corresponda ",null,null,null,null,null,null,null,null,null,null,null,null,null,null,null,null,null,null,null,null,"De la UGEL",null,""]
[null,null,null,null,null,null,null,null,null,null,null,null,null,null,null,null,null,null,null,null,null,null,"",null,"De la Municipalidad",null,""]
[null,null,null,null,null,null,null,"Riesgo de Desastres",null,null,"Seguridad y Defensa Nacional",null,null,null,null,null,null,null,null,null,null,null,null,null,"De una entidad privada",null,""]
[null,null,"Documentos de Gestión",null,null,null,null,"Acciones Estratégicas","Acciones Operativas",null,"Acciones Estratégicas",null,"Acciones Operativas",null,null,null,null,null,null,null,null,null,null,null,"Adquisición de la IE",null,""]
[null,null,null,null,null,null,null,null,null,null,null,null,null,null,null,null,null,null,null,null,null,null,null,null,"Donación",null,""]
[null,null,"Proyecto Educativo Inst. (PEI)",null,null,null,null,"",null,null,""]
[null,null,"Plan Anual de Trabajo (PAT)",null,null,null,null,null,"",null,null,null,"",null,null,"Dispositivos de Seguridad",null,"¿El servicio/nivel educativo cuenta con dispositivos de seguridad acorde a lo que indica en sus planos de seguridad?"]
[null,null,"Proyecto Curricular. Inst. (PCI)",null,null,null,null,"",null,null,"",null,null,null,null,null,null,null,null,null,null,null,null,null,"De la DRE/GRE",null,""]
[null,null,"Reglamento Interno (RI)",null,null,null,null,null,"",null,null,null,"",null,null,null,null,null,null,null,null,null,null,null,"De la UGEL",null,""]
[null,null,"Otros","",null,null,null,"","",null,"",null,"",null,null,null,null,null,null,null,null,null,"",null,"De la Municipalidad",null,""]
[null,null,null,null,null,null,null,null,null,null,null,null,null,null,null,null,null,null,null,null,null,null,null,null,"De una entidad privada",null,""]
[null,null,null,null,null,null,null,null,null,null,null,null,null,null,null,null,null,null,null,null,null,null,null,null,"Adquisición de la IE",null,""]
[null,null,null,null,null,null,null,null,null,null,null,null,null,null,null,null,null,null,null,null,null,null,null,null,"Donación",null,""]
[]
[null,null,null,null,null,null,null,null,null,null,null,null,null,null,null,null,null,"¿El servicio/nivel educativo cuenta con dispositivos de seguridad incompletos"]
[null,null,null,null,null,null,null,null,null,null,null,null,null,null,null,null,null,null,null,null,null,null,null,null,"De la DRE/GRE",null,""]
[null,null,null,null,null,null,null,null,null,null,null,null,null,null,null,"Otros Casos",null,null,null,null,null,null,null,null,"De la UGEL",null,""]
[null,null,null,null,null,null,null,null,null,null,null,null,null,null,null,null,null,null,null,null,null,null,"",null,"De la Municipalidad",null,""]
[null,null,null,null,null,null,null,null,null,null,null,null,null,null,null,null,null,null,null,null,null,null,null,null,"De una entidad privada",null,""]
[null,null,null,null,null,null,null,null,null,null,null,null,null,null,null,null,null,null,null,null,null,null,null,null,"Adquisición de la IE",null,""]
[null,null,null,null,null,null,null,null,null,null,null,null,null,null,null,null,null,null,null,null,null,null,null,null,"Donación",null,""]
[]
[]
[]
[null,null,"803. EN EL PRESENTE AÑO, LOS MIEMBROS DE ESTE SERVICIO/NIVEL EDUCATIVO,",null,null,null,null,null,null,null,null,null,null,null,null,"804. EN EL PRESENTE AÑO, ESTE SERVICIO/NIVEL EDUCATIVO HA SUFRIDO EL IMPACTO DE"]
[null,null,null,"¿HAN RECIBIDO ACCIONES FORMATIVAS EN MATERIA DE LA GESTIÓN DEL RIESGO ",null,null,null,null,null,null,null,null,null,null,null,null,"DAÑOS DE UN FENÓMENO NATURAL O ANTRÓPICO?"]
[null,null,null,"DE DESASTRES (GRD) Y/O SEGURIDAD Y DEFENSA NACIONAL (SDN)?"]
[null,null,null,null,null,null,null,null,null,null,null,null,null,null,null,null,"Sí","",null,null,null,null,"No  "]
[null,null,null,"Sí","",null,null,null,"No  "]
[]
[null,null,null,null,null,null,null,null,null,null,"Entidad",null,"SI - NO",null,null,null,null,null,null,"¿El servicio fue",null,null,"Sí",""]
[null,null,null,null,null,"El servicio fue brindado por:",null,null,null,"DRE/GRE",null,null,"",null,null,null,null,null,null,"suspendido?"]
[null,null,null,null,null,null,null,null,null,"UGEL",null,null,"",null,null,null,null,null,null,null,null,null,"No  ",""]
[null,null,null,null,null,null,null,null,null,"Municipio",null,null,""]
[null,null,null,null,null,null,null,null,null,"ONG/Entidad privada",null,null,"",null,null,null,"¿Cuál de los siguientes canales se utilizó para reportar la emergencia a la UGEL?"]
[null,null,null,null,null,null,null,null,null,null,null,null,{"$f":"COUNTIF(M48:M51,\"SI\")+COUNTIF(M48:M51,\"SI\")","v":0},null,null,null,"Marque con una “X”, una o más opciones"]
[null,null,"Tematicas: Marque con una “X”, según corresponda"]
[null,null,"Gestión del Riesgo de Desastres",null,null,null,null,null,null,null,"Seguridad y Defensa Nacional",null,null,null,null,null,"","Celular"]
[null,null,"Política/Plan NAcional en GRD",null,null,"Componentes, procesos o procedimientos de la GRD",null,null,"*Herramientas técnicas / Financieras en GRD",null,"Política/Plan Nacional en SDN",null,"Fundamentos de la SDN",null,null,null,"","Radiofonía"]
[null,null,null,null,null,null,null,null,null,null,null,null,null,null,null,null,"","Teléfono satelital"]
[null,null,null,null,null,null,null,null,null,null,null,null,null,null,null,null,"","Plataforma web"]
[null,null,null,null,null,null,null,null,null,null,null,null,null,null,null,null,"","Por conducto regular (oficio, informe)"]
[null,null,"",null,null,"",null,null,"",null,"",null,"",null,null,null,"","No se sabía que había que reportar a la UGEL"]
[null,null,{"$f":"COUNTIF(C59:M59,\"X\")","v":0},null,null,null,null,null,null,null,null,null,null,null,null,null,"","No se reportó la emergencia porque no hay cobertura ni canal disponible en la zona."]
[]
[]
[null,null,"805. EN EL PRESENTE AÑO, ESTE SERVICIO/NIVEL EDUCATIVO, ¿HA ORGANIZADO Y EJECUTADO",null,null,null,null,null,null,null,null,null,null,null,null,"807. EN EL AÑO 2024, ESTE SERVICIO/NIVEL EDUCATIVO, ¿PARTICIPÓ EN LOS SIMULACROS"]
[null,null,null,"CAMPAÑAS COMUNICACIONALES DE GESTIÓN DEL RIESGO DE DESASTRES (GRD) Y/O",null,null,null,null,null,null,null,null,null,null,null,null,"CONVOCADOS POR MINEDU Y/O INDECI?"]
[null,null,null,"SEGURIDAD Y DEFENSA NACIONAL (SDN)?"]
[null,null,null,null,null,null,null,null,null,null,null,null,null,null,null,null,"Sí","",null,null,null,null,"No  "]
[null,null,null,"Sí","",null,null,null,"No  "]
[]
[null,null,null,null,null,null,null,null,null,null,null,null,null,null,null,null,"¿Qué nivel de preparación lograron?"]
[null,null,null,"Tipo de campaña que realizó",null,null,null,null,null,null,null,null,null,null,null,null,"Marque con una “X”, el nivel logrado en cada simulacro"]
[null,null,null,null,null,"Ítems",null,null,"Elija una opción","Temática de la campaña*"]
[null,null,null,null,null,null,null,{"$f":"COUNTIF(I73:I81,\"SI\")+COUNTIF(I73:I81,\"NO\")","v":0},null,null,null,null,null,null,null,null,"N° de simulacro",null,null,null,"Nivel de preparación Marque con un “X”"]
[null,null,null,1,"Pasacalle",null,null,null,"","",null,null,null,null,null,null,null,null,null,null,"Inicio",null,"Proceso",null,"Bueno","Destacado"]
[null,null,null,2,"Feria",null,null,null,"","",null,null,null,null,null,null,1,"Primer simulacro",null,null,"",null,"",null,"",""]
[null,null,null,3,"Activaciones motivadoras",null,null,null,"","",null,null,null,null,null,null,2,"Segundo simulacro",null,null,"",null,"",null,"",""]
[null,null,null,4,"Conferencias /Foros",null,null,null,"","",null,null,null,null,null,null,3,"Tercer simulacro",null,null,"",null,"",null,"",""]
[null,null,null,5,"Webinars",null,null,null,"",""]
[null,null,null,6,"Difusión de afiches, trípticos, volantes",null,null,null,"",""]
[null,null,null,7,"Murales",null,null,null,"",""]
[null,null,null,8,"Post en redes sociales",null,null,null,"",""]
[null,null,null,9,"Post radiales",null,null,null,"",""]
[]
[]
[null,null,"806. ESTE SERVICIO/NIVEL EDUCATIVO, ¿CUENTA CON UN PLAN DE GESTIÓN DEL RIESGO DE DESASTRES?"]
[]
[null,null,null,"Sí","",null,null,null,"No  "]
[]
[]
[null,null,null,"¿Qué actividades ha desarrollado en el Plan?"]
[null,null,null,"Marque con una “X”, una o más opciones"]
[]
[null,null,null,"","Identificó los peligros más frecuentes de la IE. (Ejem: lluvias, huaycos, entre otros)."]
[null,null,null,"","Identificó las vulnerabilidades en la IE. (Ejem: techos, canaletas, paredes, pisos en mal estado, personal sin capacitación, entre otros)."]
[null,null,null,"","Priorizó acciones correctivas en la infraestructura de la IE con presupuesto de mantenimiento."]
[null,null,null,"","Procedimientos de evacuación a zonas seguras en situaciones de emergencias."]
[null,null,null,"","Procedimientos de contención y soporte socioemocional en situaciones de emergencias."]
[null,null,null,"","Procedimientos de aplicación del currículo vigente en situaciones de emergencias"]

{"sheet":"C900","index":11,"n_rows":130,"n_cols":23,"rows_kept":130,"cut":false,"hidden":false,"merged":[[15,22,16,22],[26,17,26,19],[44,9,44,11],[6,1,6,23],[83,3,83,9],[83,10,83,11],[83,12,83,19],[83,20,83,21],[15,15,16,19],[15,20,16,20],[15,21,16,21],[46,8,46,10],[47,8,47,10],[47,20,47,22],[48,8,48,10],[69,20,69,22],[84,3,84,9],[85,3,85,9],[86,3,86,9],[84,10,84,11],[85,10,85,11],[86,10,86,11],[84,12,84,19],[85,12,85,19],[86,12,86,19],[84,20,84,21],[85,20,85,21],[86,20,86,21]]}
[]
[null,null,null,null,null,"CENSO EDUCATIVO 2025"]
[null,null,null,null,null,"MATRÍCULA, DOCENTES Y RECURSOS"]
[]
[]
[]
[null,"900. EDUCACIÓN AMBIENTAL"]
[]
[null,null,"901. EN EL PRESENTE AÑO, ESTE SERVICIO/NIVEL EDUCATIVO, ¿HA ELABORADO SU PROYECTO",null,null,null,null,null,null,null,null,null,null,null,"902. SEÑOR(A) DIRECTOR(A), SI HA ELABORADO SU PROYECTO EDUCATIVO AMBIENTAL"]
[null,null,null,"EDUCATIVO AMBIENTAL INTEGRADO (PEAI)?",null,null,null,null,null,null,null,null,null,null,null,"INTEGRADO (PEAI), MARQUE USTED, LAS PROBLEMÁTICAS/OPORTUNIDADES AMBIENTALES"]
[null,null,null,null,null,null,null,null,null,null,null,null,null,null,null,"QUE SE ABORDAN EN EL PEAI, DE ACUERDO A LO SIGUIENTE:"]
[null,null,null,"Sí",""]
[null,null,null,null,null,null,null,null,null,null,null,null,null,null,null,"Marque con una “X”, hasta dos opciones"]
[null,null,null,null,null,"¿Ha implementado su proyecto educativo ambiental integrado (PEAI):"]
[]
[null,null,null,null,null,"Sí  ","",null,"Período",null,"Año","Mes",null,null,null,"Problemáticas / Oportunidades",null,null,null,null,"Principal","Comple- mentario","No aplica"]
[null,null,null,null,null,null,null,"","Desde",null,"",""]
[null,null,null,null,null,"No  ","","","Hasta",null,"","",null,null,null,1,"Contaminación por residuos sólidos",null,null,null,"","",""]
[null,null,null,null,null,null,null,null,null,null,null,null,null,null,null,2,"Cambio climático",null,null,null,"","",""]
[null,null,null,null,null,null,null,null,null,null,null,null,null,null,null,3,"Contaminación del agua",null,null,null,"","",""]
[null,null,null,"No  ",null,null,"Pase a la pregunta 903.",null,null,null,null,null,null,null,null,4,"Desertificación",null,null,null,"","",""]
[null,null,null,null,null,null,null,null,null,null,null,null,null,null,null,5,"Depredación de flora y fauna",null,null,null,"","",""]
[null,null,null,null,null,null,null,null,null,null,null,null,null,null,null,6,"Microplásticos",null,null,null,"","",""]
[null,null,null,null,"Indique el/los motivo(s):",null,null,null,null,null,null,null,null,null,null,7,"3R: reducir, reusar, reciclar",null,null,null,"","",""]
[null,null,null,null,"Marque con una “X”, una o más opciones",null,null,null,null,null,null,null,null,null,null,8,"Contaminación del aire",null,null,null,"","",""]
[null,null,null,null,null,null,null,null,null,null,null,null,null,null,null,9,"Alimentación saludable",null,null,null,"","",""]
[null,null,null,null,null,"Falta de conocimiento o capacitación",null,null,null,null,null,null,null,null,null,10,"Otro","",null,null,"","",""]
[null,null,null,null,null,"Falta de recursos"]
[null,null,null,null,null,"Resistencia al cambio"]
[null,null,null,null,null,"Dificultades para integrar el PEAI en el currículo"]
[null,null,null,null,null,"Falta de apoyo institucional"]
[]
[]
[null,null,"903. EL SERVICIO/NIVEL EDUCATIVO, ¿CUENTA CON LA BRIGADA DE EDUCACIÓN AMBIENTAL Y",null,null,null,null,null,null,null,null,null,null,null,"905. SEÑOR(A) DIRECTOR(A), ¿LA BRIGADA DE EDUCACIÓN AMBIENTAL Y GESTIÓN DEL"]
[null,null,null,"GESTIÓN DE RIESGO DE DESASTRES?",null,null,null,null,null,null,null,null,null,null,null,"RIESGO DE DESASTRES CONFORMADA HA SIDO FORTALECIDO?"]
[]
[null,null,null,null,null,null,null,null,null,null,null,null,null,null,null,"Sí",null,null,null,"No  ",""]
[]
[null,null,null,"Sí","",null,null,null,"No  ",null," u   Finalice la sección 900.",null,null,null,null,null,null,null,"¿Quiénes la realizaron?"]
[null,null,null,null,null,null,null,null,null,null,null,null,null,null,null,null,null,null,"Marque con una “X”, una o más opciones"]
[]
[null,null,null,null,null,"Documento que lo aprueba",null,null,null,null,"Resolución",null,null,null,null,null,null,null,null,"El brigadista líder"]
[null,null,null,null,null,null,null,null,null,null,"Otro",null,null,null,null,null,null,null,null,"Directivo"]
[null,null,null,null,null,null,null,null,null,null,null,null,null,null,null,null,null,null,null,"Docentes"]
[null,null,null,null,null,"Número del Documento",null,null,null,"",null,null,null,null,null,null,null,null,null,"UGEL"]
[null,null,null,null,null,null,null,null,null,null,null,null,null,null,null,null,null,null,null,"DRE/GRE"]
[null,null,null,null,null,null,null,null,"Desde:",null,null,"Hasta:",null,null,null,null,null,null,null,"Gobierno local"]
[null,null,null,null,null,"Vigencia de la brigada",null,null,"DD/MM/AAAA",null,null,"DD/MM/AAAA",null,null,null,null,null,null,null,"Otro",""]
[null,null,null,null,null,null,null,null,"",null,null,""]
[null,null,null,null,null,null,null,null,null,null,null,null,null,null,"906. SEÑOR(A) DIRECTOR(A), INDIQUE USTED, ¿SI EN LOS DOS ÚLTIMOS AÑOS, LOS"]
[null,null,null,null,null,null,null,null,null,null,null,null,null,null,null,"INTEGRANTES DE LA BRIGADA DE EDUCACIÓN AMBIENTAL Y GESTIÓN DEL"]
[null,null,null,null,null,null,null,null,null,null,null,null,null,null,null,"RIESGO DE DESASTRES, HAN SIDO CAPACITADOS?"]
[]
[null,null,null,null,null,null,null,null,null,null,null,null,null,null,null,"Sí",null,null,"¿En qué temas han sido capacitados?"]
[null,null,"904. SEÑOR(A) DIRECTOR(A), LA BRIGADA DE EDUCACIÓN AMBIENTAL Y GESTIÓN DEL",null,null,null,null,null,null,null,null,null,null,null,null,null,null,null,"Marque con una “X”, una o más opciones"]
[null,null,null,"RIESGO DE DESASTRES CONFORMADA, ¿CUENTA CON UN PLAN DE ACCIÓN ELABORADO?"]
[null,null,null,null,null,null,null,null,null,null,null,null,null,null,null,null,null,null,null,"Cambio climático"]
[null,null,null,null,null,null,null,null,null,null,null,null,null,null,null,null,null,null,null,"Manejo de residuos sólidos"]
[null,null,null,"Sí",null,null,null,null,null,null,null,null,null,null,null,null,null,null,null,"Cuidado de los humedales"]
[null,null,null,null,null,null,null,null,null,null,null,null,null,null,null,null,null,null,null,"Diversidad biológica"]
[null,null,null,null,null,null,"Indique la fecha de la elaboración del plan de acción",null,null,null,null,null,null,null,null,null,null,null,null,"Primeros auxilios"]
[null,null,null,null,null,null,null,null,null,null,null,null,null,null,null,null,null,null,null,"Capacitación contra Incendios"]
[null,null,null,null,null,null,null,null,null,null,null,null,null,null,null,null,null,null,null,"Señalización y evacuación"]
[null,null,null,null,null,null,"Día","Mes","Año",null,null,null,null,null,null,null,null,null,null,"Seguridad y protección"]
[null,null,null,null,null,null,null,null,null,null,null,{"$f":"CONCATENATE(G65,\"/\",H65,\"/\",I65)","v":"//"},null,null,null,null,null,null,null,"Soporte Socioemocional y actividades lúdicas"]
[null,null,null,null,null,null,null,null,null,null,null,null,null,null,null,null,null,null,null,"Alimentación saludable"]
[null,null,null,null,null,null,null,null,null,null,null,null,null,null,null,null,null,null,null,"Transporte sostenible"]
[null,null,null,null,null,null,null,null,null,null,null,null,null,null,null,null,null,null,null,"Desertificación"]
[null,null,null,null,null,null,null,null,null,null,null,null,null,null,null,null,null,null,null,"Plásticos y microplásticos"]
[null,null,null,null,null,null,null,null,null,null,null,null,null,null,null,null,null,null,null,"Otro",""]
[null,null,null,"No  ",null,null,null,null,null,null,null,null,null,null,null,null,null,null,""]
[null,null,null,null,null,null,null,null,null,null,null,null,null,null,null,"No  ",null,null,"Indique, ¿cuál es el motivo?"]
[null,null,null,null,null,null,null,null,null,null,null,null,null,null,null,null,null,null,"Marque con una “X”, una opción"]
[null,null,null,null,"¿El plan de acción esta incorporado en el plan anual de trabajo?"]
[null,null,null,null,null,null,null,null,null,null,null,null,null,null,null,null,null,null,null,"No saben a quién solicitar apoyo para la capacitación"]
[null,null,null,null,"Sí",null,null,null,"No  ",null,null,null,null,null,null,null,null,null,null,"No cuentan con aliados especializados"]
[null,null,null,null,null,null,null,null,null,null,null,null,null,null,null,null,null,null,null,"Se suspendió por cruce de actividades"]
[null,null,null,null,null,null,null,null,null,null,null,null,null,null,null,null,null,null,null,"No se ha recibido invitación"]
[]
[]
[]
[null,null,"DATOS DEL DIRECTOR(A) / RESPONSABLE DEL LLENADO DE LA CÉDULA"]
[]
[null,null,null,"NOMBRES Y APELLIDOS",null,null,null,null,null,null,"CARGO",null,"CORREO ELECTRÓNICO",null,null,null,null,null,null,null,"TELÉFONO"]
[]
[]
[]
[]
[]
[]
[]
["DIRECTOR(A)"]
["SUB DIRECTOR(A)"]
["DOCENTE"]
["COORDINADOR(A)"]
["ASESOR"]
["ADMINISTRATIVO"]
["ASISTENTE"]
["AUXILIAR"]
["SECRETARIA(O)"]
["ESTADÍSTICO"]
["ESPECIALISTA"]
["BIBLIOTECARIO"]
["CARE"]
["COMANDANTE PNP"]
["CONTADOR"]
["DAIP"]
["DIGITADOR(A)"]
["GERENTE"]
["JEFE ACADÉMICO"]
["JEFE ADMINISTRATIVO"]
["JEFE DE ÁREA"]
["JEFE DE LABORATORIO"]
["JEFE DE PERSONAL"]
["JEFE DE SEDE"]
["JEFE DE UNIDAD"]
["OFICINISTA"]
["OPERADOR DE SISTEMAS"]
["PERSONAL DE SERVICIO"]
["PROGRAMADOR"]
["PROMOTOR(A)"]
["PSICOLOGO"]
["REGISTRADOR(A)"]
["REPRESENTANTE LEGAL"]
["SOPORTE TECNOLOGICO"]
["TÉCNICO ADMINISTRATIVO"]
["TESORERO(A)"]
["TRABAJADOR SOCIAL"]
["TUTOR"]
["OTROS"]

{"sheet":"Enviar","index":12,"n_rows":9,"n_cols":4,"rows_kept":9,"cut":false,"hidden":false,"merged":[[0,1,0,4],[1,1,1,4]]}
[null,"CENSO EDUCATIVO 2025"]
[null,"MATRÍCULA, DOCENTES Y RECURSOS"]
[]
[]
[null,null,"Paso 1:","Realice el ENVÍO con su clave EOL."]
[]
[null,null,"Paso 2:","Una vez realizado el ENVÍO,  Revise su constancia de envio."]
[]
[null,null,"  ADVERTENCIA","ASEGÚRESE DE REGISTRAR TODA LA INFORMACIÓN DEL NIVEL INFORMANTE"]